Workbook

Sheet Main
B10: 2018-11-05
B12: Sheet No. | C12: Template Name | D12: Summary
B13: 1 | C13: Future Intra | D13: For Intraday trading in F&O segment
B14: 2 | C14: Cash Intra | D14: For Intraday trading in cash market segment
B15: 3 | C15: Mid-cap Intra | D15: For Intraday trading in Mid-cap stocks
B16: 4 | C16: Bulk Deals | D16: Reveals Bulk Deals carried on NSE & BSE
B17: 5 | C17: Call Tracker

Sheet Future Intra
M5: Back to Main Page
A6: FOR INTRA DAY TRADING | L6: =Main!B10 -> 2018-11-05
A9: Sr.no | B9: Sector | C9: Scrip | D9: CLOSE RATE | E9: Pivot Point | F9: Supports | I9: Resistances
B10: Sector | D10: Point | E10: Point | F10: S1 | G10: S2 | H10: S3 | I10: R1 | J10: R2 | K10: R3 | L10: HIGH | M10: LOW | N10: OI | O10: % Change in OI
A11: 1 | B11: Index | C11: BANKNIFTY | D11: 25750.40 | E11: 25721.27 | F11: 25544.53 | G11: 25338.67 | H11: 25161.93 | I11: 25927.13 | J11: 26103.87 | K11: 26309.73 | L11: 25898 | M11: 25515.4 | N11: 1740040 | O11: 12.74%
A12: 2 | B12: Index | C12: NIFTY | D12: 10577.05 | E12: 10562.43 | F12: 10492.87 | G12: 10408.68 | H12: 10339.12 | I12: 10646.62 | J12: 10716.18 | K12: 10800.37 | L12: 10632 | M12: 10478.25 | N12: 24623475 | O12: 2.75%
A13: 5 | B13: Index | C13: NIFTYIT | D13: 14446.00 | E13: 14557.00 | F13: 14294.00 | G13: 14142.00 | H13: 13879.00 | I13: 14709.00 | J13: 14972.00 | K13: 15124.00 | L13: 14820 | M13: 14405 | N13: 15900 | O13: -38.96%
A14: 6 | B14: Index | C14: NIFTYMID50 | D14: 4660.00 | E14: 4716.67 | F14: 4603.33 | G14: 4546.67 | H14: 4433.33 | I14: 4773.33 | J14: 4886.67 | K14: 4943.33 | L14: 4830 | M14: 4660 | N14: 695090 | O14: -2.15%
A15: 8 | B15: Cement | C15: ACC | D15: 1447.10 | E15: 1445.10 | F15: 1416.30 | G15: 1385.50 | H15: 1356.70 | I15: 1475.90 | J15: 1504.70 | K15: 1535.50 | L15: 1473.9 | M15: 1414.3 | N15: 904800 | O15: -1.18%
A16: 9 | B16: Others | C16: ADANIENT | D16: 176.65 | E16: 177.18 | F16: 173.77 | G16: 170.88 | H16: 167.47 | I16: 180.07 | J16: 183.48 | K16: 186.37 | L16: 180.6 | M16: 174.3 | N16: 35312000 | O16: 3.54%
A17: 10 | B17: Others | C17: ADANIPORTS | D17: 333.95 | E17: 331.62 | F17: 322.73 | G17: 311.52 | H17: 302.63 | I17: 342.83 | J17: 351.72 | K17: 362.93 | L17: 340.5 | M17: 320.4 | N17: 16775000 | O17: 1.16%
A18: 11 | B18: Power | C18: ADANIPOWER | D18: 50.10 | E18: 50.72 | F18: 48.43 | G18: 46.77 | H18: 44.48 | I18: 52.38 | J18: 54.67 | K18: 56.33 | L18: 53 | M18: 49.05 | N18: 161160000 | O18: 0.30%
A19: 12 | B19: Pharma | C19: AJANTPHARM | D19: 1078.95 | E19: 1082.33 | F19: 1065.37 | G19: 1051.78 | H19: 1034.82 | I19: 1095.92 | J19: 1112.88 | K19: 1126.47 | L19: 1099.3 | M19: 1068.75 | N19: 584000 | O19: -7.96%
A20: 13 | B20: Banking | C20: ALBK | D20: 43.15 | E20: 43.58 | F20: 42.27 | G20: 41.38 | H20: 40.07 | I20: 44.47 | J20: 45.78 | K20: 46.67 | L20: 44.9 | M20: 42.7 | N20: 13893000 | O20: -2.70%
A21: 14 | B21: Automobile | C21: AMARAJABAT | D21: 788.90 | E21: 778.75 | F21: 763.75 | G21: 738.60 | H21: 723.60 | I21: 803.90 | J21: 818.90 | K21: 844.05 | L21: 793.75 | M21: 753.6 | N21: 1026200 | O21: -6.45%
A22: 15 | B22: Cement | C22: AMBUJACEM | D22: 203.90 | E22: 204.72 | F22: 200.58 | G22: 197.27 | H22: 193.13 | I22: 208.03 | J22: 212.17 | K22: 215.48 | L22: 208.85 | M22: 201.4 | N22: 17252500 | O22: -1.57%
A23: 17 | B23: Others | C23: APOLLOHOSP | D23: 1152.70 | E23: 1165.90 | F23: 1127.80 | G23: 1102.90 | H23: 1064.80 | I23: 1190.80 | J23: 1228.90 | K23: 1253.80 | L23: 1204 | M23: 1141 | N23: 688000 | O23: -8.81%
A24: 18 | B24: Automobile | C24: APOLLOTYRE | D24: 221.60 | E24: 223.58 | F24: 217.32 | G24: 213.03 | H24: 206.77 | I24: 227.87 | J24: 234.13 | K24: 238.42 | L24: 229.85 | M24: 219.3 | N24: 7284000 | O24: 0.04%
A25: 19 | B25: Textile | C25: ARVIND | D25: 327.05 | E25: 333.92 | F25: 318.63 | G25: 310.22 | H25: 294.93 | I25: 342.33 | J25: 357.62 | K25: 366.03 | L25: 349.2 | M25: 325.5 | N25: 6340000 | O25: 17.32%
A26: 20 | B26: Automobile | C26: ASHOKLEY | D26: 118.30 | E26: 117.13 | F26: 115.17 | G26: 112.03 | H26: 110.07 | I26: 120.27 | J26: 122.23 | K26: 125.37 | L26: 119.1 | M26: 114 | N26: 43924000 | O26: -12.52%
A27: 21 | B27: FMCG | C27: ASIANPAINT | D27: 1254.40 | E27: 1263.72 | F27: 1234.48 | G27: 1214.57 | H27: 1185.33 | I27: 1283.63 | J27: 1312.87 | K27: 1332.78 | L27: 1292.95 | M27: 1243.8 | N27: 4985400 | O27: 1.79%
A28: 22 | B28: Pharma | C28: AUROPHARMA | D28: 784.55 | E28: 787.00 | F28: 778.30 | G28: 772.05 | H28: 763.35 | I28: 793.25 | J28: 801.95 | K28: 808.20 | L28: 795.7 | M28: 780.75 | N28: 18726000 | O28: -1.08%
A29: 23 | B29: Banking | C29: AXISBANK | D29: 613.70 | E29: 613.28 | F29: 606.27 | G29: 598.83 | H29: 591.82 | I29: 620.72 | J29: 627.73 | K29: 635.17 | L29: 620.3 | M29: 605.85 | N29: 39865200 | O29: 5.43%
A30: 24 | B30: Automobile | C30: BAJAJ-AUTO | D30: 2666.85 | E30: 2669.75 | F30: 2632.10 | G30: 2597.35 | H30: 2559.70 | I30: 2704.50 | J30: 2742.15 | K30: 2776.90 | L30: 2707.4 | M30: 2635 | N30: 2328500 | O30: -0.80%
A31: 25 | B31: Others | C31: BAJAJFINSV | D31: 5548.75 | E31: 5544.50 | F31: 5441.20 | G31: 5333.65 | H31: 5230.35 | I31: 5652.05 | J31: 5755.35 | K31: 5862.90 | L31: 5647.8 | M31: 5436.95 | N31: 690625 | O31: -1.07%
A32: 26 | B32: Finance | C32: BAJFINANCE | D32: 2396.50 | E32: 2417.50 | F32: 2355.20 | G32: 2313.90 | H32: 2251.60 | I32: 2458.80 | J32: 2521.10 | K32: 2562.40 | L32: 2479.8 | M32: 2376.2 | N32: 6533250 | O32: 1.09%
A33: 27 | B33: Others | C33: BALKRISIND | D33: 1113.35 | E33: 1136.05 | F33: 1085.30 | G33: 1057.25 | H33: 1006.50 | I33: 1164.10 | J33: 1214.85 | K33: 1242.90 | L33: 1186.8 | M33: 1108 | N33: 1551200 | O33: -1.27%
A34: 29 | B34: Banking | C34: BANKBARODA | D34: 110.05 | E34: 110.82 | F34: 107.83 | G34: 105.62 | H34: 102.63 | I34: 113.03 | J34: 116.02 | K34: 118.23 | L34: 113.8 | M34: 108.6 | N34: 73924000 | O34: -6.82%
A35: 30 | B35: Banking | C35: BANKINDIA | D35: 84.75 | E35: 86.60 | F35: 82.35 | G35: 79.95 | H35: 75.70 | I35: 89.00 | J35: 93.25 | K35: 95.65 | L35: 90.85 | M35: 84.2 | N35: 19836000 | O35: 2.42%
A36: 31 | B36: FMCG | C36: BATAINDIA | D36: 1010.80 | E36: 1010.60 | F36: 991.80 | G36: 972.80 | H36: 954.00 | I36: 1029.60 | J36: 1048.40 | K36: 1067.40 | L36: 1029.4 | M36: 991.6 | N36: 1754500 | O36: -4.12%
A37: 32 | B37: Capital_Goods | C37: BEL | D37: 95.45 | E37: 96.20 | F37: 93.95 | G37: 92.45 | H37: 90.20 | I37: 97.70 | J37: 99.95 | K37: 101.45 | L37: 98.45 | M37: 94.7 | N37: 22174500 | O37: -0.93%
A38: 33 | B38: Infrastructure | C38: BEML | D38: 691.05 | E38: 675.07 | F38: 652.98 | G38: 614.92 | H38: 592.83 | I38: 713.13 | J38: 735.22 | K38: 773.28 | L38: 697.15 | M38: 637 | N38: 1730500 | O38: 0.84%
A39: 34 | B39: Others | C39: BERGEPAINT | D39: 304.90 | E39: 306.40 | F39: 295.30 | G39: 285.70 | H39: 274.60 | I39: 316.00 | J39: 327.10 | K39: 336.70 | L39: 317.5 | M39: 296.8 | N39: 2261600 | O39: 12.72%
A40: 35 | B40: Finance | C40: BHARATFIN | D40: 953.50 | E40: 946.10 | F40: 929.70 | G40: 905.90 | H40: 889.50 | I40: 969.90 | J40: 986.30 | K40: 1010.10 | L40: 962.5 | M40: 922.3 | N40: 7105500 | O40: -5.47%
A41: 36 | B41: Automobile | C41: BHARATFORG | D41: 608.10 | E41: 608.67 | F41: 579.43 | G41: 550.77 | H41: 521.53 | I41: 637.33 | J41: 666.57 | K41: 695.23 | L41: 637.9 | M41: 580 | N41: 7399200 | O41: 6.96%
A42: 37 | B42: Telecom | C42: BHARTIARTL | D42: 300.70 | E42: 299.57 | F42: 292.53 | G42: 284.37 | H42: 277.33 | I42: 307.73 | J42: 314.77 | K42: 322.93 | L42: 306.6 | M42: 291.4 | N42: 45874500 | O42: 1.37%
A43: 38 | B43: Capital_Goods | C43: BHEL | D43: 70.35 | E43: 70.42 | F43: 68.98 | G43: 67.62 | H43: 66.18 | I43: 71.78 | J43: 73.22 | K43: 74.58 | L43: 71.85 | M43: 69.05 | N43: 47565000 | O43: -2.76%
A44: 39 | B44: Pharma | C44: BIOCON | D44: 634.25 | E44: 639.12 | F44: 625.38 | G44: 616.52 | H44: 602.78 | I44: 647.98 | J44: 661.72 | K44: 670.58 | L44: 652.85 | M44: 630.25 | N44: 5777100 | O44: 4.41%
A45: 40 | B45: Automobile | C45: BOSCHLTD | D45: 19701.55 | E45: 19720.10 | F45: 19299.85 | G45: 18898.15 | H45: 18477.90 | I45: 20121.80 | J45: 20542.05 | K45: 20943.75 | L45: 20140.35 | M45: 19318.4 | N45: 134730 | O45: -2.77%
A46: 41 | B46: Oil_Gas | C46: BPCL | D46: 303.50 | E46: 301.83 | F46: 295.02 | G46: 286.53 | H46: 279.72 | I46: 310.32 | J46: 317.13 | K46: 325.62 | L46: 308.65 | M46: 293.35 | N46: 12324600 | O46: -1.25%
A47: 42 | B47: FMCG | C47: BRITANNIA | D47: 5628.75 | E47: 5660.02 | F47: 5573.83 | G47: 5518.92 | H47: 5432.73 | I47: 5714.93 | J47: 5801.12 | K47: 5856.03 | L47: 5746.2 | M47: 5605.1 | N47: 1399600 | O47: 0.14%
A48: 43 | B48: Pharma | C48: CADILAHC | D48: 359.15 | E48: 360.88 | F48: 355.32 | G48: 351.48 | H48: 345.92 | I48: 364.72 | J48: 370.28 | K48: 374.12 | L48: 366.45 | M48: 357.05 | N48: 8160000 | O48: 0.00%
A49: 44 | B49: Banking | C49: CANBK | D49: 244.60 | E49: 248.47 | F49: 238.78 | G49: 232.97 | H49: 223.28 | I49: 254.28 | J49: 263.97 | K49: 269.78 | L49: 258.15 | M49: 242.65 | N49: 8480000 | O49: 1.53%
A50: 45 | B50: Others | C50: CANFINHOME | D50: 275.60 | E50: 278.47 | F50: 270.68 | G50: 265.77 | H50: 257.98 | I50: 283.38 | J50: 291.17 | K50: 296.08 | L50: 286.25 | M50: 273.55 | N50: 3239850 | O50: -3.96%
A51: 46 | B51: Finance | C51: CAPF | D51: 480.35 | E51: 483.80 | F51: 473.05 | G51: 465.75 | H51: 455.00 | I51: 491.10 | J51: 501.85 | K51: 509.15 | L51: 494.55 | M51: 476.5 | N51: 6924000 | O51: 4.37%
A52: 47 | B52: Oil_Gas | C52: CASTROLIND | D52: 145.50 | E52: 147.12 | F52: 143.43 | G52: 141.37 | H52: 137.68 | I52: 149.18 | J52: 152.87 | K52: 154.93 | L52: 150.8 | M52: 145.05 | N52: 7883800 | O52: 0.76%
A53: 48 | B53: Automobile | C53: CEATLTD | D53: 1189.65 | E53: 1201.20 | F53: 1170.50 | G53: 1151.35 | H53: 1120.65 | I53: 1220.35 | J53: 1251.05 | K53: 1270.20 | L53: 1231.9 | M53: 1182.05 | N53: 772500 | O53: -5.35%
A54: 49 | B54: Textile | C54: CENTURYTEX | D54: 852.65 | E54: 856.52 | F54: 839.03 | G54: 825.42 | H54: 807.93 | I54: 870.13 | J54: 887.62 | K54: 901.23 | L54: 874 | M54: 842.9 | N54: 5377900 | O54: -3.35%
A55: 50 | B55: Power | C55: CESC | D55: 693.15 | E55: 693.03 | F55: 685.42 | G55: 677.68 | H55: 670.07 | I55: 700.77 | J55: 708.38 | K55: 716.12 | L55: 700.65 | M55: 685.3 | N55: 1711600 | O55: 3.39%
A56: 51 | B56: Power | C56: CGPOWER | D56: 37.70 | E56: 37.62 | F56: 36.13 | G56: 34.57 | H56: 33.08 | I56: 39.18 | J56: 40.67 | K56: 42.23 | L56: 39.1 | M56: 36.05 | N56: 42600000 | O56: 9.77%
A57: 52 | B57: Others | C57: CHENNPETRO | D57: 275.30 | E57: 274.90 | F57: 268.55 | G57: 261.80 | H57: 255.45 | I57: 281.65 | J57: 288.00 | K57: 294.75 | L57: 281.25 | M57: 268.15 | N57: 1182000 | O57: 7.07%
A58: 53 | B58: Others | C58: CHOLAFIN | D58: 1313.95 | E58: 1328.42 | F58: 1273.53 | G58: 1233.12 | H58: 1178.23 | I58: 1368.83 | J58: 1423.72 | K58: 1464.13 | L58: 1383.3 | M58: 1288 | N58: 601000 | O58: 10.48%
A59: 54 | B59: Pharma | C59: CIPLA | D59: 609.65 | E59: 612.38 | F59: 604.27 | G59: 598.88 | H59: 590.77 | I59: 617.77 | J59: 625.88 | K59: 631.27 | L59: 620.5 | M59: 607 | N59: 8932000 | O59: 3.01%
A60: 55 | B60: Others | C60: COALINDIA | D60: 263.00 | E60: 263.15 | F60: 260.10 | G60: 257.20 | H60: 254.15 | I60: 266.05 | J60: 269.10 | K60: 272.00 | L60: 266.2 | M60: 260.25 | N60: 27814600 | O60: -0.12%
A61: 56 | B61: FMCG | C61: COLPAL | D61: 1106.50 | E61: 1105.82 | F61: 1099.68 | G61: 1092.87 | H61: 1086.73 | I61: 1112.63 | J61: 1118.77 | K61: 1125.58 | L61: 1111.95 | M61: 1099 | N61: 1734600 | O61: 4.38%
A62: 57 | B62: Others | C62: CONCOR | D62: 662.45 | E62: 665.20 | F62: 656.00 | G62: 649.55 | H62: 640.35 | I62: 671.65 | J62: 680.85 | K62: 687.30 | L62: 674.4 | M62: 658.75 | N62: 3010000 | O62: 3.70%
A63: 58 | B63: Capital_Goods | C63: CUMMINSIND | D63: 772.05 | E63: 769.03 | F63: 752.17 | G63: 732.28 | H63: 715.42 | I63: 788.92 | J63: 805.78 | K63: 825.67 | L63: 785.9 | M63: 749.15 | N63: 1171800 | O63: 7.45%
A64: 59 | B64: FMCG | C64: DABUR | D64: 370.00 | E64: 370.62 | F64: 365.63 | G64: 361.27 | H64: 356.28 | I64: 374.98 | J64: 379.97 | K64: 384.33 | L64: 375.6 | M64: 366.25 | N64: 16271250 | O64: 5.03%
A65: 60 | B65: Cement | C65: DALMIABHA | D65: 2185.10 | E65: 2182.57 | F65: 2125.43 | G65: 2065.77 | H65: 2008.63 | I65: 2242.23 | J65: 2299.37 | K65: 2359.03 | L65: 2239.7 | M65: 2122.9 | N65: 422100 | O65: -9.69%
A66: 61 | B66: Banking | C66: DCBBANK | D66: 159.85 | E66: 161.22 | F66: 157.58 | G66: 155.32 | H66: 151.68 | I66: 163.48 | J66: 167.12 | K66: 169.38 | L66: 164.85 | M66: 158.95 | N66: 4104000 | O66: 1.11%
A67: 62 | B67: Finance | C67: DHFL | D67: 229.30 | E67: 228.83 | F67: 219.02 | G67: 208.73 | H67: 198.92 | I67: 239.12 | J67: 248.93 | K67: 259.22 | L67: 238.65 | M67: 218.55 | N67: 16917000 | O67: 4.18%
A68: 63 | B68: Media | C68: DISHTV | D68: 42.80 | E68: 43.03 | F68: 42.17 | G68: 41.53 | H68: 40.67 | I68: 43.67 | J68: 44.53 | K68: 45.17 | L68: 43.9 | M68: 42.4 | N68: 41640000 | O68: -1.27%
A69: 64 | B69: Pharma | C69: DIVISLAB | D69: 1502.95 | E69: 1505.87 | F69: 1483.73 | G69: 1464.52 | H69: 1442.38 | I69: 1525.08 | J69: 1547.22 | K69: 1566.43 | L69: 1528 | M69: 1486.65 | N69: 3272000 | O69: -3.33%
A70: 65 | B70: Realty | C70: DLF | D70: 170.50 | E70: 172.53 | F70: 166.22 | G70: 161.93 | H70: 155.62 | I70: 176.82 | J70: 183.13 | K70: 187.42 | L70: 178.85 | M70: 168.25 | N70: 25815500 | O70: -6.10%
A71: 66 | B71: Pharma | C71: DRREDDY | D71: 2430.30 | E71: 2441.67 | F71: 2394.78 | G71: 2359.27 | H71: 2312.38 | I71: 2477.18 | J71: 2524.07 | K71: 2559.58 | L71: 2488.55 | M71: 2406.15 | N71: 3826000 | O71: 2.56%
A72: 67 | B72: Automobile | C72: EICHERMOT | D72: 22736.75 | E72: 22739.27 | F72: 22298.53 | G72: 21860.32 | H72: 21419.58 | I72: 23177.48 | J72: 23618.22 | K72: 24056.43 | L72: 23180 | M72: 22301.05 | N72: 291950 | O72: -4.73%
A73: 68 | B73: Infrastructure | C73: ENGINERSIN | D73: 120.50 | E73: 122.50 | F73: 117.10 | G73: 113.70 | H73: 108.30 | I73: 125.90 | J73: 131.30 | K73: 134.70 | L73: 127.9 | M73: 119.1 | N73: 6321000 | O73: -0.50%
A74: 69 | B74: Finance | C74: EQUITAS | D74: 112.30 | E74: 113.47 | F74: 110.23 | G74: 108.17 | H74: 104.93 | I74: 115.53 | J74: 118.77 | K74: 120.83 | L74: 116.7 | M74: 111.4 | N74: 13060000 | O74: -2.19%
A75: 70 | B75: Automobile | C75: ESCORTS | D75: 677.65 | E75: 681.88 | F75: 665.87 | G75: 654.08 | H75: 638.07 | I75: 693.67 | J75: 709.68 | K75: 721.47 | L75: 697.9 | M75: 670.1 | N75: 4450600 | O75: -3.51%
A76: 71 | B76: Automobile | C76: EXIDEIND | D76: 252.00 | E76: 254.17 | F76: 248.08 | G76: 244.17 | H76: 238.08 | I76: 258.08 | J76: 264.17 | K76: 268.08 | L76: 260.25 | M76: 250.25 | N76: 6442000 | O76: 12.27%
A77: 72 | B77: Banking | C77: FEDERALBNK | D77: 82.65 | E77: 83.37 | F77: 81.33 | G77: 80.02 | H77: 77.98 | I77: 84.68 | J77: 86.72 | K77: 88.03 | L77: 85.4 | M77: 82.05 | N77: 46788500 | O77: 2.15%
A78: 73 | B78: Oil_Gas | C78: GAIL | D78: 370.90 | E78: 370.15 | F78: 365.80 | G78: 360.70 | H78: 356.35 | I78: 375.25 | J78: 379.60 | K78: 384.70 | L78: 374.5 | M78: 365.05 | N78: 19959828 | O78: -0.66%
A79: 74 | B79: Pharma | C79: GLENMARK | D79: 626.85 | E79: 631.20 | F79: 618.40 | G79: 609.95 | H79: 597.15 | I79: 639.65 | J79: 652.45 | K79: 660.90 | L79: 644 | M79: 622.75 | N79: 3590000 | O79: -5.30%
A80: 75 | B80: Infrastructure | C80: GMRINFRA | D80: 17.00 | E80: 17.23 | F80: 16.62 | G80: 16.23 | H80: 15.62 | I80: 17.62 | J80: 18.23 | K80: 18.62 | L80: 17.85 | M80: 16.85 | N80: 167085000 | O80: -1.64%
A81: 76 | B81: Others | C81: GODFRYPHLP | D81: 795.15 | E81: 796.13 | F81: 775.42 | G81: 755.68 | H81: 734.97 | I81: 815.87 | J81: 836.58 | K81: 856.32 | L81: 816.85 | M81: 776.4 | N81: 487900 | O81: 4.81%
A82: 77 | B82: FMCG | C82: GODREJCP | D82: 713.50 | E82: 718.43 | F82: 689.07 | G82: 664.63 | H82: 635.27 | I82: 742.87 | J82: 772.23 | K82: 796.67 | L82: 747.8 | M82: 694 | N82: 5006400 | O82: 4.14%
A83: 78 | B83: FMCG | C83: GODREJIND | D83: 478.90 | E83: 477.15 | F83: 466.80 | G83: 454.70 | H83: 444.35 | I83: 489.25 | J83: 499.60 | K83: 511.70 | L83: 487.5 | M83: 465.05 | N83: 2209500 | O83: -2.00%
A84: 79 | B84: Pharma | C84: GRANULES | D84: 101.35 | E84: 101.85 | F84: 99.90 | G84: 98.45 | H84: 96.50 | I84: 103.30 | J84: 105.25 | K84: 106.70 | L84: 103.8 | M84: 100.4 | N84: 12805000 | O84: -3.97%
A85: 80 | B85: Cement | C85: GRASIM | D85: 851.35 | E85: 853.52 | F85: 842.23 | G85: 833.12 | H85: 821.83 | I85: 862.63 | J85: 873.92 | K85: 883.03 | L85: 864.8 | M85: 844.4 | N85: 8022000 | O85: 1.76%
A86: 81 | B86: Others | C86: GSFC | D86: 116.70 | E86: 115.47 | F86: 111.73 | G86: 106.77 | H86: 103.03 | I86: 120.43 | J86: 124.17 | K86: 129.13 | L86: 119.2 | M86: 110.5 | N86: 15318400 | O86: 3.25%
A87: 82 | B87: Others | C87: HAVELLS | D87: 649.60 | E87: 648.42 | F87: 641.78 | G87: 633.97 | H87: 627.33 | I87: 656.23 | J87: 662.87 | K87: 670.68 | L87: 655.05 | M87: 640.6 | N87: 4886000 | O87: 0.25%
A88: 83 | B88: Others | C88: HCC | D88: 13.85 | E88: 13.87 | F88: 13.18 | G88: 12.52 | H88: 11.83 | I88: 14.53 | J88: 15.22 | K88: 15.88 | L88: 14.55 | M88: 13.2 | N88: 28062000 | O88: -8.02%
A89: 84 | B89: Technology | C89: HCLTECH | D89: 1006.75 | E89: 1012.58 | F89: 992.77 | G89: 978.78 | H89: 958.97 | I89: 1026.57 | J89: 1046.38 | K89: 1060.37 | L89: 1032.4 | M89: 998.6 | N89: 7942200 | O89: -0.32%
A90: 85 | B90: Finance | C90: HDFC | D90: 1825.60 | E90: 1811.85 | F90: 1785.20 | G90: 1744.80 | H90: 1718.15 | I90: 1852.25 | J90: 1878.90 | K90: 1919.30 | L90: 1838.5 | M90: 1771.45 | N90: 23518500 | O90: -1.97%
A91: 86 | B91: Banking | C91: HDFCBANK | D91: 1954.60 | E91: 1945.78 | F91: 1926.22 | G91: 1897.83 | H91: 1878.27 | I91: 1974.17 | J91: 1993.73 | K91: 2022.12 | L91: 1965.35 | M91: 1917.4 | N91: 16727250 | O91: 8.15%
A92: 88 | B92: Automobile | C92: HEROMOTOCO | D92: 2902.30 | E92: 2898.03 | F92: 2845.57 | G92: 2788.83 | H92: 2736.37 | I92: 2954.77 | J92: 3007.23 | K92: 3063.97 | L92: 2950.5 | M92: 2841.3 | N92: 1376800 | O92: -3.63%
A93: 89 | B93: Technology | C93: HEXAWARE | D93: 313.20 | E93: 316.15 | F93: 307.85 | G93: 302.50 | H93: 294.20 | I93: 321.50 | J93: 329.80 | K93: 335.15 | L93: 324.45 | M93: 310.8 | N93: 6508500 | O93: 7.19%
A94: 90 | B94: Metals | C94: HINDALCO | D94: 240.35 | E94: 239.15 | F94: 233.10 | G94: 225.85 | H94: 219.80 | I94: 246.40 | J94: 252.45 | K94: 259.70 | L94: 245.2 | M94: 231.9 | N94: 34751500 | O94: 1.12%
A95: 91 | B95: Oil_Gas | C95: HINDPETRO | D95: 241.35 | E95: 239.08 | F95: 232.92 | G95: 224.48 | H95: 218.32 | I95: 247.52 | J95: 253.68 | K95: 262.12 | L95: 245.25 | M95: 230.65 | N95: 18545100 | O95: -9.07%
A96: 92 | B96: FMCG | C96: HINDUNILVR | D96: 1638.75 | E96: 1635.12 | F96: 1620.33 | G96: 1601.92 | H96: 1587.13 | I96: 1653.53 | J96: 1668.32 | K96: 1686.73 | L96: 1649.9 | M96: 1616.7 | N96: 7839600 | O96: 0.67%
A97: 93 | B97: Metals | C97: HINDZINC | D97: 265.45 | E97: 266.08 | F97: 262.67 | G97: 259.88 | H97: 256.47 | I97: 268.87 | J97: 272.28 | K97: 275.07 | L97: 269.5 | M97: 263.3 | N97: 7052800 | O97: -9.38%
A98: 94 | B98: Finance | C98: IBULHSGFIN | D98: 875.45 | E98: 872.62 | F98: 860.33 | G98: 845.22 | H98: 832.93 | I98: 887.73 | J98: 900.02 | K98: 915.13 | L98: 884.9 | M98: 857.5 | N98: 17258500 | O98: 3.88%
A99: 95 | B99: Banking | C99: ICICIBANK | D99: 354.95 | E99: 355.33 | F99: 351.87 | G99: 348.78 | H99: 345.32 | I99: 358.42 | J99: 361.88 | K99: 364.97 | L99: 358.8 | M99: 352.25 | N99: 98257500 | O99: -4.65%
A100: 96 | B100: Others | C100: ICICIPRULI | D100: 352.30 | E100: 352.27 | F100: 346.73 | G100: 341.17 | H100: 335.63 | I100: 357.83 | J100: 363.37 | K100: 368.93 | L100: 357.8 | M100: 346.7 | N100: 3283800 | O100: -7.13%
A101: 97 | B101: Banking | C101: IDBI | D101: 59.35 | E101: 59.52 | F101: 58.88 | G101: 58.42 | H101: 57.78 | I101: 59.98 | J101: 60.62 | K101: 61.08 | L101: 60.15 | M101: 59.05 | N101: 38430000 | O101: 2.43%
A102: 98 | B102: Telecom | C102: IDEA | D102: 40.80 | E102: 40.35 | F102: 39.60 | G102: 38.40 | H102: 37.65 | I102: 41.55 | J102: 42.30 | K102: 43.50 | L102: 41.1 | M102: 39.15 | N102: 134264000 | O102: -2.07%
A103: 99 | B103: Finance | C103: IDFC | D103: 38.15 | E103: 38.02 | F103: 37.28 | G103: 36.42 | H103: 35.68 | I103: 38.88 | J103: 39.62 | K103: 40.48 | L103: 38.75 | M103: 37.15 | N103: 109494000 | O103: 0.57%
A104: 100 | B104: Banking | C104: IDFCBANK | D104: 35.60 | E104: 35.85 | F104: 35.05 | G104: 34.50 | H104: 33.70 | I104: 36.40 | J104: 37.20 | K104: 37.75 | L104: 36.65 | M104: 35.3 | N104: 122669000 | O104: 1.88%
A105: 101 | B105: Finance | C105: IFCI | D105: 14.40 | E105: 14.55 | F105: 14.15 | G105: 13.90 | H105: 13.50 | I105: 14.80 | J105: 15.20 | K105: 15.45 | L105: 14.95 | M105: 14.3 | N105: 51020000 | O105: -3.59%
A106: 102 | B106: Oil_Gas | C106: IGL | D106: 282.55 | E106: 284.43 | F106: 276.92 | G106: 271.28 | H106: 263.77 | I106: 290.07 | J106: 297.58 | K106: 303.22 | L106: 291.95 | M106: 278.8 | N106: 4086500 | O106: 14.13%
A107: 103 | B107: Cement | C107: INDIACEM | D107: 95.30 | E107: 95.78 | F107: 92.42 | G107: 89.53 | H107: 86.17 | I107: 98.67 | J107: 102.03 | K107: 104.92 | L107: 99.15 | M107: 92.9 | N107: 17176500 | O107: -2.85%
A108: 104 | B108: Banking | C108: INDIANB | D108: 248.70 | E108: 251.70 | F108: 241.60 | G108: 234.50 | H108: 224.40 | I108: 258.80 | J108: 268.90 | K108: 276.00 | L108: 261.8 | M108: 244.6 | N108: 3896000 | O108: -4.09%
A109: 105 | B109: Others | C109: INDIGO | D109: 979.15 | E109: 969.35 | F109: 956.00 | G109: 932.85 | H109: 919.50 | I109: 992.50 | J109: 1005.85 | K109: 1029.00 | L109: 982.7 | M109: 946.2 | N109: 3519600 | O109: -5.40%
A110: 106 | B110: Banking | C110: INDUSINDBK | D110: 1541.80 | E110: 1527.53 | F110: 1495.17 | G110: 1448.53 | H110: 1416.17 | I110: 1574.17 | J110: 1606.53 | K110: 1653.17 | L110: 1559.9 | M110: 1480.9 | N110: 5992800 | O110: -16.63%
A111: 107 | B111: Technology | C111: INFIBEAM | D111: 37.70 | E111: 37.00 | F111: 34.20 | G111: 30.70 | H111: 27.90 | I111: 40.50 | J111: 43.30 | K111: 46.80 | L111: 39.8 | M111: 33.5 | N111: 14940000 | O111: 0.46%
A112: 108 | B112: Telecom | C112: INFRATEL | D112: 262.65 | E112: 263.10 | F112: 260.75 | G112: 258.85 | H112: 256.50 | I112: 265.00 | J112: 267.35 | K112: 269.25 | L112: 265.45 | M112: 261.2 | N112: 6545000 | O112: 3.80%
A113: 109 | B113: Technology | C113: INFY | D113: 664.35 | E113: 668.38 | F113: 658.37 | G113: 652.38 | H113: 642.37 | I113: 674.37 | J113: 684.38 | K113: 690.37 | L113: 678.4 | M113: 662.4 | N113: 36698400 | O113: -1.04%
A114: 110 | B114: Oil_Gas | C114: IOC | D114: 148.75 | E114: 148.30 | F114: 145.50 | G114: 142.25 | H114: 139.45 | I114: 151.55 | J114: 154.35 | K114: 157.60 | L114: 151.1 | M114: 145.05 | N114: 28427500 | O114: -3.35%
A115: 111 | B115: Infrastructure | C115: IRB | D115: 146.05 | E115: 147.62 | F115: 143.58 | G115: 141.12 | H115: 137.08 | I115: 150.08 | J115: 154.12 | K115: 156.58 | L115: 151.65 | M115: 145.15 | N115: 12440700 | O115: 1.12%
A116: 112 | B116: FMCG | C116: ITC | D116: 283.55 | E116: 282.97 | F116: 279.68 | G116: 275.82 | H116: 272.53 | I116: 286.83 | J116: 290.12 | K116: 293.98 | L116: 286.25 | M116: 279.1 | N116: 65872800 | O116: -1.66%
A117: 113 | B117: Others | C117: JETAIRWAYS | D117: 229.50 | E117: 231.62 | F117: 224.98 | G117: 220.47 | H117: 213.83 | I117: 236.13 | J117: 242.77 | K117: 247.28 | L117: 238.25 | M117: 227.1 | N117: 5849600 | O117: -1.08%
A118: 114 | B118: Metals | C118: JINDALSTEL | D118: 184.85 | E118: 183.53 | F118: 177.37 | G118: 169.88 | H118: 163.72 | I118: 191.02 | J118: 197.18 | K118: 204.67 | L118: 189.7 | M118: 176.05 | N118: 22009500 | O118: -7.83%
A119: 115 | B119: Others | C119: JISLJALEQS | D119: 74.85 | E119: 75.10 | F119: 74.05 | G119: 73.25 | H119: 72.20 | I119: 75.90 | J119: 76.95 | K119: 77.75 | L119: 76.15 | M119: 74.3 | N119: 32553000 | O119: -0.71%
A120: 116 | B120: Realty | C120: JPASSOCIAT | D120: 6.80 | E120: 6.95 | F120: 6.55 | G120: 6.30 | H120: 5.90 | I120: 7.20 | J120: 7.60 | K120: 7.85 | L120: 7.35 | M120: 6.7 | N120: 112645000 | O120: -2.56%
A121: 117 | B121: Metals | C121: JSWSTEEL | D121: 353.05 | E121: 352.43 | F121: 345.97 | G121: 338.88 | H121: 332.42 | I121: 359.52 | J121: 365.98 | K121: 373.07 | L121: 358.9 | M121: 345.35 | N121: 47317500 | O121: -2.03%
A122: 118 | B122: Others | C122: JUBLFOOD | D122: 1082.20 | E122: 1095.40 | F122: 1046.80 | G122: 1011.40 | H122: 962.80 | I122: 1130.80 | J122: 1179.40 | K122: 1214.80 | L122: 1144 | M122: 1060 | N122: 2820000 | O122: 5.44%
A123: 119 | B123: Others | C123: JUSTDIAL | D123: 491.60 | E123: 496.83 | F123: 481.62 | G123: 471.63 | H123: 456.42 | I123: 506.82 | J123: 522.03 | K123: 532.02 | L123: 512.05 | M123: 486.85 | N123: 2872800 | O123: -1.39%
A124: 120 | B124: Others | C124: KAJARIACER | D124: 410.00 | E124: 414.72 | F124: 402.78 | G124: 395.57 | H124: 383.63 | I124: 421.93 | J124: 433.87 | K124: 441.08 | L124: 426.65 | M124: 407.5 | N124: 2034000 | O124: -6.35%
A125: 121 | B125: Banking | C125: KOTAKBANK | D125: 1133.45 | E125: 1131.67 | F125: 1115.58 | G125: 1097.72 | H125: 1081.63 | I125: 1149.53 | J125: 1165.62 | K125: 1183.48 | L125: 1147.75 | M125: 1113.8 | N125: 12500800 | O125: 1.75%
A126: 122 | B126: Technology | C126: KPIT | D126: 210.50 | E126: 212.37 | F126: 205.13 | G126: 199.77 | H126: 192.53 | I126: 217.73 | J126: 224.97 | K126: 230.33 | L126: 219.6 | M126: 207 | N126: 7548750 | O126: 3.71%
A127: 123 | B127: Others | C127: KSCL | D127: 499.65 | E127: 502.58 | F127: 493.67 | G127: 487.68 | H127: 478.77 | I127: 508.57 | J127: 517.48 | K127: 523.47 | L127: 511.5 | M127: 496.6 | N127: 730500 | O127: -0.20%
A128: 124 | B128: Banking | C128: KTKBANK | D128: 104.55 | E128: 105.20 | F128: 103.15 | G128: 101.75 | H128: 99.70 | I128: 106.60 | J128: 108.65 | K128: 110.05 | L128: 107.25 | M128: 103.8 | N128: 14548900 | O128: -1.43%
A129: 125 | B129: Finance | C129: L&TFH | D129: 134.40 | E129: 135.55 | F129: 132.60 | G129: 130.80 | H129: 127.85 | I129: 137.35 | J129: 140.30 | K129: 142.10 | L129: 138.5 | M129: 133.75 | N129: 25258500 | O129: -7.71%
A130: 126 | B130: Finance | C130: LICHSGFIN | D130: 430.90 | E130: 431.38 | F130: 425.52 | G130: 420.13 | H130: 414.27 | I130: 436.77 | J130: 442.63 | K130: 448.02 | L130: 437.25 | M130: 426 | N130: 9813100 | O130: -3.23%
A131: 127 | B131: Capital_Goods | C131: LT | D131: 1363.10 | E131: 1361.00 | F131: 1346.00 | G131: 1328.90 | H131: 1313.90 | I131: 1378.10 | J131: 1393.10 | K131: 1410.20 | L131: 1376 | M131: 1343.9 | N131: 10638000 | O131: -2.06%
A132: 128 | B132: Pharma | C132: LUPIN | D132: 853.75 | E132: 856.33 | F132: 844.92 | G132: 836.08 | H132: 824.67 | I132: 865.17 | J132: 876.58 | K132: 885.42 | L132: 867.75 | M132: 847.5 | N132: 9063600 | O132: 3.63%
A133: 129 | B133: Automobile | C133: M&M | D133: 783.45 | E133: 782.62 | F133: 768.73 | G133: 754.02 | H133: 740.13 | I133: 797.33 | J133: 811.22 | K133: 825.93 | L133: 796.5 | M133: 767.9 | N133: 14794000 | O133: -3.27%
A134: 130 | B134: Finance | C134: M&MFIN | D134: 432.95 | E134: 430.77 | F134: 420.03 | G134: 407.12 | H134: 396.38 | I134: 443.68 | J134: 454.42 | K134: 467.33 | L134: 441.5 | M134: 417.85 | N134: 9338750 | O134: -5.18%
A135: 131 | B135: Others | C135: MANAPPURAM | D135: 82.55 | E135: 81.55 | F135: 79.80 | G135: 77.05 | H135: 75.30 | I135: 84.30 | J135: 86.05 | K135: 88.80 | L135: 83.3 | M135: 78.8 | N135: 13872000 | O135: -1.87%
A136: 132 | B136: FMCG | C136: MARICO | D136: 337.60 | E136: 334.28 | F136: 324.32 | G136: 311.03 | H136: 301.07 | I136: 347.57 | J136: 357.53 | K136: 370.82 | L136: 344.25 | M136: 321 | N136: 7350200 | O136: 8.52%
A137: 133 | B137: Automobile | C137: MARUTI | D137: 7140.15 | E137: 7020.72 | F137: 6879.43 | G137: 6618.72 | H137: 6477.43 | I137: 7281.43 | J137: 7422.72 | K137: 7683.43 | L137: 7162 | M137: 6760 | N137: 2745450 | O137: -9.88%
A138: 134 | B138: FMCG | C138: MCDOWELL-N | D138: 618.50 | E138: 621.50 | F138: 611.40 | G138: 604.30 | H138: 594.20 | I138: 628.60 | J138: 638.70 | K138: 645.80 | L138: 631.6 | M138: 614.4 | N138: 10498750 | O138: -3.66%
A139: 135 | B139: Others | C139: MCX | D139: 709.55 | E139: 713.62 | F139: 702.23 | G139: 694.92 | H139: 683.53 | I139: 720.93 | J139: 732.32 | K139: 739.63 | L139: 725 | M139: 706.3 | N139: 3346700 | O139: -1.12%
A140: 136 | B140: Finance | C140: MFSL | D140: 408.90 | E140: 404.78 | F140: 396.12 | G140: 383.33 | H140: 374.67 | I140: 417.57 | J140: 426.23 | K140: 439.02 | L140: 413.45 | M140: 392 | N140: 2362800 | O140: 3.52%
A141: 137 | B141: Others | C141: MGL | D141: 846.05 | E141: 848.40 | F141: 836.60 | G141: 827.15 | H141: 815.35 | I141: 857.85 | J141: 869.65 | K141: 879.10 | L141: 860.2 | M141: 838.95 | N141: 1659600 | O141: -2.36%
A142: 138 | B142: Technology | C142: MINDTREE | D142: 806.20 | E142: 818.25 | F142: 791.20 | G142: 776.20 | H142: 749.15 | I142: 833.25 | J142: 860.30 | K142: 875.30 | L142: 845.3 | M142: 803.25 | N142: 4050000 | O142: -6.25%
A143: 139 | B143: Automobile | C143: MOTHERSUMI | D143: 172.55 | E143: 171.10 | F143: 162.90 | G143: 153.25 | H143: 145.05 | I143: 180.75 | J143: 188.95 | K143: 198.60 | L143: 179.3 | M143: 161.45 | N143: 23094150 | O143: -2.95%
A144: 140 | B144: Automobile | C144: MRF | D144: 66658.95 | E144: 66370.95 | F144: 65806.95 | G144: 64954.95 | H144: 64390.95 | I144: 67222.95 | J144: 67786.95 | K144: 68638.95 | L144: 66934.95 | M144: 65518.95 | N144: 21460 | O144: -1.42%
A145: 141 | B145: Others | C145: MRPL | D145: 83.20 | E145: 83.62 | F145: 81.63 | G145: 80.07 | H145: 78.08 | I145: 85.18 | J145: 87.17 | K145: 88.73 | L145: 85.6 | M145: 82.05 | N145: 4644000 | O145: 1.98%
A146: 142 | B146: Finance | C146: MUTHOOTFIN | D146: 433.90 | E146: 435.50 | F146: 427.30 | G146: 420.70 | H146: 412.50 | I146: 442.10 | J146: 450.30 | K146: 456.90 | L146: 443.7 | M146: 428.9 | N146: 1585500 | O146: -7.93%
A147: 143 | B147: Others | C147: NATIONALUM | D147: 69.70 | E147: 70.03 | F147: 68.72 | G147: 67.73 | H147: 66.42 | I147: 71.02 | J147: 72.33 | K147: 73.32 | L147: 71.35 | M147: 69.05 | N147: 30992000 | O147: -0.67%
A148: 144 | B148: Others | C148: NBCC | D148: 59.20 | E148: 59.80 | F148: 58.25 | G148: 57.30 | H148: 55.75 | I148: 60.75 | J148: 62.30 | K148: 63.25 | L148: 61.35 | M148: 58.85 | N148: 24230000 | O148: -0.39%
A149: 145 | B149: Infrastructure | C149: NCC | D149: 79.90 | E149: 80.40 | F149: 78.35 | G149: 76.80 | H149: 74.75 | I149: 81.95 | J149: 84.00 | K149: 85.55 | L149: 82.45 | M149: 78.85 | N149: 44112000 | O149: -1.25%
A150: 146 | B150: Others | C150: NESTLEIND | D150: 10239.35 | E150: 10207.38 | F150: 10041.42 | G150: 9843.48 | H150: 9677.52 | I150: 10405.32 | J150: 10571.28 | K150: 10769.22 | L150: 10373.35 | M150: 10009.45 | N150: 336100 | O150: -6.76%
A151: 147 | B151: Power | C151: NHPC | D151: 24.35 | E151: 24.45 | F151: 24.20 | G151: 24.05 | H151: 23.80 | I151: 24.60 | J151: 24.85 | K151: 25.00 | L151: 24.7 | M151: 24.3 | N151: 19818000 | O151: 2.37%
A152: 148 | B152: Technology | C152: NIITTECH | D152: 1191.35 | E152: 1196.48 | F152: 1176.57 | G152: 1161.78 | H152: 1141.87 | I152: 1211.27 | J152: 1231.18 | K152: 1245.97 | L152: 1216.4 | M152: 1181.7 | N152: 1414500 | O152: -1.67%
A153: 149 | B153: Metals | C153: NMDC | D153: 115.10 | E153: 115.65 | F153: 113.00 | G153: 110.90 | H153: 108.25 | I153: 117.75 | J153: 120.40 | K153: 122.50 | L153: 118.3 | M153: 113.55 | N153: 19386000 | O153: 0.53%
A154: 150 | B154: Power | C154: NTPC | D154: 158.85 | E154: 158.47 | F154: 156.78 | G154: 154.72 | H154: 153.03 | I154: 160.53 | J154: 162.22 | K154: 164.28 | L154: 160.15 | M154: 156.4 | N154: 32396000 | O154: -1.58%
A155: 151 | B155: Technology | C155: OFSS | D155: 3561.35 | E155: 3566.10 | F155: 3498.25 | G155: 3435.15 | H155: 3367.30 | I155: 3629.20 | J155: 3697.05 | K155: 3760.15 | L155: 3633.95 | M155: 3503 | N155: 229050 | O155: -0.65%
A156: 152 | B156: Oil_Gas | C156: OIL | D156: 201.40 | E156: 202.62 | F156: 199.23 | G156: 197.07 | H156: 193.68 | I156: 204.78 | J156: 208.17 | K156: 210.33 | L156: 206 | M156: 200.45 | N156: 2508462 | O156: 0.54%
A157: 153 | B157: Oil_Gas | C157: ONGC | D157: 155.40 | E157: 155.18 | F157: 153.77 | G157: 152.13 | H157: 150.72 | I157: 156.82 | J157: 158.23 | K157: 159.87 | L157: 156.6 | M157: 153.55 | N157: 40275000 | O157: -2.44%
A158: 154 | B158: Banking | C158: ORIENTBANK | D158: 79.20 | E158: 80.63 | F158: 76.57 | G158: 73.93 | H158: 69.87 | I158: 83.27 | J158: 87.33 | K158: 89.97 | L158: 84.7 | M158: 78 | N158: 9907000 | O158: -0.59%
A159: 155 | B159: Textile | C159: PAGEIND | D159: 28835.70 | E159: 28941.90 | F159: 28503.80 | G159: 28171.90 | H159: 27733.80 | I159: 29273.80 | J159: 29711.90 | K159: 30043.80 | L159: 29380 | M159: 28610 | N159: 107875 | O159: 0.98%
A160: 156 | B160: Others | C160: PCJEWELLER | D160: 88.60 | E160: 84.25 | F160: 77.90 | G160: 67.20 | H160: 60.85 | I160: 94.95 | J160: 101.30 | K160: 112.00 | L160: 90.6 | M160: 73.55 | N160: 8211500 | O160: -13.52%
A161: 157 | B161: Pharma | C161: PEL | D161: 2160.30 | E161: 2173.83 | F161: 2133.67 | G161: 2107.03 | H161: 2066.87 | I161: 2200.47 | J161: 2240.63 | K161: 2267.27 | L161: 2214 | M161: 2147.2 | N161: 3310826 | O161: -0.42%
A162: 158 | B162: Oil_Gas | C162: PETRONET | D162: 219.05 | E162: 220.92 | F162: 214.23 | G162: 209.42 | H162: 202.73 | I162: 225.73 | J162: 232.42 | K162: 237.23 | L162: 227.6 | M162: 216.1 | N162: 10683000 | O162: 3.70%
A163: 159 | B163: Finance | C163: PFC | D163: 94.05 | E163: 94.82 | F163: 92.33 | G163: 90.62 | H163: 88.13 | I163: 96.53 | J163: 99.02 | K163: 100.73 | L163: 97.3 | M163: 93.1 | N163: 30889800 | O163: -1.53%
A164: 160 | B164: FMCG | C164: PIDILITIND | D164: 986.45 | E164: 988.27 | F164: 973.58 | G164: 960.72 | H164: 946.03 | I164: 1001.13 | J164: 1015.82 | K164: 1028.68 | L164: 1002.95 | M164: 975.4 | N164: 3055500 | O164: 5.58%
A165: 161 | B165: Banking | C165: PNB | D165: 69.05 | E165: 72.03 | F165: 65.07 | G165: 61.08 | H165: 54.12 | I165: 76.02 | J165: 82.98 | K165: 86.97 | L165: 79 | M165: 68.05 | N165: 106529500 | O165: 3.31%
A166: 162 | B166: Power | C166: POWERGRID | D166: 190.70 | E166: 191.18 | F166: 189.22 | G166: 187.73 | H166: 185.77 | I166: 192.67 | J166: 194.63 | K166: 196.12 | L166: 193.15 | M166: 189.7 | N166: 36628000 | O166: -1.92%
A167: 163 | B167: Power | C167: PTC | D167: 79.45 | E167: 79.92 | F167: 78.03 | G167: 76.62 | H167: 74.73 | I167: 81.33 | J167: 83.22 | K167: 84.63 | L167: 81.8 | M167: 78.5 | N167: 9256000 | O167: -0.86%
A168: 164 | B168: Others | C168: PVR | D168: 1402.90 | E168: 1397.53 | F168: 1385.17 | G168: 1367.43 | H168: 1355.07 | I168: 1415.27 | J168: 1427.63 | K168: 1445.37 | L168: 1409.9 | M168: 1379.8 | N168: 1216400 | O168: 1.60%
A169: 165 | B169: Cement | C169: RAMCOCEM | D169: 606.20 | E169: 608.97 | F169: 595.53 | G169: 584.87 | H169: 571.43 | I169: 619.63 | J169: 633.07 | K169: 643.73 | L169: 622.4 | M169: 598.3 | N169: 776000 | O169: 2.75%
A170: 166 | B170: Others | C170: RAYMOND | D170: 760.80 | E170: 766.47 | F170: 747.33 | G170: 733.87 | H170: 714.73 | I170: 779.93 | J170: 799.07 | K170: 812.53 | L170: 785.6 | M170: 753 | N170: 4056800 | O170: -2.18%
A171: 167 | B171: Banking | C171: RBLBANK | D171: 522.90 | E171: 525.00 | F171: 516.70 | G171: 510.50 | H171: 502.20 | I171: 531.20 | J171: 539.50 | K171: 545.70 | L171: 533.3 | M171: 518.8 | N171: 6261600 | O171: -2.23%
A172: 168 | B172: Telecom | C172: RCOM | D172: 14.25 | E172: 14.50 | F172: 13.70 | G172: 13.15 | H172: 12.35 | I172: 15.05 | J172: 15.85 | K172: 16.40 | L172: 15.3 | M172: 13.95 | N172: 75488000 | O172: -6.00%
A173: 169 | B173: Power | C173: RECLTD | D173: 118.85 | E173: 119.07 | F173: 117.63 | G173: 116.42 | H173: 114.98 | I173: 120.28 | J173: 121.72 | K173: 122.93 | L173: 120.5 | M173: 117.85 | N173: 33144000 | O173: -2.21%
A174: 170 | B174: Finance | C174: RELCAPITAL | D174: 253.85 | E174: 256.55 | F174: 249.80 | G174: 245.75 | H174: 239.00 | I174: 260.60 | J174: 267.35 | K174: 271.40 | L174: 263.3 | M174: 252.5 | N174: 11670000 | O174: -3.52%
A175: 171 | B175: Oil_Gas | C175: RELIANCE | D175: 1079.70 | E175: 1077.87 | F175: 1068.73 | G175: 1057.77 | H175: 1048.63 | I175: 1088.83 | J175: 1097.97 | K175: 1108.93 | L175: 1087 | M175: 1066.9 | N175: 48095500 | O175: -0.93%
A176: 172 | B176: Power | C176: RELINFRA | D176: 375.30 | E176: 373.63 | F176: 364.82 | G176: 354.33 | H176: 345.52 | I176: 384.12 | J176: 392.93 | K176: 403.42 | L176: 382.45 | M176: 363.15 | N176: 6002100 | O176: -4.13%
A177: 173 | B177: Others | C177: REPCOHOME | D177: 405.80 | E177: 402.13 | F177: 393.27 | G177: 380.73 | H177: 371.87 | I177: 414.67 | J177: 423.53 | K177: 436.07 | L177: 411 | M177: 389.6 | N177: 525600 | O177: -4.89%
A178: 174 | B178: Power | C178: RPOWER | D178: 31.45 | E178: 31.63 | F178: 31.07 | G178: 30.68 | H178: 30.12 | I178: 32.02 | J178: 32.58 | K178: 32.97 | L178: 32.2 | M178: 31.25 | N178: 43350000 | O178: 1.31%
A179: 175 | B179: Metals | C179: SAIL | D179: 69.85 | E179: 69.53 | F179: 67.72 | G179: 65.58 | H179: 63.77 | I179: 71.67 | J179: 73.48 | K179: 75.62 | L179: 71.35 | M179: 67.4 | N179: 71028000 | O179: 1.84%
A180: 176 | B180: Banking | C180: SBIN | D180: 285.60 | E180: 287.22 | F180: 281.73 | G180: 277.87 | H180: 272.38 | I180: 291.08 | J180: 296.57 | K180: 300.43 | L180: 292.7 | M180: 283.35 | N180: 90105000 | O180: -2.98%
A181: 177 | B181: Cement | C181: SHREECEM | D181: 14779.70 | E181: 14645.88 | F181: 14193.82 | G181: 13607.93 | H181: 13155.87 | I181: 15231.77 | J181: 15683.83 | K181: 16269.72 | L181: 15097.95 | M181: 14060 | N181: 126450 | O181: -9.13%
A182: 178 | B182: Capital_Goods | C182: SIEMENS | D182: 958.95 | E182: 958.50 | F182: 949.00 | G182: 939.05 | H182: 929.55 | I182: 968.45 | J182: 977.95 | K182: 987.90 | L182: 968 | M182: 948.55 | N182: 1102000 | O182: -3.33%
A183: 179 | B183: Banking | C183: SOUTHBANK | D183: 14.80 | E183: 14.90 | F183: 14.60 | G183: 14.40 | H183: 14.10 | I183: 15.10 | J183: 15.40 | K183: 15.60 | L183: 15.2 | M183: 14.7 | N183: 126896889 | O183: -0.44%
A184: 180 | B184: Others | C184: SREINFRA | D184: 35.55 | E184: 36.00 | F184: 34.60 | G184: 33.65 | H184: 32.25 | I184: 36.95 | J184: 38.35 | K184: 39.30 | L184: 37.4 | M184: 35.05 | N184: 10360000 | O184: -6.21%
A185: 181 | B185: Textile | C185: SRF | D185: 1955.20 | E185: 1978.07 | F185: 1905.13 | G185: 1855.07 | H185: 1782.13 | I185: 2028.13 | J185: 2101.07 | K185: 2151.13 | L185: 2051 | M185: 1928 | N185: 690500 | O185: 15.37%
A186: 182 | B186: Finance | C186: SRTRANSFIN | D186: 1251.15 | E186: 1242.20 | F186: 1222.55 | G186: 1193.95 | H186: 1174.30 | I186: 1270.80 | J186: 1290.45 | K186: 1319.05 | L186: 1261.85 | M186: 1213.6 | N186: 3541800 | O186: -4.02%
A187: 183 | B187: Pharma | C187: STAR | D187: 420.35 | E187: 424.25 | F187: 413.75 | G187: 407.15 | H187: 396.65 | I187: 430.85 | J187: 441.35 | K187: 447.95 | L187: 434.75 | M187: 417.65 | N187: 3418400 | O187: -1.93%
A188: 184 | B188: Pharma | C188: SUNPHARMA | D188: 573.35 | E188: 574.20 | F188: 568.45 | G188: 563.55 | H188: 557.80 | I188: 579.10 | J188: 584.85 | K188: 589.75 | L188: 579.95 | M188: 569.3 | N188: 28486700 | O188: -1.57%
A189: 185 | B189: Media | C189: SUNTV | D189: 665.10 | E189: 668.65 | F189: 653.60 | G189: 642.10 | H189: 627.05 | I189: 680.15 | J189: 695.20 | K189: 706.70 | L189: 683.7 | M189: 657.15 | N189: 6907000 | O189: 2.37%
A190: 186 | B190: Power | C190: SUZLON | D190: 6.40 | E190: 6.43 | F190: 6.32 | G190: 6.23 | H190: 6.12 | I190: 6.52 | J190: 6.63 | K190: 6.72 | L190: 6.55 | M190: 6.35 | N190: 288533000 | O190: 0.68%
A191: 187 | B191: Banking | C191: SYNDIBANK | D191: 34.55 | E191: 34.85 | F191: 34.00 | G191: 33.45 | H191: 32.60 | I191: 35.40 | J191: 36.25 | K191: 36.80 | L191: 35.7 | M191: 34.3 | N191: 23256000 | O191: -6.44%
A192: 188 | B192: Fertilisers | C192: TATACHEM | D192: 697.45 | E192: 700.90 | F192: 688.80 | G192: 680.15 | H192: 668.05 | I192: 709.55 | J192: 721.65 | K192: 730.30 | L192: 713 | M192: 692.25 | N192: 2298750 | O192: -4.16%
A193: 189 | B193: Telecom | C193: TATACOMM | D193: 491.10 | E193: 492.03 | F193: 474.07 | G193: 457.03 | H193: 439.07 | I193: 509.07 | J193: 527.03 | K193: 544.07 | L193: 510 | M193: 475 | N193: 3096000 | O193: -1.05%
A194: 190 | B194: Technology | C194: TATAELXSI | D194: 1051.80 | E194: 1060.50 | F194: 1033.15 | G194: 1014.50 | H194: 987.15 | I194: 1079.15 | J194: 1106.50 | K194: 1125.15 | L194: 1087.85 | M194: 1041.85 | N194: 1171600 | O194: -1.84%
A195: 191 | B195: FMCG | C195: TATAGLOBAL | D195: 218.35 | E195: 219.82 | F195: 215.98 | G195: 213.62 | H195: 209.78 | I195: 222.18 | J195: 226.02 | K195: 228.38 | L195: 223.65 | M195: 217.45 | N195: 11301750 | O195: 2.53%
A196: 192 | B196: Automobile | C196: TATAMOTORS | D196: 190.30 | E196: 187.98 | F196: 183.97 | G196: 177.63 | H196: 173.62 | I196: 194.32 | J196: 198.33 | K196: 204.67 | L196: 192 | M196: 181.65 | N196: 64943000 | O196: -0.85%
A197: 193 | B197: Automobile | C197: TATAMTRDVR | D197: 103.10 | E197: 101.85 | F197: 99.90 | G197: 96.70 | H197: 94.75 | I197: 105.05 | J197: 107.00 | K197: 110.20 | L197: 103.8 | M197: 98.65 | N197: 26904000 | O197: 1.00%
A198: 194 | B198: Power | C198: TATAPOWER | D198: 76.35 | E198: 77.25 | F198: 74.60 | G198: 72.85 | H198: 70.20 | I198: 79.00 | J198: 81.65 | K198: 83.40 | L198: 79.9 | M198: 75.5 | N198: 51939000 | O198: 0.00%
A199: 195 | B199: Metals | C199: TATASTEEL | D199: 577.00 | E199: 575.23 | F199: 564.82 | G199: 552.63 | H199: 542.22 | I199: 587.42 | J199: 597.83 | K199: 610.02 | L199: 585.65 | M199: 563.05 | N199: 32921769 | O199: 3.01%
A200: 196 | B200: Technology | C200: TCS | D200: 1918.30 | E200: 1928.80 | F200: 1898.60 | G200: 1878.90 | H200: 1848.70 | I200: 1948.50 | J200: 1978.70 | K200: 1998.40 | L200: 1959 | M200: 1909.1 | N200: 9785500 | O200: 0.71%
A201: 197 | B201: Technology | C201: TECHM | D201: 694.65 | E201: 704.92 | F201: 681.08 | G201: 667.52 | H201: 643.68 | I201: 718.48 | J201: 742.32 | K201: 755.88 | L201: 728.75 | M201: 691.35 | N201: 14470800 | O201: 1.22%
A202: 198 | B202: FMCG | C202: TITAN | D202: 872.00 | E202: 871.35 | F202: 858.45 | G202: 844.90 | H202: 832.00 | I202: 884.90 | J202: 897.80 | K202: 911.35 | L202: 884.25 | M202: 857.8 | N202: 13729500 | O202: -1.13%
A203: 199 | B203: Pharma | C203: TORNTPHARM | D203: 1636.35 | E203: 1666.38 | F203: 1593.27 | G203: 1550.18 | H203: 1477.07 | I203: 1709.47 | J203: 1782.58 | K203: 1825.67 | L203: 1739.5 | M203: 1623.3 | N203: 406000 | O203: -4.13%
A204: 200 | B204: Power | C204: TORNTPOWER | D204: 257.70 | E204: 258.58 | F204: 254.72 | G204: 251.73 | H204: 247.87 | I204: 261.57 | J204: 265.43 | K204: 268.42 | L204: 262.45 | M204: 255.6 | N204: 2445000 | O204: 5.03%
A205: 201 | B205: Media | C205: TV18BRDCST | D205: 38.10 | E205: 38.37 | F205: 37.53 | G205: 36.97 | H205: 36.13 | I205: 38.93 | J205: 39.77 | K205: 40.33 | L205: 39.2 | M205: 37.8 | N205: 46580000 | O205: -0.22%
A206: 202 | B206: Automobile | C206: TVSMOTOR | D206: 555.90 | E206: 557.28 | F206: 547.42 | G206: 538.93 | H206: 529.07 | I206: 565.77 | J206: 575.63 | K206: 584.12 | L206: 567.15 | M206: 548.8 | N206: 8056000 | O206: -3.87%
... 30 more rows

Sheet Cash Intra
M5: Back to Main Page
A6: FOR INTRA DAY TRADING | K6: =Main!B10 -> 2018-11-05
A8: Sr.no | B8: Scrip | C8: CLOSE RATE | D8: Pivot Point | E8: Supports | H8: Resistances
C9: Point | E9: S1 | F9: S2 | G9: S3 | H9: R1 | I9: R2 | J9: R3 | K9: HIGH | L9: LOW | M9: Total Trade Quanity in Lakhs
A10: 1 | B10: Nifty 50 | C10: 10553 | D10: 10539.22 | E10: 10471.48 | F10: 10389.97 | G10: 10322.23 | H10: 10620.73 | I10: 10688.47 | J10: 10769.98 | K10: 10606.95 | L10: 10457.7
A11: 2 | B11: Nifty Bank | C11: 25701.65 | D11: 25685.68 | E11: 25515.12 | F11: 25328.58 | G11: 25158.02 | H11: 25872.22 | I11: 26042.78 | J11: 26229.32 | K11: 25856.25 | L11: 25499.15
A12: 3 | B12: Nifty CPSE | C12: 2179.05 | D12: 2181.73 | E12: 2165.82 | F12: 2152.58 | G12: 2136.67 | H12: 2194.97 | I12: 2210.88 | J12: 2224.12 | K12: 2197.65 | L12: 2168.5
A13: 4 | B13: Nifty Infra | C13: 3059.85 | D13: 3054.87 | E13: 3029.38 | F13: 2998.92 | G13: 2973.43 | H13: 3085.33 | I13: 3110.82 | J13: 3141.28 | K13: 3080.35 | L13: 3024.4
A14: 5 | B14: Nifty IT | C14: 14396.7 | D14: 14510.97 | E14: 14241.83 | F14: 14086.97 | G14: 13817.83 | H14: 14665.83 | I14: 14934.97 | J14: 15089.83 | K14: 14780.1 | L14: 14356.1
A15: 6 | B15: Nifty PSE | C15: 3466 | D15: 3464.65 | E15: 3441.10 | F15: 3416.20 | G15: 3392.65 | H15: 3489.55 | I15: 3513.10 | J15: 3538.00 | K15: 3488.2 | L15: 3439.75
A16: 7 | B16: Nifty Midcap 50 | C16: 4781.5 | D16: 4807.50 | E16: 4739.90 | F16: 4698.30 | G16: 4630.70 | H16: 4849.10 | I16: 4916.70 | J16: 4958.30 | K16: 4875.1 | L16: 4765.9
A17: 8 | B17: ABB | C17: 1318.15 | D17: 1334.13 | E17: 1292.27 | F17: 1266.38 | G17: 1224.52 | H17: 1360.02 | I17: 1401.88 | J17: 1427.77 | K17: 1376 | L17: 1308.25 | M17: 1.84826
A18: 9 | B18: ACC | C18: 1451.5 | D18: 1445.50 | E18: 1417.00 | F18: 1382.50 | G18: 1354.00 | H18: 1480.00 | I18: 1508.50 | J18: 1543.00 | K18: 1474 | L18: 1411 | M18: 6.54747
A19: 10 | B19: AIAENG | C19: 1708.65 | D19: 1695.38 | E19: 1657.77 | F19: 1606.88 | G19: 1569.27 | H19: 1746.27 | I19: 1783.88 | J19: 1834.77 | K19: 1733 | L19: 1644.5 | M19: 2.29921
A20: 11 | B20: AUBANK | C20: 559.65 | D20: 560.47 | E20: 552.18 | F20: 544.72 | G20: 536.43 | H20: 567.93 | I20: 576.22 | J20: 583.68 | K20: 568.75 | L20: 553 | M20: 1.24955
A21: 12 | B21: ADANIENT | C21: 175.6 | D21: 176.30 | E21: 173.10 | F21: 170.60 | G21: 167.40 | H21: 178.80 | I21: 182.00 | J21: 184.50 | K21: 179.5 | L21: 173.8 | M21: 68.39045
A22: 13 | B22: ADANIPORTS | C22: 333.6 | D22: 331.05 | E22: 321.95 | F22: 310.30 | G22: 301.20 | H22: 342.70 | I22: 351.80 | J22: 363.45 | K22: 340.15 | L22: 319.4 | M22: 73.87791
A23: 14 | B23: ADANIPOWER | C23: 49.85 | D23: 50.42 | E23: 48.08 | F23: 46.32 | G23: 43.98 | H23: 52.18 | I23: 54.52 | J23: 56.28 | K23: 52.75 | L23: 48.65 | M23: 608.09218
A24: 15 | B24: ABFRL | C24: 193.15 | D24: 193.55 | E24: 187.15 | F24: 181.15 | G24: 174.75 | H24: 199.55 | I24: 205.95 | J24: 211.95 | K24: 199.95 | L24: 187.55 | M24: 40.58147
A25: 16 | B25: AJANTPHARM | C25: 1085.3 | D25: 1088.57 | E25: 1072.23 | F25: 1059.17 | G25: 1042.83 | H25: 1101.63 | I25: 1117.97 | J25: 1131.03 | K25: 1104.9 | L25: 1075.5 | M25: 4.43283
A26: 17 | B26: ALKEM | C26: 1908.9 | D26: 1902.62 | E26: 1866.28 | F26: 1823.67 | G26: 1787.33 | H26: 1945.23 | I26: 1981.57 | J26: 2024.18 | K26: 1938.95 | L26: 1860 | M26: 0.63742
A27: 18 | B27: AMARAJABAT | C27: 790.8 | D27: 779.33 | E27: 762.67 | F27: 734.53 | G27: 717.87 | H27: 807.47 | I27: 824.13 | J27: 852.27 | K27: 796 | L27: 751.2 | M27: 8.62815
A28: 19 | B28: AMBUJACEM | C28: 204.05 | D28: 204.48 | E28: 200.97 | F28: 197.88 | G28: 194.37 | H28: 207.57 | I28: 211.08 | J28: 214.17 | K28: 208 | L28: 201.4 | M28: 41.74804
A29: 20 | B29: APOLLOHOSP | C29: 1153.8 | D29: 1165.35 | E29: 1126.95 | F29: 1100.10 | G29: 1061.70 | H29: 1192.20 | I29: 1230.60 | J29: 1257.45 | K29: 1203.75 | L29: 1138.5 | M29: 7.13553
A30: 21 | B30: APOLLOTYRE | C30: 220.7 | D30: 223.10 | E30: 216.70 | F30: 212.70 | G30: 206.30 | H30: 227.10 | I30: 233.50 | J30: 237.50 | K30: 229.5 | L30: 219.1 | M30: 43.6213
A31: 22 | B31: ARVIND | C31: 326.85 | D31: 333.28 | E31: 318.62 | F31: 310.38 | G31: 295.72 | H31: 341.52 | I31: 356.18 | J31: 364.42 | K31: 347.95 | L31: 325.05 | M31: 42.36818
A32: 23 | B32: ASHOKLEY | C32: 117.7 | D32: 116.65 | E32: 114.85 | F32: 112.00 | G32: 110.20 | H32: 119.50 | I32: 121.30 | J32: 124.15 | K32: 118.45 | L32: 113.8 | M32: 244.71836
A33: 24 | B33: ASIANPAINT | C33: 1247 | D33: 1259.93 | E33: 1228.32 | F33: 1209.63 | G33: 1178.02 | H33: 1278.62 | I33: 1310.23 | J33: 1328.92 | K33: 1291.55 | L33: 1241.25 | M33: 22.35848
A34: 25 | B34: AUROPHARMA | C34: 781.4 | D34: 784.77 | E34: 774.53 | F34: 767.67 | G34: 757.43 | H34: 791.63 | I34: 801.87 | J34: 808.73 | K34: 795 | L34: 777.9 | M34: 20.18433
A35: 26 | B35: DMART | C35: 1462.5 | D35: 1437.77 | E35: 1392.73 | F35: 1322.97 | G35: 1277.93 | H35: 1507.53 | I35: 1552.57 | J35: 1622.33 | K35: 1482.8 | L35: 1368 | M35: 17.6102
A36: 27 | B36: AXISBANK | C36: 610.65 | D36: 611.22 | E36: 604.53 | F36: 598.42 | G36: 591.73 | H36: 617.33 | I36: 624.02 | J36: 630.13 | K36: 617.9 | L36: 605.1 | M36: 124.88669
A37: 28 | B37: BAJAJ-AUTO | C37: 2657.75 | D37: 2659.25 | E37: 2618.50 | F37: 2579.25 | G37: 2538.50 | H37: 2698.50 | I37: 2739.25 | J37: 2778.50 | K37: 2700 | L37: 2620 | M37: 7.69311
A38: 29 | B38: BAJFINANCE | C38: 2383.3 | D38: 2407.73 | E38: 2340.57 | F38: 2297.83 | G38: 2230.67 | H38: 2450.47 | I38: 2517.63 | J38: 2560.37 | K38: 2474.9 | L38: 2365 | M38: 23.67117
A39: 30 | B39: BAJAJFINSV | C39: 5525.3 | D39: 5514.70 | E39: 5405.60 | F39: 5285.90 | G39: 5176.80 | H39: 5634.40 | I39: 5743.50 | J39: 5863.20 | K39: 5623.8 | L39: 5395 | M39: 4.14185
A40: 31 | B40: BALKRISIND | C40: 1112.8 | D40: 1135.87 | E40: 1082.08 | F40: 1051.37 | G40: 997.58 | H40: 1166.58 | I40: 1220.37 | J40: 1251.08 | K40: 1189.65 | L40: 1105.15 | M40: 10.99918
A41: 32 | B41: BANKBARODA | C41: 109.9 | D41: 110.58 | E41: 107.72 | F41: 105.53 | G41: 102.67 | H41: 112.77 | I41: 115.63 | J41: 117.82 | K41: 113.45 | L41: 108.4 | M41: 381.12597
A42: 33 | B42: BANKINDIA | C42: 84.25 | D42: 86.17 | E42: 81.88 | F42: 79.52 | G42: 75.23 | H42: 88.53 | I42: 92.82 | J42: 95.18 | K42: 90.45 | L42: 83.8 | M42: 104.94652
A43: 34 | B43: BATAINDIA | C43: 1006.65 | D43: 1007.22 | E43: 986.78 | F43: 966.92 | G43: 946.48 | H43: 1027.08 | I43: 1047.52 | J43: 1067.38 | K43: 1027.65 | L43: 987.35 | M43: 21.18491
A44: 35 | B44: BERGEPAINT | C44: 304.4 | D44: 307.27 | E44: 297.13 | F44: 289.87 | G44: 279.73 | H44: 314.53 | I44: 324.67 | J44: 331.93 | K44: 317.4 | L44: 300 | M44: 33.64564
A45: 36 | B45: BEL | C45: 95 | D45: 96.15 | E45: 93.40 | F45: 91.80 | G45: 89.05 | H45: 97.75 | I45: 100.50 | J45: 102.10 | K45: 98.9 | L45: 94.55 | M45: 68.39887
A46: 37 | B46: BHARATFIN | C46: 952.9 | D46: 941.97 | E46: 925.93 | F46: 898.97 | G46: 882.93 | H46: 968.93 | I46: 984.97 | J46: 1011.93 | K46: 958 | L46: 915 | M46: 20.42625
A47: 38 | B47: BHARATFORG | C47: 607.25 | D47: 609.00 | E47: 580.70 | F47: 554.15 | G47: 525.85 | H47: 635.55 | I47: 663.85 | J47: 690.40 | K47: 637.3 | L47: 582.45 | M47: 43.09509
A48: 39 | B48: BHEL | C48: 73 | D48: 72.57 | E48: 71.18 | F48: 69.37 | G48: 67.98 | H48: 74.38 | I48: 75.77 | J48: 77.58 | K48: 73.95 | L48: 70.75 | M48: 250.54634
A49: 40 | B49: BPCL | C49: 302.35 | D49: 300.85 | E49: 293.70 | F49: 285.05 | G49: 277.90 | H49: 309.50 | I49: 316.65 | J49: 325.30 | K49: 308 | L49: 292.2 | M49: 171.32661
A50: 41 | B50: BHARTIARTL | C50: 302.05 | D50: 301.12 | E50: 294.43 | F50: 286.82 | G50: 280.13 | H50: 308.73 | I50: 315.42 | J50: 323.03 | K50: 307.8 | L50: 293.5 | M50: 44.25655
A51: 42 | B51: INFRATEL | C51: 262.3 | D51: 262.43 | E51: 260.12 | F51: 257.93 | G51: 255.62 | H51: 264.62 | I51: 266.93 | J51: 269.12 | K51: 264.75 | L51: 260.25 | M51: 16.87971
A52: 43 | B52: BIOCON | C52: 631 | D52: 637.12 | E52: 621.48 | F52: 611.97 | G52: 596.33 | H52: 646.63 | I52: 662.27 | J52: 671.78 | K52: 652.75 | L52: 627.6 | M52: 19.7067
A53: 44 | B53: BOSCHLTD | C53: 19625.45 | D53: 19805.12 | E53: 19110.23 | F53: 18595.02 | G53: 17900.13 | H53: 20320.33 | I53: 21015.22 | J53: 21530.43 | K53: 20500 | L53: 19289.9 | M53: 0.31948
A54: 45 | B54: BRITANNIA | C54: 5601 | D54: 5635.33 | E54: 5545.67 | F54: 5490.33 | G54: 5400.67 | H54: 5690.67 | I54: 5780.33 | J54: 5835.67 | K54: 5725 | L54: 5580 | M54: 1.26788
A55: 46 | B55: CRISIL | C55: 1502.5 | D55: 1495.25 | E55: 1465.50 | F55: 1428.50 | G55: 1398.75 | H55: 1532.25 | I55: 1562.00 | J55: 1599.00 | K55: 1525 | L55: 1458.25 | M55: 0.08807
A56: 47 | B56: CADILAHC | C56: 358.85 | D56: 360.35 | E56: 354.90 | F56: 350.95 | G56: 345.50 | H56: 364.30 | I56: 369.75 | J56: 373.70 | K56: 365.8 | L56: 356.4 | M56: 8.03123
A57: 48 | B57: CANBK | C57: 243.5 | D57: 247.60 | E57: 238.00 | F57: 232.50 | G57: 222.90 | H57: 253.10 | I57: 262.70 | J57: 268.20 | K57: 257.2 | L57: 242.1 | M57: 104.41779
A58: 49 | B58: CASTROLIND | C58: 146.35 | D58: 147.50 | E58: 143.85 | F58: 141.35 | G58: 137.70 | H58: 150.00 | I58: 153.65 | J58: 156.15 | K58: 151.15 | L58: 145 | M58: 18.02083
A59: 50 | B59: CENTRALBK | C59: 31.7 | D59: 31.82 | E59: 31.23 | F59: 30.77 | G59: 30.18 | H59: 32.28 | I59: 32.87 | J59: 33.33 | K59: 32.4 | L59: 31.35 | M59: 8.62747
A60: 51 | B60: CENTURYTEX | C60: 852.2 | D60: 855.02 | E60: 838.18 | F60: 824.17 | G60: 807.33 | H60: 869.03 | I60: 885.87 | J60: 899.88 | K60: 871.85 | L60: 841 | M60: 8.76522
A61: 52 | B61: CHOLAFIN | C61: 1323.2 | D61: 1333.72 | E61: 1277.53 | F61: 1231.87 | G61: 1175.68 | H61: 1379.38 | I61: 1435.57 | J61: 1481.23 | K61: 1389.9 | L61: 1288.05 | M61: 5.2732
A62: 53 | B62: CIPLA | C62: 607.1 | D62: 610.85 | E62: 601.75 | F62: 596.40 | G62: 587.30 | H62: 616.20 | I62: 625.30 | J62: 630.65 | K62: 619.95 | L62: 605.5 | M62: 15.66053
A63: 54 | B63: COALINDIA | C63: 261.55 | D63: 261.65 | E63: 258.80 | F63: 256.05 | G63: 253.20 | H63: 264.40 | I63: 267.25 | J63: 270.00 | K63: 264.5 | L63: 258.9 | M63: 381.31025
A64: 55 | B64: COLPAL | C64: 1108.1 | D64: 1109.52 | E64: 1099.58 | F64: 1091.07 | G64: 1081.13 | H64: 1118.03 | I64: 1127.97 | J64: 1136.48 | K64: 1119.45 | L64: 1101 | M64: 5.5153
A65: 56 | B65: CONCOR | C65: 659.65 | D65: 662.03 | E65: 652.47 | F65: 645.28 | G65: 635.72 | H65: 669.22 | I65: 678.78 | J65: 685.97 | K65: 671.6 | L65: 654.85 | M65: 5.99185
A66: 57 | B66: COROMANDEL | C66: 424.75 | D66: 423.67 | E66: 419.38 | F66: 414.02 | G66: 409.73 | H66: 429.03 | I66: 433.32 | J66: 438.68 | K66: 427.95 | L66: 418.3 | M66: 0.62551
A67: 58 | B67: CROMPTON | C67: 218.3 | D67: 217.13 | E67: 214.42 | F67: 210.53 | G67: 207.82 | H67: 221.02 | I67: 223.73 | J67: 227.62 | K67: 219.85 | L67: 213.25 | M67: 5.63869
A68: 59 | B68: CUMMINSIND | C68: 768.3 | D68: 766.65 | E68: 749.70 | F68: 731.10 | G68: 714.15 | H68: 785.25 | I68: 802.20 | J68: 820.80 | K68: 783.6 | L68: 748.05 | M68: 9.71369
A69: 60 | B69: DLF | C69: 169.95 | D69: 172.32 | E69: 165.73 | F69: 161.52 | G69: 154.93 | H69: 176.53 | I69: 183.12 | J69: 187.33 | K69: 178.9 | L69: 168.1 | M69: 120.42541
A70: 61 | B70: DABUR | C70: 369.45 | D70: 369.93 | E70: 364.97 | F70: 360.48 | G70: 355.52 | H70: 374.42 | I70: 379.38 | J70: 383.87 | K70: 374.9 | L70: 365.45 | M70: 61.69192
A71: 62 | B71: DALMIABHA | C71: 2178.4 | D71: 2182.27 | E71: 2130.58 | F71: 2082.77 | G71: 2031.08 | H71: 2230.08 | I71: 2281.77 | J71: 2329.58 | K71: 2233.95 | L71: 2134.45 | M71: 1.52836
A72: 63 | B72: DHFL | C72: 231.4 | D72: 232.63 | E72: 225.27 | F72: 219.13 | G72: 211.77 | H72: 238.77 | I72: 246.13 | J72: 252.27 | K72: 240 | L72: 226.5 | M72: 241.38633
A73: 64 | B73: DISHTV | C73: 43.15 | D73: 43.40 | E73: 42.55 | F73: 41.95 | G73: 41.10 | H73: 44.00 | I73: 44.85 | J73: 45.45 | K73: 44.25 | L73: 42.8 | M73: 29.3581
A74: 65 | B74: DIVISLAB | C74: 1499.25 | D74: 1503.12 | E74: 1482.28 | F74: 1465.32 | G74: 1444.48 | H74: 1520.08 | I74: 1540.92 | J74: 1557.88 | K74: 1523.95 | L74: 1486.15 | M74: 9.24743
A75: 66 | B75: LALPATHLAB | C75: 887.45 | D75: 882.77 | E75: 874.68 | F75: 861.92 | G75: 853.83 | H75: 895.53 | I75: 903.62 | J75: 916.38 | K75: 890.85 | L75: 870 | M75: 1.66278
A76: 67 | B76: DRREDDY | C76: 2423.25 | D76: 2434.23 | E76: 2392.57 | F76: 2361.88 | G76: 2320.22 | H76: 2464.92 | I76: 2506.58 | J76: 2537.27 | K76: 2475.9 | L76: 2403.55 | M76: 8.80708
A77: 68 | B77: EDELWEISS | C77: 174.35 | D77: 171.80 | E77: 166.10 | F77: 157.85 | G77: 152.15 | H77: 180.05 | I77: 185.75 | J77: 194.00 | K77: 177.5 | L77: 163.55 | M77: 44.87651
A78: 69 | B78: EICHERMOT | C78: 22674.1 | D78: 22651.55 | E78: 22222.55 | F78: 21771.00 | G78: 21342.00 | H78: 23103.10 | I78: 23532.10 | J78: 23983.65 | K78: 23080.55 | L78: 22200 | M78: 1.31866
A79: 70 | B79: EMAMILTD | C79: 421.75 | D79: 415.42 | E79: 404.98 | F79: 388.22 | G79: 377.78 | H79: 432.18 | I79: 442.62 | J79: 459.38 | K79: 425.85 | L79: 398.65 | M79: 5.35081
A80: 71 | B80: ENDURANCE | C80: 1255.65 | D80: 1250.20 | E80: 1230.45 | F80: 1205.25 | G80: 1185.50 | H80: 1275.40 | I80: 1295.15 | J80: 1320.35 | K80: 1269.95 | L80: 1225 | M80: 0.12867
A81: 72 | B81: ENGINERSIN | C81: 119.9 | D81: 121.93 | E81: 116.52 | F81: 113.13 | G81: 107.72 | H81: 125.32 | I81: 130.73 | J81: 134.12 | K81: 127.35 | L81: 118.55 | M81: 56.35644
A82: 73 | B82: EXIDEIND | C82: 253.55 | D82: 255.65 | E82: 248.90 | F82: 244.25 | G82: 237.50 | H82: 260.30 | I82: 267.05 | J82: 271.70 | K82: 262.4 | L82: 251 | M82: 25.25198
A83: 74 | B83: FEDERALBNK | C83: 82.4 | D83: 83.10 | E83: 81.10 | F83: 79.80 | G83: 77.80 | H83: 84.40 | I83: 86.40 | J83: 87.70 | K83: 85.1 | L83: 81.8 | M83: 141.23922
A84: 75 | B84: GAIL | C84: 369.75 | D84: 369.03 | E84: 364.67 | F84: 359.58 | G84: 355.22 | H84: 374.12 | I84: 378.48 | J84: 383.57 | K84: 373.4 | L84: 363.95 | M84: 60.35578
A85: 76 | B85: GMRINFRA | C85: 16.95 | D85: 17.17 | E85: 16.58 | F85: 16.22 | G85: 15.63 | H85: 17.53 | I85: 18.12 | J85: 18.48 | K85: 17.75 | L85: 16.8 | M85: 370.25749
A86: 77 | B86: GSKCONS | C86: 7119 | D86: 7176.35 | E86: 7002.65 | F86: 6886.30 | G86: 6712.60 | H86: 7292.70 | I86: 7466.40 | J86: 7582.75 | K86: 7350.05 | L86: 7060 | M86: 0.30867
A87: 78 | B87: GLAXO | C87: 1440.5 | D87: 1435.17 | E87: 1420.33 | F87: 1400.17 | G87: 1385.33 | H87: 1455.33 | I87: 1470.17 | J87: 1490.33 | K87: 1450 | L87: 1415 | M87: 0.10606
A88: 79 | B88: GLENMARK | C88: 626.45 | D88: 630.42 | E88: 617.48 | F88: 608.52 | G88: 595.58 | H88: 639.38 | I88: 652.32 | J88: 661.28 | K88: 643.35 | L88: 621.45 | M88: 6.34596
A89: 80 | B89: GODREJCP | C89: 714.45 | D89: 719.52 | E89: 690.18 | F89: 665.92 | G89: 636.58 | H89: 743.78 | I89: 773.12 | J89: 797.38 | K89: 748.85 | L89: 695.25 | M89: 23.03337
A90: 81 | B90: GODREJIND | C90: 477.7 | D90: 475.30 | E90: 465.50 | F90: 453.30 | G90: 443.50 | H90: 487.50 | I90: 497.30 | J90: 509.50 | K90: 485.1 | L90: 463.1 | M90: 5.4975
A91: 82 | B91: GRUH | C91: 297.8 | D91: 297.25 | E91: 293.55 | F91: 289.30 | G91: 285.60 | H91: 301.50 | I91: 305.20 | J91: 309.45 | K91: 300.95 | L91: 293 | M91: 4.88652
A92: 83 | B92: GPPL | C92: 98.35 | D92: 98.95 | E92: 97.40 | F92: 96.45 | G92: 94.90 | H92: 99.90 | I92: 101.45 | J92: 102.40 | K92: 100.5 | L92: 98 | M92: 2.26016
A93: 84 | B93: GSPL | C93: 181.95 | D93: 182.03 | E93: 180.47 | F93: 178.98 | G93: 177.42 | H93: 183.52 | I93: 185.08 | J93: 186.57 | K93: 183.6 | L93: 180.55 | M93: 2.86311
A94: 85 | B94: HCLTECH | C94: 1004.6 | D94: 1009.75 | E94: 990.00 | F94: 975.40 | G94: 955.65 | H94: 1024.35 | I94: 1044.10 | J94: 1058.70 | K94: 1029.5 | L94: 995.15 | M94: 27.87603
A95: 86 | B95: HDFCBANK | C95: 1949.45 | D95: 1940.48 | E95: 1920.97 | F95: 1892.48 | G95: 1872.97 | H95: 1968.97 | I95: 1988.48 | J95: 2016.97 | K95: 1960 | L95: 1912 | M95: 75.23217
A96: 87 | B96: HAVELLS | C96: 646.15 | D96: 646.52 | E96: 638.63 | F96: 631.12 | G96: 623.23 | H96: 654.03 | I96: 661.92 | J96: 669.43 | K96: 654.4 | L96: 639 | M96: 9.25851
A97: 88 | B97: HEROMOTOCO | C97: 2896.6 | D97: 2891.67 | E97: 2843.48 | F97: 2790.37 | G97: 2742.18 | H97: 2944.78 | I97: 2992.97 | J97: 3046.08 | K97: 2939.85 | L97: 2838.55 | M97: 5.48045
A98: 89 | B98: HEXAWARE | C98: 311.6 | D98: 314.77 | E98: 305.93 | F98: 300.27 | G98: 291.43 | H98: 320.43 | I98: 329.27 | J98: 334.93 | K98: 323.6 | L98: 309.1 | M98: 26.85846
A99: 90 | B99: HINDALCO | C99: 240.45 | D99: 238.83 | E99: 232.97 | F99: 225.48 | G99: 219.62 | H99: 246.32 | I99: 252.18 | J99: 259.67 | K99: 244.7 | L99: 231.35 | M99: 194.29972
A100: 91 | B100: HINDPETRO | C100: 240.2 | D100: 238.45 | E100: 232.00 | F100: 223.80 | G100: 217.35 | H100: 246.65 | I100: 253.10 | J100: 261.30 | K100: 244.9 | L100: 230.25 | M100: 146.71313
A101: 92 | B101: HINDUNILVR | C101: 1638.45 | D101: 1631.63 | E101: 1615.07 | F101: 1591.68 | G101: 1575.12 | H101: 1655.02 | I101: 1671.58 | J101: 1694.97 | K101: 1648.2 | L101: 1608.25 | M101: 13.3297
A102: 93 | B102: HINDZINC | C102: 264.05 | D102: 265.02 | E102: 261.33 | F102: 258.62 | G102: 254.93 | H102: 267.73 | I102: 271.42 | J102: 274.13 | K102: 268.7 | L102: 262.3 | M102: 18.17519
A103: 94 | B103: HUDCO | C103: 44.9 | D103: 45.13 | E103: 43.87 | F103: 42.83 | G103: 41.57 | H103: 46.17 | I103: 47.43 | J103: 48.47 | K103: 46.4 | L103: 44.1 | M103: 14.29949
A104: 95 | B104: HDFC | C104: 1824.4 | D104: 1808.93 | E104: 1780.97 | F104: 1737.53 | G104: 1709.57 | H104: 1852.37 | I104: 1880.33 | J104: 1923.77 | K104: 1836.9 | L104: 1765.5 | M104: 37.01701
A105: 96 | B105: ITC | C105: 283.25 | D105: 282.50 | E105: 279.05 | F105: 274.85 | G105: 271.40 | H105: 286.70 | I105: 290.15 | J105: 294.35 | K105: 285.95 | L105: 278.3 | M105: 116.44681
A106: 97 | B106: ICICIBANK | C106: 354.45 | D106: 354.65 | E106: 351.50 | F106: 348.55 | G106: 345.40 | H106: 357.60 | I106: 360.75 | J106: 363.70 | K106: 357.8 | L106: 351.7 | M106: 267.14413
A107: 98 | B107: ICICIPRULI | C107: 352.4 | D107: 351.93 | E107: 346.32 | F107: 340.23 | G107: 334.62 | H107: 358.02 | I107: 363.63 | J107: 369.72 | K107: 357.55 | L107: 345.85 | M107: 17.28706
A108: 99 | B108: IDBI | C108: 59.15 | D108: 59.40 | E108: 58.75 | F108: 58.35 | G108: 57.70 | H108: 59.80 | I108: 60.45 | J108: 60.85 | K108: 60.05 | L108: 59 | M108: 37.40402
A109: 100 | B109: IDFCBANK | C109: 35.6 | D109: 35.83 | E109: 35.07 | F109: 34.53 | G109: 33.77 | H109: 36.37 | I109: 37.13 | J109: 37.67 | K109: 36.6 | L109: 35.3 | M109: 160.38076
A110: 101 | B110: IDFC | C110: 38 | D110: 37.83 | E110: 37.12 | F110: 36.23 | G110: 35.52 | H110: 38.72 | I110: 39.43 | J110: 40.32 | K110: 38.55 | L110: 36.95 | M110: 37.73002
A111: 102 | B111: IRB | C111: 145.4 | D111: 147.00 | E111: 142.90 | F111: 140.40 | G111: 136.30 | H111: 149.50 | I111: 153.60 | J111: 156.10 | K111: 151.1 | L111: 144.5 | M111: 25.64322
A112: 103 | B112: IDEA | C112: 40.6 | D112: 40.17 | E112: 39.43 | F112: 38.27 | G112: 37.53 | H112: 41.33 | I112: 42.07 | J112: 43.23 | K112: 40.9 | L112: 39 | M112: 123.97534
A113: 104 | B113: IBULHSGFIN | C113: 870.9 | D113: 869.00 | E113: 858.00 | F113: 845.10 | G113: 834.10 | H113: 881.90 | I113: 892.90 | J113: 905.80 | K113: 880 | L113: 856.1 | M113: 52.75773
A114: 105 | B114: INDIANB | C114: 248.45 | D114: 251.17 | E114: 241.53 | F114: 234.62 | G114: 224.98 | H114: 258.08 | I114: 267.72 | J114: 274.63 | K114: 260.8 | L114: 244.25 | M114: 17.74228
A115: 106 | B115: INDHOTEL | C115: 131.05 | D115: 132.20 | E115: 129.15 | F115: 127.25 | G115: 124.20 | H115: 134.10 | I115: 137.15 | J115: 139.05 | K115: 135.25 | L115: 130.3 | M115: 4.73252
A116: 107 | B116: IOC | C116: 148.25 | D116: 148.28 | E116: 145.17 | F116: 142.08 | G116: 138.97 | H116: 151.37 | I116: 154.48 | J116: 157.57 | K116: 151.4 | L116: 145.2 | M116: 167.85626
A117: 108 | B117: IGL | C117: 281.85 | D117: 284.98 | E117: 276.02 | F117: 270.18 | G117: 261.22 | H117: 290.82 | I117: 299.78 | J117: 305.62 | K117: 293.95 | L117: 279.15 | M117: 72.88744
A118: 109 | B118: INDUSINDBK | C118: 1541.8 | D118: 1523.90 | E118: 1492.90 | F118: 1444.00 | G118: 1413.00 | H118: 1572.80 | I118: 1603.80 | J118: 1652.70 | K118: 1554.9 | L118: 1475 | M118: 57.32745
A119: 110 | B119: NAUKRI | C119: 1470.55 | D119: 1478.85 | E119: 1443.70 | F119: 1416.85 | G119: 1381.70 | H119: 1505.70 | I119: 1540.85 | J119: 1567.70 | K119: 1514 | L119: 1452 | M119: 0.96358
A120: 111 | B120: INFY | C120: 662.25 | D120: 666.05 | E120: 656.30 | F120: 650.35 | G120: 640.60 | H120: 672.00 | I120: 681.75 | J120: 687.70 | K120: 675.8 | L120: 660.1 | M120: 66.54067
A121: 112 | B121: INDIGO | C121: 975.25 | D121: 966.43 | E121: 953.87 | F121: 932.48 | G121: 919.92 | H121: 987.82 | I121: 1000.38 | J121: 1021.77 | K121: 979 | L121: 945.05 | M121: 12.69261
A122: 113 | B122: IPCALAB | C122: 704.65 | D122: 704.03 | E122: 693.57 | F122: 682.48 | G122: 672.02 | H122: 715.12 | I122: 725.58 | J122: 736.67 | K122: 714.5 | L122: 692.95 | M122: 2.53977
A123: 114 | B123: JSWENERGY | C123: 65.7 | D123: 65.92 | E123: 64.88 | F123: 64.07 | G123: 63.03 | H123: 66.73 | I123: 67.77 | J123: 68.58 | K123: 66.95 | L123: 65.1 | M123: 7.06281
A124: 115 | B124: JSWSTEEL | C124: 352.8 | D124: 351.63 | E124: 346.27 | F124: 339.73 | G124: 334.37 | H124: 358.17 | I124: 363.53 | J124: 370.07 | K124: 357 | L124: 345.1 | M124: 42.87077
A125: 116 | B125: JINDALSTEL | C125: 184.8 | D125: 183.28 | E125: 177.17 | F125: 169.53 | G125: 163.42 | H125: 190.92 | I125: 197.03 | J125: 204.67 | K125: 189.4 | L125: 175.65 | M125: 149.36377
A126: 117 | B126: JUBLFOOD | C126: 1080.1 | D126: 1094.50 | E126: 1045.70 | F126: 1011.30 | G126: 962.50 | H126: 1128.90 | I126: 1177.70 | J126: 1212.10 | K126: 1143.3 | L126: 1060.1 | M126: 23.19126
A127: 118 | B127: JUBILANT | C127: 702.35 | D127: 695.77 | E127: 681.73 | F127: 661.12 | G127: 647.08 | H127: 716.38 | I127: 730.42 | J127: 751.03 | K127: 709.8 | L127: 675.15 | M127: 4.05429
A128: 119 | B128: KARURVYSYA | C128: 78.65 | D128: 78.65 | E128: 78.00 | F128: 77.35 | G128: 76.70 | H128: 79.30 | I128: 79.95 | J128: 80.60 | K128: 79.3 | L128: 78 | M128: 7.56046
A129: 120 | B129: KOTAKBANK | C129: 1133.2 | D129: 1130.57 | E129: 1115.13 | F129: 1097.07 | G129: 1081.63 | H129: 1148.63 | I129: 1164.07 | J129: 1182.13 | K129: 1146 | L129: 1112.5 | M129: 39.0071
A130: 121 | B130: L&TFH | C130: 134.15 | D130: 135.35 | E130: 132.30 | F130: 130.45 | G130: 127.40 | H130: 137.20 | I130: 140.25 | J130: 142.10 | K130: 138.4 | L130: 133.5 | M130: 112.71521
A131: 122 | B131: LICHSGFIN | C131: 430.55 | D131: 430.35 | E131: 424.20 | F131: 417.85 | G131: 411.70 | H131: 436.70 | I131: 442.85 | J131: 449.20 | K131: 436.5 | L131: 424 | M131: 24.70803
A132: 123 | B132: LT | C132: 1358.2 | D132: 1356.02 | E132: 1342.18 | F132: 1326.17 | G132: 1312.33 | H132: 1372.03 | I132: 1385.87 | J132: 1401.88 | K132: 1369.85 | L132: 1340 | M132: 26.65756
A133: 124 | B133: LUPIN | C133: 849.9 | D133: 853.00 | E133: 842.00 | F133: 834.10 | G133: 823.10 | H133: 860.90 | I133: 871.90 | J133: 879.80 | K133: 864 | L133: 845.1 | M133: 13.6106
A134: 125 | B134: MRF | C134: 66480.8 | D134: 66056.58 | E134: 65436.62 | F134: 64392.43 | G134: 63772.47 | H134: 67100.77 | I134: 67720.73 | J134: 68764.92 | K134: 66676.55 | L134: 65012.4 | M134: 0.06742
A135: 126 | B135: MGL | C135: 844.15 | D135: 847.23 | E135: 835.47 | F135: 826.78 | G135: 815.02 | H135: 855.92 | I135: 867.68 | J135: 876.37 | K135: 859 | L135: 838.55 | M135: 3.03536
A136: 127 | B136: M&MFIN | C136: 430.55 | D136: 428.47 | E136: 418.33 | F136: 406.12 | G136: 395.98 | H136: 440.68 | I136: 450.82 | J136: 463.03 | K136: 438.6 | L136: 416.25 | M136: 19.50467
A137: 128 | B137: M&M | C137: 783.55 | D137: 781.50 | E137: 767.10 | F137: 750.65 | G137: 736.25 | H137: 797.95 | I137: 812.35 | J137: 828.80 | K137: 795.9 | L137: 765.05 | M137: 41.17317
A138: 129 | B138: MANAPPURAM | C138: 82.9 | D138: 81.88 | E138: 80.02 | F138: 77.13 | G138: 75.27 | H138: 84.77 | I138: 86.63 | J138: 89.52 | K138: 83.75 | L138: 79 | M138: 46.33317
A139: 130 | B139: MRPL | C139: 82.7 | D139: 83.13 | E139: 81.27 | F139: 79.83 | G139: 77.97 | H139: 84.57 | I139: 86.43 | J139: 87.87 | K139: 85 | L139: 81.7 | M139: 33.25956
A140: 131 | B140: MARICO | C140: 338.05 | D140: 335.12 | E140: 324.83 | F140: 311.62 | G140: 301.33 | H140: 348.33 | I140: 358.62 | J140: 371.83 | K140: 345.4 | L140: 321.9 | M140: 32.03978
A141: 132 | B141: MARUTI | C141: 7135.45 | D141: 7014.83 | E141: 6870.67 | F141: 6605.88 | G141: 6461.72 | H141: 7279.62 | I141: 7423.78 | J141: 7688.57 | K141: 7159 | L141: 6750.05 | M141: 18.34118
A142: 133 | B142: MFSL | C142: 407.15 | D142: 402.95 | E142: 394.20 | F142: 381.25 | G142: 372.50 | H142: 415.90 | I142: 424.65 | J142: 437.60 | K142: 411.7 | L142: 390 | M142: 13.02592
A143: 134 | B143: MINDTREE | C143: 803.95 | D143: 816.28 | E143: 787.77 | F143: 771.58 | G143: 743.07 | H143: 832.47 | I143: 860.98 | J143: 877.17 | K143: 844.8 | L143: 800.1 | M143: 15.62276
A144: 135 | B144: MOTHERSUMI | C144: 172.5 | D144: 170.65 | E144: 162.80 | F144: 153.10 | G144: 145.25 | H144: 180.35 | I144: 188.20 | J144: 197.90 | K144: 178.5 | L144: 160.95 | M144: 163.28752
A145: 136 | B145: MPHASIS | C145: 950.75 | D145: 958.33 | E145: 934.02 | F145: 917.28 | G145: 892.97 | H145: 975.07 | I145: 999.38 | J145: 1016.12 | K145: 982.65 | L145: 941.6 | M145: 4.61705
A146: 137 | B146: MUTHOOTFIN | C146: 436.4 | D146: 437.38 | E146: 429.02 | F146: 421.63 | G146: 413.27 | H146: 444.77 | I146: 453.13 | J146: 460.52 | K146: 445.75 | L146: 430 | M146: 8.02111
A147: 138 | B147: NATCOPHARM | C147: 774.75 | D147: 766.58 | E147: 754.17 | F147: 733.58 | G147: 721.17 | H147: 787.17 | I147: 799.58 | J147: 820.17 | K147: 779 | L147: 746 | M147: 3.33817
A148: 139 | B148: NBCC | C148: 58.85 | D148: 59.53 | E148: 57.92 | F148: 56.98 | G148: 55.37 | H148: 60.47 | I148: 62.08 | J148: 63.02 | K148: 61.15 | L148: 58.6 | M148: 94.26264
A149: 140 | B149: NHPC | C149: 24.35 | D149: 24.45 | E149: 24.20 | F149: 24.05 | G149: 23.80 | H149: 24.60 | I149: 24.85 | J149: 25.00 | K149: 24.7 | L149: 24.3 | M149: 14.71062
A150: 141 | B150: NMDC | C150: 114.85 | D150: 115.55 | E150: 113.00 | F150: 111.15 | G150: 108.60 | H150: 117.40 | I150: 119.95 | J150: 121.80 | K150: 118.1 | L150: 113.7 | M150: 30.76117
A151: 142 | B151: NTPC | C151: 158 | D151: 157.80 | E151: 156.25 | F151: 154.50 | G151: 152.95 | H151: 159.55 | I151: 161.10 | J151: 162.85 | K151: 159.35 | L151: 156.05 | M151: 95.73135
A152: 143 | B152: NATIONALUM | C152: 69.3 | D152: 69.68 | E152: 68.37 | F152: 67.43 | G152: 66.12 | H152: 70.62 | I152: 71.93 | J152: 72.87 | K152: 71 | L152: 68.75 | M152: 85.63555
A153: 144 | B153: OBEROIRLTY | C153: 427.35 | D153: 429.10 | E153: 423.25 | F153: 419.15 | G153: 413.30 | H153: 433.20 | I153: 439.05 | J153: 443.15 | K153: 434.95 | L153: 425 | M153: 2.35993
A154: 145 | B154: ONGC | C154: 157.35 | D154: 156.97 | E154: 155.48 | F154: 153.62 | G154: 152.13 | H154: 158.83 | I154: 160.32 | J154: 162.18 | K154: 158.45 | L154: 155.1 | M154: 77.89972
A155: 146 | B155: OIL | C155: 200.85 | D155: 202.20 | E155: 198.55 | F155: 196.25 | G155: 192.60 | H155: 204.50 | I155: 208.15 | J155: 210.45 | K155: 205.85 | L155: 199.9 | M155: 6.38163
A156: 147 | B156: OFSS | C156: 3545.35 | D156: 3553.42 | E156: 3491.93 | F156: 3438.52 | G156: 3377.03 | H156: 3606.83 | I156: 3668.32 | J156: 3721.73 | K156: 3614.9 | L156: 3500 | M156: 0.37213
A157: 148 | B157: PCJEWELLER | C157: 88.2 | D157: 84.25 | E157: 78.30 | F157: 68.40 | G157: 62.45 | H157: 94.15 | I157: 100.10 | J157: 110.00 | K157: 90.2 | L157: 74.35 | M157: 857.52867
A158: 149 | B158: PIIND | C158: 800.6 | D158: 808.17 | E158: 781.43 | F158: 762.27 | G158: 735.53 | H158: 827.33 | I158: 854.07 | J158: 873.23 | K158: 834.9 | L158: 789 | M158: 2.08414
A159: 150 | B159: PNBHOUSING | C159: 871.25 | D159: 868.52 | E159: 837.68 | F159: 804.12 | G159: 773.28 | H159: 902.08 | I159: 932.92 | J159: 966.48 | K159: 899.35 | L159: 834.95 | M159: 6.29201
A160: 151 | B160: PAGEIND | C160: 29295.1 | D160: 29286.22 | E160: 28891.43 | F160: 28487.77 | G160: 28092.98 | H160: 29689.88 | I160: 30084.67 | J160: 30488.33 | K160: 29681 | L160: 28882.55 | M160: 0.34776
A161: 152 | B161: PETRONET | C161: 224.05 | D161: 225.85 | E161: 219.20 | F161: 214.35 | G161: 207.70 | H161: 230.70 | I161: 237.35 | J161: 242.20 | K161: 232.5 | L161: 221 | M161: 35.02733
A162: 153 | B162: PIDILITIND | C162: 989.3 | D162: 991.25 | E162: 977.50 | F162: 965.70 | G162: 951.95 | H162: 1003.05 | I162: 1016.80 | J162: 1028.60 | K162: 1005 | L162: 979.45 | M162: 6.35265
A163: 154 | B163: PEL | C163: 2152.65 | D163: 2166.57 | E163: 2126.78 | F163: 2100.92 | G163: 2061.13 | H163: 2192.43 | I163: 2232.22 | J163: 2258.08 | K163: 2206.35 | L163: 2140.7 | M163: 8.2695
A164: 155 | B164: PFC | C164: 93.6 | D164: 94.40 | E164: 91.80 | F164: 90.00 | G164: 87.40 | H164: 96.20 | I164: 98.80 | J164: 100.60 | K164: 97 | L164: 92.6 | M164: 129.97517
A165: 156 | B165: POWERGRID | C165: 189.85 | D165: 190.28 | E165: 188.27 | F165: 186.68 | G165: 184.67 | H165: 191.87 | I165: 193.88 | J165: 195.47 | K165: 192.3 | L165: 188.7 | M165: 33.94386
A166: 157 | B166: PRESTIGE | C166: 188.05 | D166: 189.47 | E166: 184.93 | F166: 181.82 | G166: 177.28 | H166: 192.58 | I166: 197.12 | J166: 200.23 | K166: 194 | L166: 186.35 | M166: 1.27259
A167: 158 | B167: PGHH | C167: 9694.15 | D167: 9612.05 | E167: 9422.10 | F167: 9150.05 | G167: 8960.10 | H167: 9884.10 | I167: 10074.05 | J167: 10346.10 | K167: 9802 | L167: 9340 | M167: 0.27624
A168: 159 | B168: PNB | C168: 69.05 | D168: 71.93 | E168: 65.17 | F168: 61.28 | G168: 54.52 | H168: 75.82 | I168: 82.58 | J168: 86.47 | K168: 78.7 | L168: 68.05 | M168: 919.79581
A169: 160 | B169: RBLBANK | C169: 522.3 | D169: 525.18 | E169: 516.37 | F169: 510.43 | G169: 501.62 | H169: 531.12 | I169: 539.93 | J169: 545.87 | K169: 534 | L169: 519.25 | M169: 17.2177
A170: 161 | B170: RAJESHEXPO | C170: 570.05 | D170: 570.37 | E170: 569.43 | F170: 568.82 | G170: 567.88 | H170: 570.98 | I170: 571.92 | J170: 572.53 | K170: 571.3 | L170: 569.75 | M170: 1.5796
A171: 162 | B171: RELCAPITAL | C171: 253.05 | D171: 255.42 | E171: 248.93 | F171: 244.82 | G171: 238.33 | H171: 259.53 | I171: 266.02 | J171: 270.13 | K171: 261.9 | L171: 251.3 | M171: 62.6085
A172: 163 | B172: RCOM | C172: 14.1 | D172: 14.40 | E172: 13.55 | F172: 13.00 | G172: 12.15 | H172: 14.95 | I172: 15.80 | J172: 16.35 | K172: 15.25 | L172: 13.85 | M172: 1119.0463
A173: 164 | B173: RELIANCE | C173: 1074.9 | D173: 1073.02 | E173: 1065.03 | F173: 1055.17 | G173: 1047.18 | H173: 1082.88 | I173: 1090.87 | J173: 1100.73 | K173: 1081 | L173: 1063.15 | M173: 167.962
A174: 165 | B174: RELINFRA | C174: 375.45 | D174: 372.75 | E174: 364.75 | F174: 354.05 | G174: 346.05 | H174: 383.45 | I174: 391.45 | J174: 402.15 | K174: 380.75 | L174: 362.05 | M174: 26.50661
A175: 166 | B175: RPOWER | C175: 31.35 | D175: 31.53 | E175: 30.97 | F175: 30.58 | G175: 30.02 | H175: 31.92 | I175: 32.48 | J175: 32.87 | K175: 32.1 | L175: 31.15 | M175: 96.34117
A176: 167 | B176: RECLTD | C176: 118.75 | D176: 119.00 | E176: 117.50 | F176: 116.25 | G176: 114.75 | H176: 120.25 | I176: 121.75 | J176: 123.00 | K176: 120.5 | L176: 117.75 | M176: 57.41716
A177: 168 | B177: SRF | C177: 1958.8 | D177: 1987.93 | E177: 1915.87 | F177: 1872.93 | G177: 1800.87 | H177: 2030.87 | I177: 2102.93 | J177: 2145.87 | K177: 2060 | L177: 1945 | M177: 11.74866
A178: 169 | B178: SHREECEM | C178: 14764.3 | D178: 14634.12 | E178: 14186.93 | F178: 13609.57 | G178: 13162.38 | H178: 15211.48 | I178: 15658.67 | J178: 16236.03 | K178: 15081.3 | L178: 14056.75 | M178: 0.5082
A179: 170 | B179: SRTRANSFIN | C179: 1254 | D179: 1244.38 | E179: 1223.72 | F179: 1193.43 | G179: 1172.77 | H179: 1274.67 | I179: 1295.33 | J179: 1325.62 | K179: 1265.05 | L179: 1214.1 | M179: 13.59503
A180: 171 | B180: SIEMENS | C180: 960.85 | D180: 959.43 | E180: 952.52 | F180: 944.18 | G180: 937.27 | H180: 967.77 | I180: 974.68 | J180: 983.02 | K180: 966.35 | L180: 951.1 | M180: 2.44349
A181: 172 | B181: SBIN | C181: 285.35 | D181: 287.12 | E181: 281.43 | F181: 277.52 | G181: 271.83 | H181: 291.03 | I181: 296.72 | J181: 300.63 | K181: 292.8 | L181: 283.2 | M181: 277.60214
A182: 173 | B182: SAIL | C182: 69.55 | D182: 69.32 | E182: 67.53 | F182: 65.52 | G182: 63.73 | H182: 71.33 | I182: 73.12 | J182: 75.13 | K182: 71.1 | L182: 67.3 | M182: 149.45941
A183: 174 | B183: SPARC | C183: 294.35 | D183: 295.12 | E183: 292.23 | F183: 290.12 | G183: 287.23 | H183: 297.23 | I183: 300.12 | J183: 302.23 | K183: 298 | L183: 293 | M183: 1.54928
A184: 175 | B184: SUNPHARMA | C184: 571.85 | D184: 573.30 | E184: 566.85 | F184: 561.85 | G184: 555.40 | H184: 578.30 | I184: 584.75 | J184: 589.75 | K184: 579.75 | L184: 568.3 | M184: 26.88591
A185: 176 | B185: SUNTV | C185: 663.2 | D185: 667.63 | E185: 651.57 | F185: 639.93 | G185: 623.87 | H185: 679.27 | I185: 695.33 | J185: 706.97 | K185: 683.7 | L185: 656 | M185: 20.37639
A186: 177 | B186: SUZLON | C186: 6.3 | D186: 6.35 | E186: 6.20 | F186: 6.10 | G186: 5.95 | H186: 6.45 | I186: 6.60 | J186: 6.70 | K186: 6.5 | L186: 6.25 | M186: 257.42114
A187: 178 | B187: SYNDIBANK | C187: 34.35 | D187: 34.67 | E187: 33.83 | F187: 33.32 | G187: 32.48 | H187: 35.18 | I187: 36.02 | J187: 36.53 | K187: 35.5 | L187: 34.15 | M187: 60.67098
A188: 179 | B188: SYNGENE | C188: 574.7 | D188: 576.88 | E188: 569.87 | F188: 565.03 | G188: 558.02 | H188: 581.72 | I188: 588.73 | J188: 593.57 | K188: 583.9 | L188: 572.05 | M188: 0.3322
A189: 180 | B189: TV18BRDCST | C189: 38.05 | D189: 38.33 | E189: 37.52 | F189: 36.98 | G189: 36.17 | H189: 38.87 | I189: 39.68 | J189: 40.22 | K189: 39.15 | L189: 37.8 | M189: 34.11295
A190: 181 | B190: TVSMOTOR | C190: 553.45 | D190: 554.42 | E190: 544.03 | F190: 534.62 | G190: 524.23 | H190: 563.83 | I190: 574.22 | J190: 583.63 | K190: 564.8 | L190: 545 | M190: 52.05371
A191: 182 | B191: TATACHEM | C191: 696.15 | D191: 699.67 | E191: 687.03 | F191: 677.92 | G191: 665.28 | H191: 708.78 | I191: 721.42 | J191: 730.53 | K191: 712.3 | L191: 690.55 | M191: 6.43431
A192: 183 | B192: TATACOMM | C192: 490.6 | D192: 489.45 | E192: 477.55 | F192: 464.50 | G192: 452.60 | H192: 502.50 | I192: 514.40 | J192: 527.45 | K192: 501.35 | L192: 476.4 | M192: 9.73862
A193: 184 | B193: TCS | C193: 1913.45 | D193: 1924.35 | E193: 1894.10 | F193: 1874.75 | G193: 1844.50 | H193: 1943.70 | I193: 1973.95 | J193: 1993.30 | K193: 1954.6 | L193: 1905 | M193: 18.18635
A194: 185 | B194: TATAGLOBAL | C194: 217.65 | D194: 219.35 | E194: 215.20 | F194: 212.75 | G194: 208.60 | H194: 221.80 | I194: 225.95 | J194: 228.40 | K194: 223.5 | L194: 216.9 | M194: 17.01852
A195: 186 | B195: TATAMTRDVR | C195: 102.55 | D195: 101.23 | E195: 99.27 | F195: 95.98 | G195: 94.02 | H195: 104.52 | I195: 106.48 | J195: 109.77 | K195: 103.2 | L195: 97.95 | M195: 43.13647
A196: 187 | B196: TATAMOTORS | C196: 190.3 | D196: 187.68 | E196: 183.52 | F196: 176.73 | G196: 172.57 | H196: 194.47 | I196: 198.63 | J196: 205.42 | K196: 191.85 | L196: 180.9 | M196: 294.25248
A197: 188 | B197: TATAPOWER | C197: 76 | D197: 76.23 | E197: 75.07 | F197: 74.13 | G197: 72.97 | H197: 77.17 | I197: 78.33 | J197: 79.27 | K197: 77.4 | L197: 75.3 | M197: 71.77611
A198: 189 | B198: TATASTEEL | C198: 574.05 | D198: 572.37 | E198: 562.33 | F198: 550.62 | G198: 540.58 | H198: 584.08 | I198: 594.12 | J198: 605.83 | K198: 582.4 | L198: 560.65 | M198: 79.79457
A199: 190 | B199: TECHM | C199: 690.9 | D199: 702.08 | E199: 676.32 | F199: 661.73 | G199: 635.97 | H199: 716.67 | I199: 742.43 | J199: 757.02 | K199: 727.85 | L199: 687.5 | M199: 44.45407
A200: 191 | B200: RAMCOCEM | C200: 603.35 | D200: 605.78 | E200: 591.57 | F200: 579.78 | G200: 565.57 | H200: 617.57 | I200: 631.78 | J200: 643.57 | K200: 620 | L200: 594 | M200: 2.78645
A201: 192 | B201: TITAN | C201: 871 | D201: 870.97 | E201: 857.93 | F201: 844.87 | G201: 831.83 | H201: 884.03 | I201: 897.07 | J201: 910.13 | K201: 884 | L201: 857.9 | M201: 30.78543
A202: 193 | B202: TORNTPHARM | C202: 1630.6 | D202: 1664.37 | E202: 1581.28 | F202: 1531.97 | G202: 1448.88 | H202: 1713.68 | I202: 1796.77 | J202: 1846.08 | K202: 1747.45 | L202: 1615.05 | M202: 1.98138
A203: 194 | B203: TORNTPOWER | C203: 256.35 | D203: 257.42 | E203: 253.13 | F203: 249.92 | G203: 245.63 | H203: 260.63 | I203: 264.92 | J203: 268.13 | K203: 261.7 | L203: 254.2 | M203: 10.12251
A204: 195 | B204: UPL | C204: 711.45 | D204: 708.98 | E204: 701.47 | F204: 691.48 | G204: 683.97 | H204: 718.97 | I204: 726.48 | J204: 736.47 | K204: 716.5 | L204: 699 | M204: 48.45338
A205: 196 | B205: ULTRACEMCO | C205: 3730.8 | D205: 3729.27 | E205: 3591.53 | F205: 3452.27 | G205: 3314.53 | H205: 3868.53 | I205: 4006.27 | J205: 4145.53 | K205: 3867 | L205: 3590 | M205: 4.44425
... 30 more rows

Sheet MidCap Intra
L5: Back To Main Page
A6: FOR INTRA DAY TRADING | K6: =Main!B10 -> 2018-11-05
A9: Sr.no | B9: Scrip | C9: CLOSE RATE | D9: Pivot Point | E9: Supports | H9: Resistances
C10: Point | E10: S1 | F10: S2 | G10: S3 | H10: R1 | I10: R2 | J10: R3 | K10: HIGH | L10: LOW | M10: Total Trade Quanity in Lakhs
A11: 1 | B11: 3MINDIA | C11: 20282.85 | D11: 20155.65 | E11: 19809.30 | F11: 19335.75 | G11: 18989.40 | H11: 20629.20 | I11: 20975.55 | J11: 21449.10 | K11: 20502 | L11: 19682.1 | M11: 0.01558
A12: 2 | B12: 8KMILES | C12: 66.7 | D12: 63.27 | E12: 58.83 | F12: 50.97 | G12: 46.53 | H12: 71.13 | I12: 75.57 | J12: 83.43 | K12: 67.7 | L12: 55.4 | M12: 23.42008
A13: 3 | B13: AARTIIND | C13: 1383.05 | D13: 1388.68 | E13: 1356.37 | F13: 1329.68 | G13: 1297.37 | H13: 1415.37 | I13: 1447.68 | J13: 1474.37 | K13: 1421 | L13: 1362 | M13: 1.14729
A14: 4 | B14: ABAN | C14: 79.65 | D14: 80.15 | E14: 78.50 | F14: 77.35 | G14: 75.70 | H14: 81.30 | I14: 82.95 | J14: 84.10 | K14: 81.8 | L14: 79 | M14: 7.23841
A15: 5 | B15: ABB | C15: 1318.15 | D15: 1334.13 | E15: 1292.27 | F15: 1266.38 | G15: 1224.52 | H15: 1360.02 | I15: 1401.88 | J15: 1427.77 | K15: 1376 | L15: 1308.25 | M15: 1.84826
A16: 6 | B16: ABCAPITAL | C16: 106.35 | D16: 106.93 | E16: 104.97 | F16: 103.58 | G16: 101.62 | H16: 108.32 | I16: 110.28 | J16: 111.67 | K16: 108.9 | L16: 105.55 | M16: 17.18596
A17: 7 | B17: ABFRL | C17: 193.15 | D17: 193.55 | E17: 187.15 | F17: 181.15 | G17: 174.75 | H17: 199.55 | I17: 205.95 | J17: 211.95 | K17: 199.95 | L17: 187.55 | M17: 40.58147
A18: 8 | B18: ACC | C18: 1451.5 | D18: 1445.50 | E18: 1417.00 | F18: 1382.50 | G18: 1354.00 | H18: 1480.00 | I18: 1508.50 | J18: 1543.00 | K18: 1474 | L18: 1411 | M18: 6.54747
A19: 9 | B19: ADANIPORTS | C19: 333.6 | D19: 331.05 | E19: 321.95 | F19: 310.30 | G19: 301.20 | H19: 342.70 | I19: 351.80 | J19: 363.45 | K19: 340.15 | L19: 319.4 | M19: 73.87791
A20: 10 | B20: ADANIPOWER | C20: 49.85 | D20: 50.42 | E20: 48.08 | F20: 46.32 | G20: 43.98 | H20: 52.18 | I20: 54.52 | J20: 56.28 | K20: 52.75 | L20: 48.65 | M20: 608.09218
A21: 11 | B21: ADANITRANS | C21: 178.95 | D21: 180.35 | E21: 176.60 | F21: 174.25 | G21: 170.50 | H21: 182.70 | I21: 186.45 | J21: 188.80 | K21: 184.1 | L21: 178 | M21: 3.05108
A22: 12 | B22: ADVENZYMES | C22: 191.5 | D22: 194.10 | E22: 188.30 | F22: 185.10 | G22: 179.30 | H22: 197.30 | I22: 203.10 | J22: 206.30 | K22: 199.9 | L22: 190.9 | M22: 1.59698
A23: 13 | B23: AEGISCHEM | C23: 219.85 | D23: 220.37 | E23: 215.48 | F23: 211.12 | G23: 206.23 | H23: 224.73 | I23: 229.62 | J23: 233.98 | K23: 225.25 | L23: 216 | M23: 0.73162
A24: 14 | B24: AIAENG | C24: 1708.65 | D24: 1695.38 | E24: 1657.77 | F24: 1606.88 | G24: 1569.27 | H24: 1746.27 | I24: 1783.88 | J24: 1834.77 | K24: 1733 | L24: 1644.5 | M24: 2.29921
A25: 15 | B25: AJANTPHARM | C25: 1085.3 | D25: 1088.57 | E25: 1072.23 | F25: 1059.17 | G25: 1042.83 | H25: 1101.63 | I25: 1117.97 | J25: 1131.03 | K25: 1104.9 | L25: 1075.5 | M25: 4.43283
A26: 16 | B26: AKZOINDIA | C26: 1555.05 | D26: 1551.00 | E26: 1522.10 | F26: 1489.15 | G26: 1460.25 | H26: 1583.95 | I26: 1612.85 | J26: 1645.80 | K26: 1579.9 | L26: 1518.05 | M26: 0.22626
A27: 17 | B27: ALBK | C27: 42.9 | D27: 43.33 | E27: 42.02 | F27: 41.13 | G27: 39.82 | H27: 44.22 | I27: 45.53 | J27: 46.42 | K27: 44.65 | L27: 42.45 | M27: 47.98202
A28: 18 | B28: ALKEM | C28: 1908.9 | D28: 1902.62 | E28: 1866.28 | F28: 1823.67 | G28: 1787.33 | H28: 1945.23 | I28: 1981.57 | J28: 2024.18 | K28: 1938.95 | L28: 1860 | M28: 0.63742
A29: 19 | B29: ALLCARGO | C29: 101.45 | D29: 102.37 | E29: 99.13 | F29: 96.82 | G29: 93.58 | H29: 104.68 | I29: 107.92 | J29: 110.23 | K29: 105.6 | L29: 100.05 | M29: 1.62648
A30: 20 | B30: AMARAJABAT | C30: 790.8 | D30: 779.33 | E30: 762.67 | F30: 734.53 | G30: 717.87 | H30: 807.47 | I30: 824.13 | J30: 852.27 | K30: 796 | L30: 751.2 | M30: 8.62815
A31: 21 | B31: AMBUJACEM | C31: 204.05 | D31: 204.48 | E31: 200.97 | F31: 197.88 | G31: 194.37 | H31: 207.57 | I31: 211.08 | J31: 214.17 | K31: 208 | L31: 201.4 | M31: 41.74804
A32: 22 | B32: ANDHRABANK | C32: 28.65 | D32: 28.93 | E32: 28.12 | F32: 27.58 | G32: 26.77 | H32: 29.47 | I32: 30.28 | J32: 30.82 | K32: 29.75 | L32: 28.4 | M32: 20.01826
A33: 23 | B33: APLAPOLLO | C33: 1226.9 | D33: 1238.63 | E33: 1152.27 | F33: 1077.63 | G33: 991.27 | H33: 1313.27 | I33: 1399.63 | J33: 1474.27 | K33: 1325 | L33: 1164 | M33: 0.92119
A34: 24 | B34: APLLTD | C34: 589.4 | D34: 594.43 | E34: 581.07 | F34: 572.73 | G34: 559.37 | H34: 602.77 | I34: 616.13 | J34: 624.47 | K34: 607.8 | L34: 586.1 | M34: 0.28997
A35: 25 | B35: APOLLOHOSP | C35: 1153.8 | D35: 1165.35 | E35: 1126.95 | F35: 1100.10 | G35: 1061.70 | H35: 1192.20 | I35: 1230.60 | J35: 1257.45 | K35: 1203.75 | L35: 1138.5 | M35: 7.13553
A36: 26 | B36: APOLLOTYRE | C36: 220.7 | D36: 223.10 | E36: 216.70 | F36: 212.70 | G36: 206.30 | H36: 227.10 | I36: 233.50 | J36: 237.50 | K36: 229.5 | L36: 219.1 | M36: 43.6213
A37: 27 | B37: ARVIND | C37: 326.85 | D37: 333.28 | E37: 318.62 | F37: 310.38 | G37: 295.72 | H37: 341.52 | I37: 356.18 | J37: 364.42 | K37: 347.95 | L37: 325.05 | M37: 42.36818
A38: 28 | B38: ASAHIINDIA | C38: 290.7 | D38: 287.52 | E38: 281.23 | F38: 271.77 | G38: 265.48 | H38: 296.98 | I38: 303.27 | J38: 312.73 | K38: 293.8 | L38: 278.05 | M38: 0.18517
A39: 29 | B39: ASHOKA | C39: 118.65 | D39: 119.58 | E39: 116.47 | F39: 114.28 | G39: 111.17 | H39: 121.77 | I39: 124.88 | J39: 127.07 | K39: 122.7 | L39: 117.4 | M39: 1.59203
A40: 30 | B40: ASHOKLEY | C40: 117.7 | D40: 116.65 | E40: 114.85 | F40: 112.00 | G40: 110.20 | H40: 119.50 | I40: 121.30 | J40: 124.15 | K40: 118.45 | L40: 113.8 | M40: 244.71836
A41: 31 | B41: ASIANPAINT | C41: 1247 | D41: 1259.93 | E41: 1228.32 | F41: 1209.63 | G41: 1178.02 | H41: 1278.62 | I41: 1310.23 | J41: 1328.92 | K41: 1291.55 | L41: 1241.25 | M41: 22.35848
A42: 32 | B42: ASTRAL | C42: 1016.15 | D42: 1025.52 | E42: 982.03 | F42: 947.92 | G42: 904.43 | H42: 1059.63 | I42: 1103.12 | J42: 1137.23 | K42: 1069 | L42: 991.4 | M42: 1.24572
A43: 33 | B43: ATUL | C43: 3341.65 | D43: 3380.40 | E43: 3282.60 | F43: 3223.55 | G43: 3125.75 | H43: 3439.45 | I43: 3537.25 | J43: 3596.30 | K43: 3478.2 | L43: 3321.35 | M43: 0.22492
A44: 34 | B44: AUBANK | C44: 559.65 | D44: 560.47 | E44: 552.18 | F44: 544.72 | G44: 536.43 | H44: 567.93 | I44: 576.22 | J44: 583.68 | K44: 568.75 | L44: 553 | M44: 1.24955
A45: 35 | B45: AUROPHARMA | C45: 781.4 | D45: 784.77 | E45: 774.53 | F45: 767.67 | G45: 757.43 | H45: 791.63 | I45: 801.87 | J45: 808.73 | K45: 795 | L45: 777.9 | M45: 20.18433
A46: 36 | B46: AVANTIFEED | C46: 410.45 | D46: 408.95 | E46: 402.90 | F46: 395.35 | G46: 389.30 | H46: 416.50 | I46: 422.55 | J46: 430.10 | K46: 415 | L46: 401.4 | M46: 3.23962
A47: 37 | B47: AXISBANK | C47: 610.65 | D47: 611.22 | E47: 604.53 | F47: 598.42 | G47: 591.73 | H47: 617.33 | I47: 624.02 | J47: 630.13 | K47: 617.9 | L47: 605.1 | M47: 124.88669
A48: 38 | B48: BAJAJ-AUTO | C48: 2657.75 | D48: 2659.25 | E48: 2618.50 | F48: 2579.25 | G48: 2538.50 | H48: 2698.50 | I48: 2739.25 | J48: 2778.50 | K48: 2700 | L48: 2620 | M48: 7.69311
A49: 39 | B49: BAJAJCORP | C49: 352.85 | D49: 359.30 | E49: 344.60 | F49: 336.35 | G49: 321.65 | H49: 367.55 | I49: 382.25 | J49: 390.50 | K49: 374 | L49: 351.05 | M49: 1.58408
A50: 40 | B50: BAJAJELEC | C50: 498.55 | D50: 504.18 | E50: 488.37 | F50: 478.18 | G50: 462.37 | H50: 514.37 | I50: 530.18 | J50: 540.37 | K50: 520 | L50: 494 | M50: 7.36975
A51: 41 | B51: BAJAJFINSV | C51: 5525.3 | D51: 5514.70 | E51: 5405.60 | F51: 5285.90 | G51: 5176.80 | H51: 5634.40 | I51: 5743.50 | J51: 5863.20 | K51: 5623.8 | L51: 5395 | M51: 4.14185
A52: 42 | B52: BAJAJHIND | C52: 10.95 | D52: 10.88 | E52: 10.07 | F52: 9.18 | G52: 8.37 | H52: 11.77 | I52: 12.58 | J52: 13.47 | K52: 11.7 | L52: 10 | M52: 192.67422
A53: 43 | B53: BAJAJHLDNG | C53: 2815.05 | D53: 2826.67 | E53: 2798.38 | F53: 2781.72 | G53: 2753.43 | H53: 2843.33 | I53: 2871.62 | J53: 2888.28 | K53: 2854.95 | L53: 2810 | M53: 0.03935
A54: 44 | B54: BAJFINANCE | C54: 2383.3 | D54: 2407.73 | E54: 2340.57 | F54: 2297.83 | G54: 2230.67 | H54: 2450.47 | I54: 2517.63 | J54: 2560.37 | K54: 2474.9 | L54: 2365 | M54: 23.67117
A55: 45 | B55: BALKRISIND | C55: 1112.8 | D55: 1135.87 | E55: 1082.08 | F55: 1051.37 | G55: 997.58 | H55: 1166.58 | I55: 1220.37 | J55: 1251.08 | K55: 1189.65 | L55: 1105.15 | M55: 10.99918
A56: 46 | B56: BALLARPUR | C56: 6.25 | D56: 6.32 | E56: 6.13 | F56: 6.02 | G56: 5.83 | H56: 6.43 | I56: 6.62 | J56: 6.73 | K56: 6.5 | L56: 6.2 | M56: 5.70737
A57: 47 | B57: BALMLAWRIE | C57: 195.35 | D57: 195.63 | E57: 193.92 | F57: 192.48 | G57: 190.77 | H57: 197.07 | I57: 198.78 | J57: 200.22 | K57: 197.35 | L57: 194.2 | M57: 0.3048
A58: 48 | B58: BALRAMCHIN | C58: 109.45 | D58: 109.47 | E58: 107.48 | F58: 105.52 | G58: 103.53 | H58: 111.43 | I58: 113.42 | J58: 115.38 | K58: 111.45 | L58: 107.5 | M58: 47.62464
A59: 49 | B59: BANKBARODA | C59: 109.9 | D59: 110.58 | E59: 107.72 | F59: 105.53 | G59: 102.67 | H59: 112.77 | I59: 115.63 | J59: 117.82 | K59: 113.45 | L59: 108.4 | M59: 381.12597
A60: 50 | B60: BANKINDIA | C60: 84.25 | D60: 86.17 | E60: 81.88 | F60: 79.52 | G60: 75.23 | H60: 88.53 | I60: 92.82 | J60: 95.18 | K60: 90.45 | L60: 83.8 | M60: 104.94652
A61: 51 | B61: BASF | C61: 1601 | D61: 1624.40 | E61: 1558.80 | F61: 1516.60 | G61: 1451.00 | H61: 1666.60 | I61: 1732.20 | J61: 1774.40 | K61: 1690 | L61: 1582.2 | M61: 0.16738
A62: 52 | B62: BATAINDIA | C62: 1006.65 | D62: 1007.22 | E62: 986.78 | F62: 966.92 | G62: 946.48 | H62: 1027.08 | I62: 1047.52 | J62: 1067.38 | K62: 1027.65 | L62: 987.35 | M62: 21.18491
A63: 53 | B63: BBTC | C63: 1364.85 | D63: 1385.65 | E63: 1331.30 | F63: 1297.75 | G63: 1243.40 | H63: 1419.20 | I63: 1473.55 | J63: 1507.10 | K63: 1440 | L63: 1352.1 | M63: 2.23844
A64: 54 | B64: BEL | C64: 95 | D64: 96.15 | E64: 93.40 | F64: 91.80 | G64: 89.05 | H64: 97.75 | I64: 100.50 | J64: 102.10 | K64: 98.9 | L64: 94.55 | M64: 68.39887
A65: 55 | B65: BEML | C65: 688.9 | D65: 674.07 | E65: 650.63 | F65: 612.37 | G65: 588.93 | H65: 712.33 | I65: 735.77 | J65: 774.03 | K65: 697.5 | L65: 635.8 | M65: 28.93428
A66: 56 | B66: BERGEPAINT | C66: 304.4 | D66: 307.27 | E66: 297.13 | F66: 289.87 | G66: 279.73 | H66: 314.53 | I66: 324.67 | J66: 331.93 | K66: 317.4 | L66: 300 | M66: 33.64564
A67: 57 | B67: BFUTILITIE | C67: 217.15 | D67: 218.72 | E67: 213.53 | F67: 209.92 | G67: 204.73 | H67: 222.33 | I67: 227.52 | J67: 231.13 | K67: 223.9 | L67: 215.1 | M67: 5.1068
A68: 58 | B68: BGRENERGY | C68: 58.2 | D68: 58.53 | E68: 57.17 | F68: 56.13 | G68: 54.77 | H68: 59.57 | I68: 60.93 | J68: 61.97 | K68: 59.9 | L68: 57.5 | M68: 1.17801
A69: 59 | B69: BHARATFIN | C69: 952.9 | D69: 941.97 | E69: 925.93 | F69: 898.97 | G69: 882.93 | H69: 968.93 | I69: 984.97 | J69: 1011.93 | K69: 958 | L69: 915 | M69: 20.42625
A70: 60 | B70: BHARATFORG | C70: 607.25 | D70: 609.00 | E70: 580.70 | F70: 554.15 | G70: 525.85 | H70: 635.55 | I70: 663.85 | J70: 690.40 | K70: 637.3 | L70: 582.45 | M70: 43.09509
A71: 61 | B71: BHARTIARTL | C71: 302.05 | D71: 301.12 | E71: 294.43 | F71: 286.82 | G71: 280.13 | H71: 308.73 | I71: 315.42 | J71: 323.03 | K71: 307.8 | L71: 293.5 | M71: 44.25655
A72: 62 | B72: BHEL | C72: 73 | D72: 72.57 | E72: 71.18 | F72: 69.37 | G72: 67.98 | H72: 74.38 | I72: 75.77 | J72: 77.58 | K72: 73.95 | L72: 70.75 | M72: 250.54634
A73: 63 | B73: BHUSANSTL | C73: 28.15 | D73: 28.33 | E73: 27.47 | F73: 26.78 | G73: 25.92 | H73: 29.02 | I73: 29.88 | J73: 30.57 | K73: 29.2 | L73: 27.65 | M73: 11.93807
A74: 64 | B74: BIOCON | C74: 631 | D74: 637.12 | E74: 621.48 | F74: 611.97 | G74: 596.33 | H74: 646.63 | I74: 662.27 | J74: 671.78 | K74: 652.75 | L74: 627.6 | M74: 19.7067
A75: 65 | B75: BIRLACORPN | C75: 596.1 | D75: 592.30 | E75: 573.60 | F75: 551.10 | G75: 532.40 | H75: 614.80 | I75: 633.50 | J75: 656.00 | K75: 611 | L75: 569.8 | M75: 0.67751
A76: 66 | B76: BLISSGVS | C76: 180.8 | D76: 180.35 | E76: 177.30 | F76: 173.80 | G76: 170.75 | H76: 183.85 | I76: 186.90 | J76: 190.40 | K76: 183.4 | L76: 176.85 | M76: 0.87079
A77: 67 | B77: BLUEDART | C77: 2746.75 | D77: 2760.58 | E77: 2726.17 | F77: 2705.58 | G77: 2671.17 | H77: 2781.17 | I77: 2815.58 | J77: 2836.17 | K77: 2795 | L77: 2740 | M77: 0.03192
A78: 68 | B78: BLUESTARCO | C78: 569.5 | D78: 571.82 | E78: 557.73 | F78: 545.97 | G78: 531.88 | H78: 583.58 | I78: 597.67 | J78: 609.43 | K78: 585.9 | L78: 560.05 | M78: 0.68951
A79: 69 | B79: BOMDYEING | C79: 120.75 | D79: 119.50 | E79: 118.25 | F79: 115.75 | G79: 114.50 | H79: 122.00 | I79: 123.25 | J79: 125.75 | K79: 120.75 | L79: 117 | M79: 52.17327
A80: 70 | B80: BOSCHLTD | C80: 19625.45 | D80: 19805.12 | E80: 19110.23 | F80: 18595.02 | G80: 17900.13 | H80: 20320.33 | I80: 21015.22 | J80: 21530.43 | K80: 20500 | L80: 19289.9 | M80: 0.31948
A81: 71 | B81: BPCL | C81: 302.35 | D81: 300.85 | E81: 293.70 | F81: 285.05 | G81: 277.90 | H81: 309.50 | I81: 316.65 | J81: 325.30 | K81: 308 | L81: 292.2 | M81: 171.32661
A82: 72 | B82: BRFL | C82: 14.1 | D82: 14.07 | E82: 14.03 | F82: 13.97 | G82: 13.93 | H82: 14.13 | I82: 14.17 | J82: 14.23 | K82: 14.1 | L82: 14 | M82: 0.45898
A83: 73 | B83: BRIGADE | C83: 176.3 | D83: 176.93 | E83: 173.87 | F83: 171.43 | G83: 168.37 | H83: 179.37 | I83: 182.43 | J83: 184.87 | K83: 180 | L83: 174.5 | M83: 0.32708
A84: 74 | B84: BRITANNIA | C84: 5601 | D84: 5635.33 | E84: 5545.67 | F84: 5490.33 | G84: 5400.67 | H84: 5690.67 | I84: 5780.33 | J84: 5835.67 | K84: 5725 | L84: 5580 | M84: 1.26788
A85: 75 | B85: BSE | C85: 624.85 | D85: 623.92 | E85: 616.93 | F85: 609.02 | G85: 602.03 | H85: 631.83 | I85: 638.82 | J85: 646.73 | K85: 630.9 | L85: 616 | M85: 1.00099
A86: 77 | B86: CADILAHC | C86: 358.85 | D86: 360.35 | E86: 354.90 | F86: 350.95 | G86: 345.50 | H86: 364.30 | I86: 369.75 | J86: 373.70 | K86: 365.8 | L86: 356.4 | M86: 8.03123
A87: 78 | B87: CANBK | C87: 243.5 | D87: 247.60 | E87: 238.00 | F87: 232.50 | G87: 222.90 | H87: 253.10 | I87: 262.70 | J87: 268.20 | K87: 257.2 | L87: 242.1 | M87: 104.41779
A88: 79 | B88: CANFINHOME | C88: 274.65 | D88: 277.40 | E88: 269.80 | F88: 264.95 | G88: 257.35 | H88: 282.25 | I88: 289.85 | J88: 294.70 | K88: 285 | L88: 272.55 | M88: 15.51343
A89: 80 | B89: CAPF | C89: 477.75 | D89: 480.75 | E89: 470.35 | F89: 462.95 | G89: 452.55 | H89: 488.15 | I89: 498.55 | J89: 505.95 | K89: 491.15 | L89: 473.35 | M89: 12.64759
A90: 81 | B90: CAPLIPOINT | C90: 434.4 | D90: 449.72 | E90: 409.68 | F90: 384.97 | G90: 344.93 | H90: 474.43 | I90: 514.47 | J90: 539.18 | K90: 489.75 | L90: 425 | M90: 1.12268
A91: 82 | B91: CARBORUNIV | C91: 362.25 | D91: 360.80 | E91: 357.60 | F91: 352.95 | G91: 349.75 | H91: 365.45 | I91: 368.65 | J91: 373.30 | K91: 364 | L91: 356.15 | M91: 0.88719
A92: 83 | B92: CARERATING | C92: 1071.9 | D92: 1071.25 | E92: 1058.75 | F92: 1045.60 | G92: 1033.10 | H92: 1084.40 | I92: 1096.90 | J92: 1110.05 | K92: 1083.75 | L92: 1058.1 | M92: 0.21282
A93: 84 | B93: CASTROLIND | C93: 146.35 | D93: 147.50 | E93: 143.85 | F93: 141.35 | G93: 137.70 | H93: 150.00 | I93: 153.65 | J93: 156.15 | K93: 151.15 | L93: 145 | M93: 18.02083
A94: 85 | B94: CCL | C94: 268.15 | D94: 266.12 | E94: 262.23 | F94: 256.32 | G94: 252.43 | H94: 272.03 | I94: 275.92 | J94: 281.83 | K94: 270 | L94: 260.2 | M94: 0.92452
A95: 86 | B95: CDSL | C95: 244.7 | D95: 245.50 | E95: 241.00 | F95: 237.30 | G95: 232.80 | H95: 249.20 | I95: 253.70 | J95: 257.40 | K95: 250 | L95: 241.8 | M95: 2.32406
A96: 87 | B96: CEATLTD | C96: 1184.3 | D96: 1195.32 | E96: 1163.78 | F96: 1143.27 | G96: 1111.73 | H96: 1215.83 | I96: 1247.37 | J96: 1267.88 | K96: 1226.85 | L96: 1174.8 | M96: 6.91835
A97: 88 | B97: CENTRALBK | C97: 31.7 | D97: 31.82 | E97: 31.23 | F97: 30.77 | G97: 30.18 | H97: 32.28 | I97: 32.87 | J97: 33.33 | K97: 32.4 | L97: 31.35 | M97: 8.62747
A98: 89 | B98: CENTURYPLY | C98: 179.25 | D98: 180.72 | E98: 176.53 | F98: 173.82 | G98: 169.63 | H98: 183.43 | I98: 187.62 | J98: 190.33 | K98: 184.9 | L98: 178 | M98: 2.89827
A99: 90 | B99: CENTURYTEX | C99: 852.2 | D99: 855.02 | E99: 838.18 | F99: 824.17 | G99: 807.33 | H99: 869.03 | I99: 885.87 | J99: 899.88 | K99: 871.85 | L99: 841 | M99: 8.76522
A100: 91 | B100: CERA | C100: 2449.15 | D100: 2439.65 | E100: 2410.60 | F100: 2372.05 | G100: 2343.00 | H100: 2478.20 | I100: 2507.25 | J100: 2545.80 | K100: 2468.7 | L100: 2401.1 | M100: 0.34738
A101: 92 | B101: CGPOWER | C101: 37.4 | D101: 37.33 | E101: 35.87 | F101: 34.33 | G101: 32.87 | H101: 38.87 | I101: 40.33 | J101: 41.87 | K101: 38.8 | L101: 35.8 | M101: 126.74044
A102: 93 | B102: CHAMBLFERT | C102: 145.05 | D102: 145.18 | E102: 142.07 | F102: 139.08 | G102: 135.97 | H102: 148.17 | I102: 151.28 | J102: 154.27 | K102: 148.3 | L102: 142.2 | M102: 5.47906
A103: 94 | B103: CHENNPETRO | C103: 274 | D103: 273.40 | E103: 266.95 | F103: 259.90 | G103: 253.45 | H103: 280.45 | I103: 286.90 | J103: 293.95 | K103: 279.85 | L103: 266.35 | M103: 9.91303
A104: 95 | B104: CHOLAFIN | C104: 1323.2 | D104: 1333.72 | E104: 1277.53 | F104: 1231.87 | G104: 1175.68 | H104: 1379.38 | I104: 1435.57 | J104: 1481.23 | K104: 1389.9 | L104: 1288.05 | M104: 5.2732
A105: 96 | B105: CIPLA | C105: 607.1 | D105: 610.85 | E105: 601.75 | F105: 596.40 | G105: 587.30 | H105: 616.20 | I105: 625.30 | J105: 630.65 | K105: 619.95 | L105: 605.5 | M105: 15.66053
A106: 97 | B106: COALINDIA | C106: 261.55 | D106: 261.65 | E106: 258.80 | F106: 256.05 | G106: 253.20 | H106: 264.40 | I106: 267.25 | J106: 270.00 | K106: 264.5 | L106: 258.9 | M106: 381.31025
A107: 98 | B107: COCHINSHIP | C107: 389.3 | D107: 390.85 | E107: 386.45 | F107: 383.60 | G107: 379.20 | H107: 393.70 | I107: 398.10 | J107: 400.95 | K107: 395.25 | L107: 388 | M107: 1.32865
A108: 99 | B108: COFFEEDAY | C108: 270.6 | D108: 270.80 | E108: 267.60 | F108: 264.60 | G108: 261.40 | H108: 273.80 | I108: 277.00 | J108: 280.00 | K108: 274 | L108: 267.8 | M108: 1.61453
A109: 100 | B109: COLPAL | C109: 1108.1 | D109: 1109.52 | E109: 1099.58 | F109: 1091.07 | G109: 1081.13 | H109: 1118.03 | I109: 1127.97 | J109: 1136.48 | K109: 1119.45 | L109: 1101 | M109: 5.5153
A110: 101 | B110: CONCOR | C110: 659.65 | D110: 662.03 | E110: 652.47 | F110: 645.28 | G110: 635.72 | H110: 669.22 | I110: 678.78 | J110: 685.97 | K110: 671.6 | L110: 654.85 | M110: 5.99185
A111: 102 | B111: COROMANDEL | C111: 424.75 | D111: 423.67 | E111: 419.38 | F111: 414.02 | G111: 409.73 | H111: 429.03 | I111: 433.32 | J111: 438.68 | K111: 427.95 | L111: 418.3 | M111: 0.62551
A112: 103 | B112: COX&KINGS | C112: 199.5 | D112: 200.97 | E112: 194.93 | F112: 190.37 | G112: 184.33 | H112: 205.53 | I112: 211.57 | J112: 216.13 | K112: 207 | L112: 196.4 | M112: 0.20294
A113: 104 | B113: CRISIL | C113: 1502.5 | D113: 1495.25 | E113: 1465.50 | F113: 1428.50 | G113: 1398.75 | H113: 1532.25 | I113: 1562.00 | J113: 1599.00 | K113: 1525 | L113: 1458.25 | M113: 0.08807
A114: 105 | B114: CROMPTON | C114: 218.3 | D114: 217.13 | E114: 214.42 | F114: 210.53 | G114: 207.82 | H114: 221.02 | I114: 223.73 | J114: 227.62 | K114: 219.85 | L114: 213.25 | M114: 5.63869
A115: 106 | B115: CUB | C115: 169.25 | D115: 169.32 | E115: 167.03 | F115: 164.82 | G115: 162.53 | H115: 171.53 | I115: 173.82 | J115: 176.03 | K115: 171.6 | L115: 167.1 | M115: 25.19302
A116: 107 | B116: CUMMINSIND | C116: 768.3 | D116: 766.65 | E116: 749.70 | F116: 731.10 | G116: 714.15 | H116: 785.25 | I116: 802.20 | J116: 820.80 | K116: 783.6 | L116: 748.05 | M116: 9.71369
A117: 108 | B117: CYIENT | C117: 619.2 | D117: 618.00 | E117: 613.25 | F117: 607.30 | G117: 602.55 | H117: 623.95 | I117: 628.70 | J117: 634.65 | K117: 622.75 | L117: 612.05 | M117: 3.64065
A118: 109 | B118: DABUR | C118: 369.45 | D118: 369.93 | E118: 364.97 | F118: 360.48 | G118: 355.52 | H118: 374.42 | I118: 379.38 | J118: 383.87 | K118: 374.9 | L118: 365.45 | M118: 61.69192
A119: 110 | B119: DBCORP | C119: 164.8 | D119: 165.85 | E119: 163.45 | F119: 162.10 | G119: 159.70 | H119: 167.20 | I119: 169.60 | J119: 170.95 | K119: 168.25 | L119: 164.5 | M119: 0.3695
A120: 111 | B120: DBL | C120: 427.35 | D120: 433.12 | E120: 418.23 | F120: 409.12 | G120: 394.23 | H120: 442.23 | I120: 457.12 | J120: 466.23 | K120: 448 | L120: 424 | M120: 3.91433
A121: 112 | B121: DBREALTY | C121: 23.45 | D121: 22.38 | E121: 21.07 | F121: 18.68 | G121: 17.37 | H121: 24.77 | I121: 26.08 | J121: 28.47 | K121: 23.7 | L121: 20 | M121: 16.98165
A122: 113 | B122: DCAL | C122: 228.75 | D122: 226.05 | E122: 219.65 | F122: 210.55 | G122: 204.15 | H122: 235.15 | I122: 241.55 | J122: 250.65 | K122: 232.45 | L122: 216.95 | M122: 1.78295
A123: 114 | B123: DCBBANK | C123: 159.25 | D123: 160.45 | E123: 156.90 | F123: 154.55 | G123: 151.00 | H123: 162.80 | I123: 166.35 | J123: 168.70 | K123: 164 | L123: 158.1 | M123: 12.01121
A124: 115 | B124: DCMSHRIRAM | C124: 402.5 | D124: 406.13 | E124: 394.32 | F124: 386.13 | G124: 374.32 | H124: 414.32 | I124: 426.13 | J124: 434.32 | K124: 417.95 | L124: 397.95 | M124: 0.81422
A125: 116 | B125: DEEPAKFERT | C125: 208.7 | D125: 208.33 | E125: 203.37 | F125: 198.03 | G125: 193.07 | H125: 213.67 | I125: 218.63 | J125: 223.97 | K125: 213.3 | L125: 203 | M125: 1.99871
A126: 117 | B126: DELTACORP | C126: 248.75 | D126: 249.13 | E126: 245.62 | F126: 242.48 | G126: 238.97 | H126: 252.27 | I126: 255.78 | J126: 258.92 | K126: 252.65 | L126: 246 | M126: 22.21438
A127: 118 | B127: DEN | C127: 68.25 | D127: 68.42 | E127: 67.83 | F127: 67.42 | G127: 66.83 | H127: 68.83 | I127: 69.42 | J127: 69.83 | K127: 69 | L127: 68 | M127: 1.88648
A128: 119 | B128: DENABANK | C128: 15.85 | D128: 15.93 | E128: 15.72 | F128: 15.58 | G128: 15.37 | H128: 16.07 | I128: 16.28 | J128: 16.42 | K128: 16.15 | L128: 15.8 | M128: 8.47789
A129: 120 | B129: DHFL | C129: 231.4 | D129: 232.63 | E129: 225.27 | F129: 219.13 | G129: 211.77 | H129: 238.77 | I129: 246.13 | J129: 252.27 | K129: 240 | L129: 226.5 | M129: 241.38633
A130: 121 | B130: DISHTV | C130: 43.15 | D130: 43.40 | E130: 42.55 | F130: 41.95 | G130: 41.10 | H130: 44.00 | I130: 44.85 | J130: 45.45 | K130: 44.25 | L130: 42.8 | M130: 29.3581
A131: 122 | B131: DIVISLAB | C131: 1499.25 | D131: 1503.12 | E131: 1482.28 | F131: 1465.32 | G131: 1444.48 | H131: 1520.08 | I131: 1540.92 | J131: 1557.88 | K131: 1523.95 | L131: 1486.15 | M131: 9.24743
A132: 123 | B132: DIXON | C132: 2140.3 | D132: 2138.12 | E132: 2122.23 | F132: 2104.17 | G132: 2088.28 | H132: 2156.18 | I132: 2172.07 | J132: 2190.13 | K132: 2154 | L132: 2120.05 | M132: 0.79847
A133: 124 | B133: DLF | C133: 169.95 | D133: 172.32 | E133: 165.73 | F133: 161.52 | G133: 154.93 | H133: 176.53 | I133: 183.12 | J133: 187.33 | K133: 178.9 | L133: 168.1 | M133: 120.42541
A134: 125 | B134: DMART | C134: 1462.5 | D134: 1437.77 | E134: 1392.73 | F134: 1322.97 | G134: 1277.93 | H134: 1507.53 | I134: 1552.57 | J134: 1622.33 | K134: 1482.8 | L134: 1368 | M134: 17.6102
A135: 126 | B135: DREDGECORP | C135: 325.5 | D135: 328.92 | E135: 318.63 | F135: 311.77 | G135: 301.48 | H135: 335.78 | I135: 346.07 | J135: 352.93 | K135: 339.2 | L135: 322.05 | M135: 1.85569
A136: 127 | B136: DRREDDY | C136: 2423.25 | D136: 2434.23 | E136: 2392.57 | F136: 2361.88 | G136: 2320.22 | H136: 2464.92 | I136: 2506.58 | J136: 2537.27 | K136: 2475.9 | L136: 2403.55 | M136: 8.80708
A137: 128 | B137: ECLERX | C137: 1072 | D137: 1076.57 | E137: 1058.38 | F137: 1044.77 | G137: 1026.58 | H137: 1090.18 | I137: 1108.37 | J137: 1121.98 | K137: 1094.75 | L137: 1062.95 | M137: 0.06603
A138: 129 | B138: EDELWEISS | C138: 174.35 | D138: 171.80 | E138: 166.10 | F138: 157.85 | G138: 152.15 | H138: 180.05 | I138: 185.75 | J138: 194.00 | K138: 177.5 | L138: 163.55 | M138: 44.87651
A139: 130 | B139: EICHERMOT | C139: 22674.1 | D139: 22651.55 | E139: 22222.55 | F139: 21771.00 | G139: 21342.00 | H139: 23103.10 | I139: 23532.10 | J139: 23983.65 | K139: 23080.55 | L139: 22200 | M139: 1.31866
A140: 131 | B140: EIDPARRY | C140: 222.9 | D140: 223.57 | E140: 217.68 | F140: 212.47 | G140: 206.58 | H140: 228.78 | I140: 234.67 | J140: 239.88 | K140: 229.45 | L140: 218.35 | M140: 1.56038
A141: 132 | B141: EIHOTEL | C141: 165.4 | D141: 164.55 | E141: 163.10 | F141: 160.80 | G141: 159.35 | H141: 166.85 | I141: 168.30 | J141: 170.60 | K141: 166 | L141: 162.25 | M141: 1.17445
A142: 133 | B142: EMAMILTD | C142: 421.75 | D142: 415.42 | E142: 404.98 | F142: 388.22 | G142: 377.78 | H142: 432.18 | I142: 442.62 | J142: 459.38 | K142: 425.85 | L142: 398.65 | M142: 5.35081
A143: 134 | B143: ENDURANCE | C143: 1255.65 | D143: 1250.20 | E143: 1230.45 | F143: 1205.25 | G143: 1185.50 | H143: 1275.40 | I143: 1295.15 | J143: 1320.35 | K143: 1269.95 | L143: 1225 | M143: 0.12867
A144: 135 | B144: ENGINERSIN | C144: 119.9 | D144: 121.93 | E144: 116.52 | F144: 113.13 | G144: 107.72 | H144: 125.32 | I144: 130.73 | J144: 134.12 | K144: 127.35 | L144: 118.55 | M144: 56.35644
A145: 136 | B145: EQUITAS | C145: 111.7 | D145: 112.90 | E145: 109.55 | F145: 107.40 | G145: 104.05 | H145: 115.05 | I145: 118.40 | J145: 120.55 | K145: 116.25 | L145: 110.75 | M145: 44.11238
A146: 137 | B146: ERIS | C146: 676.3 | D146: 678.68 | E146: 667.62 | F146: 658.93 | G146: 647.87 | H146: 687.37 | I146: 698.43 | J146: 707.12 | K146: 689.75 | L146: 670 | M146: 0.0505
A147: 138 | B147: EROSMEDIA | C147: 89.35 | D147: 88.12 | E147: 82.73 | F147: 76.12 | G147: 70.73 | H147: 94.73 | I147: 100.12 | J147: 106.73 | K147: 93.5 | L147: 81.5 | M147: 13.20165
A148: 139 | B148: ESCORTS | C148: 676 | D148: 679.83 | E148: 664.17 | F148: 652.33 | G148: 636.67 | H148: 691.67 | I148: 707.33 | J148: 719.17 | K148: 695.5 | L148: 668 | M148: 23.90937
A149: 140 | B149: EVEREADY | C149: 190.15 | D149: 190.18 | E149: 186.32 | F149: 182.48 | G149: 178.62 | H149: 194.02 | I149: 197.88 | J149: 201.72 | K149: 194.05 | L149: 186.35 | M149: 1.0266
A150: 141 | B150: EXIDEIND | C150: 253.55 | D150: 255.65 | E150: 248.90 | F150: 244.25 | G150: 237.50 | H150: 260.30 | I150: 267.05 | J150: 271.70 | K150: 262.4 | L150: 251 | M150: 25.25198
A151: 142 | B151: FCONSUMER | C151: 44.1 | D151: 44.13 | E151: 43.47 | F151: 42.83 | G151: 42.17 | H151: 44.77 | I151: 45.43 | J151: 46.07 | K151: 44.8 | L151: 43.5 | M151: 22.82734
A152: 143 | B152: FEDERALBNK | C152: 82.4 | D152: 83.10 | E152: 81.10 | F152: 79.80 | G152: 77.80 | H152: 84.40 | I152: 86.40 | J152: 87.70 | K152: 85.1 | L152: 81.8 | M152: 141.23922
A153: 144 | B153: FINCABLES | C153: 505.15 | D153: 505.70 | E153: 501.45 | F153: 497.75 | G153: 493.50 | H153: 509.40 | I153: 513.65 | J153: 517.35 | K153: 509.95 | L153: 502 | M153: 0.08253
A154: 145 | B154: FINPIPE | C154: 540.4 | D154: 542.75 | E154: 536.60 | F154: 532.80 | G154: 526.65 | H154: 546.55 | I154: 552.70 | J154: 556.50 | K154: 548.9 | L154: 538.95 | M154: 0.336
A155: 146 | B155: FLFL | C155: 374.6 | D155: 372.48 | E155: 368.12 | F155: 361.63 | G155: 357.27 | H155: 378.97 | I155: 383.33 | J155: 389.82 | K155: 376.85 | L155: 366 | M155: 0.29869
A156: 147 | B156: FSL | C156: 59.25 | D156: 59.73 | E156: 58.12 | F156: 56.98 | G156: 55.37 | H156: 60.87 | I156: 62.48 | J156: 63.62 | K156: 61.35 | L156: 58.6 | M156: 20.55007
A157: 148 | B157: GAIL | C157: 369.75 | D157: 369.03 | E157: 364.67 | F157: 359.58 | G157: 355.22 | H157: 374.12 | I157: 378.48 | J157: 383.57 | K157: 373.4 | L157: 363.95 | M157: 60.35578
A158: 149 | B158: GATI | C158: 78.3 | D158: 78.05 | E158: 76.25 | F158: 74.20 | G158: 72.40 | H158: 80.10 | I158: 81.90 | J158: 83.95 | K158: 79.85 | L158: 76 | M158: 8.32366
A159: 150 | B159: GDL | C159: 133.1 | D159: 133.35 | E159: 130.75 | F159: 128.40 | G159: 125.80 | H159: 135.70 | I159: 138.30 | J159: 140.65 | K159: 135.95 | L159: 131 | M159: 3.43762
A160: 151 | B160: GEPIL | C160: 825.95 | D160: 827.98 | E160: 813.97 | F160: 801.98 | G160: 787.97 | H160: 839.97 | I160: 853.98 | J160: 865.97 | K160: 842 | L160: 816 | M160: 0.08921
A161: 152 | B161: GESHIP | C161: 310.8 | D161: 312.75 | E161: 303.05 | F161: 295.30 | G161: 285.60 | H161: 320.50 | I161: 330.20 | J161: 337.95 | K161: 322.45 | L161: 305 | M161: 1.31396
A162: 153 | B162: GET&D | C162: 240.2 | D162: 242.02 | E162: 234.23 | F162: 228.27 | G162: 220.48 | H162: 247.98 | I162: 255.77 | J162: 261.73 | K162: 249.8 | L162: 236.05 | M162: 0.31969
A163: 154 | B163: GHCL | C163: 215.95 | D163: 218.67 | E163: 208.33 | F163: 200.72 | G163: 190.38 | H163: 226.28 | I163: 236.62 | J163: 244.23 | K163: 229 | L163: 211.05 | M163: 3.02101
A164: 155 | B164: GICRE | C164: 326.65 | D164: 324.37 | E164: 319.78 | F164: 312.92 | G164: 308.33 | H164: 331.23 | I164: 335.82 | J164: 342.68 | K164: 328.95 | L164: 317.5 | M164: 0.40123
A165: 156 | B165: GILLETTE | C165: 6539.65 | D165: 6540.68 | E165: 6501.37 | F165: 6463.08 | G165: 6423.77 | H165: 6578.97 | I165: 6618.28 | J165: 6656.57 | K165: 6580 | L165: 6502.4 | M165: 0.08265
A166: 157 | B166: GLAXO | C166: 1440.5 | D166: 1435.17 | E166: 1420.33 | F166: 1400.17 | G166: 1385.33 | H166: 1455.33 | I166: 1470.17 | J166: 1490.33 | K166: 1450 | L166: 1415 | M166: 0.10606
A167: 158 | B167: GLENMARK | C167: 626.45 | D167: 630.42 | E167: 617.48 | F167: 608.52 | G167: 595.58 | H167: 639.38 | I167: 652.32 | J167: 661.28 | K167: 643.35 | L167: 621.45 | M167: 6.34596
A168: 159 | B168: GMDCLTD | C168: 86.85 | D168: 87.43 | E168: 85.92 | F168: 84.98 | G168: 83.47 | H168: 88.37 | I168: 89.88 | J168: 90.82 | K168: 88.95 | L168: 86.5 | M168: 2.91349
A169: 160 | B169: GMRINFRA | C169: 16.95 | D169: 17.17 | E169: 16.58 | F169: 16.22 | G169: 15.63 | H169: 17.53 | I169: 18.12 | J169: 18.48 | K169: 17.75 | L169: 16.8 | M169: 370.25749
A170: 161 | B170: GNFC | C170: 380.8 | D170: 379.88 | E170: 364.27 | F170: 347.73 | G170: 332.12 | H170: 396.42 | I170: 412.03 | J170: 428.57 | K170: 395.5 | L170: 363.35 | M170: 40.73462
A171: 162 | B171: GODFRYPHLP | C171: 791.8 | D171: 793.95 | E171: 773.90 | F171: 756.00 | G171: 735.95 | H171: 811.85 | I171: 831.90 | J171: 849.80 | K171: 814 | L171: 776.05 | M171: 3.21454
A172: 163 | B172: GODREJAGRO | C172: 522.2 | D172: 524.35 | E172: 518.85 | F172: 515.50 | G172: 510.00 | H172: 527.70 | I172: 533.20 | J172: 536.55 | K172: 529.85 | L172: 521 | M172: 0.87778
A173: 164 | B173: GODREJCP | C173: 714.45 | D173: 719.52 | E173: 690.18 | F173: 665.92 | G173: 636.58 | H173: 743.78 | I173: 773.12 | J173: 797.38 | K173: 748.85 | L173: 695.25 | M173: 23.03337
A174: 165 | B174: GODREJIND | C174: 477.7 | D174: 475.30 | E174: 465.50 | F174: 453.30 | G174: 443.50 | H174: 487.50 | I174: 497.30 | J174: 509.50 | K174: 485.1 | L174: 463.1 | M174: 5.4975
A175: 166 | B175: GODREJPROP | C175: 606.45 | D175: 605.78 | E175: 598.67 | F175: 590.88 | G175: 583.77 | H175: 613.57 | I175: 620.68 | J175: 628.47 | K175: 612.9 | L175: 598 | M175: 2.30475
A176: 167 | B176: GPPL | C176: 98.35 | D176: 98.95 | E176: 97.40 | F176: 96.45 | G176: 94.90 | H176: 99.90 | I176: 101.45 | J176: 102.40 | K176: 100.5 | L176: 98 | M176: 2.26016
A177: 168 | B177: GRANULES | C177: 101.15 | D177: 101.57 | E177: 99.73 | F177: 98.32 | G177: 96.48 | H177: 102.98 | I177: 104.82 | J177: 106.23 | K177: 103.4 | L177: 100.15 | M177: 38.09907
A178: 169 | B178: GRAPHITE | C178: 978.7 | D178: 986.88 | E178: 966.82 | F178: 954.93 | G178: 934.87 | H178: 998.77 | I178: 1018.83 | J178: 1030.72 | K178: 1006.95 | L178: 975 | M178: 5.34816
A179: 170 | B179: GRASIM | C179: 847.6 | D179: 850.62 | E179: 838.23 | F179: 828.87 | G179: 816.48 | H179: 859.98 | I179: 872.37 | J179: 881.73 | K179: 863 | L179: 841.25 | M179: 24.91268
A180: 171 | B180: GREAVESCOT | C180: 119 | D180: 119.33 | E180: 117.67 | F180: 116.33 | G180: 114.67 | H180: 120.67 | I180: 122.33 | J180: 123.67 | K180: 121 | L180: 118 | M180: 4.85764
A181: 172 | B181: GREENPLY | C181: 137.05 | D181: 137.55 | E181: 133.50 | F181: 129.95 | G181: 125.90 | H181: 141.10 | I181: 145.15 | J181: 148.70 | K181: 141.6 | L181: 134 | M181: 1.18709
A182: 173 | B182: GRUH | C182: 297.8 | D182: 297.25 | E182: 293.55 | F182: 289.30 | G182: 285.60 | H182: 301.50 | I182: 305.20 | J182: 309.45 | K182: 300.95 | L182: 293 | M182: 4.88652
A183: 174 | B183: GSFC | C183: 116.1 | D183: 115.05 | E183: 111.15 | F183: 106.20 | G183: 102.30 | H183: 120.00 | I183: 123.90 | J183: 128.85 | K183: 118.95 | L183: 110.1 | M183: 97.17192
A184: 175 | B184: GSKCONS | C184: 7119 | D184: 7176.35 | E184: 7002.65 | F184: 6886.30 | G184: 6712.60 | H184: 7292.70 | I184: 7466.40 | J184: 7582.75 | K184: 7350.05 | L184: 7060 | M184: 0.30867
A185: 176 | B185: GSPL | C185: 181.95 | D185: 182.03 | E185: 180.47 | F185: 178.98 | G185: 177.42 | H185: 183.52 | I185: 185.08 | J185: 186.57 | K185: 183.6 | L185: 180.55 | M185: 2.86311
A186: 177 | B186: GUJALKALI | C186: 591.55 | D186: 586.43 | E186: 570.87 | F186: 550.18 | G186: 534.62 | H186: 607.12 | I186: 622.68 | J186: 643.37 | K186: 602 | L186: 565.75 | M186: 2.23338
A187: 178 | B187: GUJFLUORO | C187: 885.5 | D187: 890.67 | E187: 878.08 | F187: 870.67 | G187: 858.08 | H187: 898.08 | I187: 910.67 | J187: 918.08 | K187: 903.25 | L187: 883.25 | M187: 1.58363
A188: 179 | B188: GUJGASLTD | C188: 634.4 | D188: 635.48 | E188: 628.97 | F188: 623.53 | G188: 617.02 | H188: 640.92 | I188: 647.43 | J188: 652.87 | K188: 642 | L188: 630.05 | M188: 0.5299
A189: 180 | B189: GULFOILLUB | C189: 725.4 | D189: 732.13 | E189: 714.27 | F189: 703.13 | G189: 685.27 | H189: 743.27 | I189: 761.13 | J189: 772.27 | K189: 750 | L189: 721 | M189: 0.0651
A190: 181 | B190: GVKPIL | C190: 8.05 | D190: 8.05 | E190: 7.75 | F190: 7.45 | G190: 7.15 | H190: 8.35 | I190: 8.65 | J190: 8.95 | K190: 8.35 | L190: 7.75 | M190: 38.34128
A191: 182 | B191: HATHWAY | C191: 30 | D191: 30.05 | E191: 29.90 | F191: 29.80 | G191: 29.65 | H191: 30.15 | I191: 30.30 | J191: 30.40 | K191: 30.2 | L191: 29.95 | M191: 6.32065
A192: 183 | B192: HATSUN | C192: 626 | D192: 623.60 | E192: 616.15 | F192: 606.30 | G192: 598.85 | H192: 633.45 | I192: 640.90 | J192: 650.75 | K192: 631.05 | L192: 613.75 | M192: 0.04287
A193: 184 | B193: HAVELLS | C193: 646.15 | D193: 646.52 | E193: 638.63 | F193: 631.12 | G193: 623.23 | H193: 654.03 | I193: 661.92 | J193: 669.43 | K193: 654.4 | L193: 639 | M193: 9.25851
A194: 185 | B194: HCC | C194: 13.8 | D194: 13.83 | E194: 13.17 | F194: 12.53 | G194: 11.87 | H194: 14.47 | I194: 15.13 | J194: 15.77 | K194: 14.5 | L194: 13.2 | M194: 221.42103
A195: 186 | B195: HCL-INSYS | C195: 26.8 | D195: 27.13 | E195: 26.27 | F195: 25.73 | G195: 24.87 | H195: 27.67 | I195: 28.53 | J195: 29.07 | K195: 28 | L195: 26.6 | M195: 11.85385
A196: 187 | B196: HCLTECH | C196: 1004.6 | D196: 1009.75 | E196: 990.00 | F196: 975.40 | G196: 955.65 | H196: 1024.35 | I196: 1044.10 | J196: 1058.70 | K196: 1029.5 | L196: 995.15 | M196: 27.87603
A197: 188 | B197: HDFC | C197: 1824.4 | D197: 1808.93 | E197: 1780.97 | F197: 1737.53 | G197: 1709.57 | H197: 1852.37 | I197: 1880.33 | J197: 1923.77 | K197: 1836.9 | L197: 1765.5 | M197: 37.01701
A198: 189 | B198: HDFCBANK | C198: 1949.45 | D198: 1940.48 | E198: 1920.97 | F198: 1892.48 | G198: 1872.97 | H198: 1968.97 | I198: 1988.48 | J198: 2016.97 | K198: 1960 | L198: 1912 | M198: 75.23217
A199: 190 | B199: HDIL | C199: 21.45 | D199: 21.50 | E199: 21.10 | F199: 20.75 | G199: 20.35 | H199: 21.85 | I199: 22.25 | J199: 22.60 | K199: 21.9 | L199: 21.15 | M199: 35.14587
A200: 191 | B200: HEG | C200: 4180.9 | D200: 4228.53 | E200: 4114.57 | F200: 4048.23 | G200: 3934.27 | H200: 4294.87 | I200: 4408.83 | J200: 4475.17 | K200: 4342.5 | L200: 4162.2 | M200: 2.47992
A201: 192 | B201: HEIDELBERG | C201: 149.55 | D201: 150.45 | E201: 146.10 | F201: 142.65 | G201: 138.30 | H201: 153.90 | I201: 158.25 | J201: 161.70 | K201: 154.8 | L201: 147 | M201: 2.05133
A202: 193 | B202: HERITGFOOD | C202: 510.1 | D202: 515.15 | E202: 497.45 | F202: 484.80 | G202: 467.10 | H202: 527.80 | I202: 545.50 | J202: 558.15 | K202: 532.85 | L202: 502.5 | M202: 0.29318
A203: 194 | B203: HEROMOTOCO | C203: 2896.6 | D203: 2891.67 | E203: 2843.48 | F203: 2790.37 | G203: 2742.18 | H203: 2944.78 | I203: 2992.97 | J203: 3046.08 | K203: 2939.85 | L203: 2838.55 | M203: 5.48045
A204: 195 | B204: HEXAWARE | C204: 311.6 | D204: 314.77 | E204: 305.93 | F204: 300.27 | G204: 291.43 | H204: 320.43 | I204: 329.27 | J204: 334.93 | K204: 323.6 | L204: 309.1 | M204: 26.85846
A205: 196 | B205: HFCL | C205: 20.6 | D205: 20.73 | E205: 20.32 | F205: 20.03 | G205: 19.62 | H205: 21.02 | I205: 21.43 | J205: 21.72 | K205: 21.15 | L205: 20.45 | M205: 31.79436
A206: 197 | B206: HIMATSEIDE | C206: 234.65 | D206: 236.43 | E206: 229.97 | F206: 225.28 | G206: 218.82 | H206: 241.12 | I206: 247.58 | J206: 252.27 | K206: 242.9 | L206: 231.75 | M206: 0.38255
... 304 more rows

Sheet Bulk Deals
E6: Back To Main Page
A7: Subject : | B7: BULK DEAL | D7: =Main!B10 -> 2018-11-05
A9: Date | B9: Scrip code | C9: Scrip Name | D9: Client Name | E9: Buy / Sell | F9: Quantity Traded | G9: Trade Price / Wt.Avg.trade price | H9: Exchange
A10: 2018-11-02 | B10: 500002 | C10: ABB | D10: ABB ASEA BROWN BOVERI LIMITED | E10: BUY | F10: 12,540,330 | G10: 1306 | H10: BSE
A11: 2018-11-02 | B11: 500002 | C11: ABB | D11: ABB NORDEN HOLDINGS AB | E11: SELL | F11: 12,540,330 | G11: 1306 | H11: BSE
A12: 2018-11-02 | B12: 540694 | C12: ANG | D12: NEERAJ GUPTA | E12: SELL | F12: 36,800 | G12: 34.28 | H12: BSE
A13: 2018-11-02 | B13: 540694 | C13: ANG | D13: NEERAJ GUPTA | E13: BUY | F13: 33,600 | G13: 35.93 | H13: BSE
A14: 2018-11-02 | B14: 542057 | C14: BCPL | D14: AMRUTLAL GORDHANDAS THOBHANI | E14: SELL | F14: 240,000 | G14: 36.62 | H14: BSE
A15: 2018-11-02 | B15: 542057 | C15: BCPL | D15: VISHWAMANI MATAMANI TIWARI . | E15: BUY | F15: 100,000 | G15: 36 | H15: BSE
A16: 2018-11-02 | B16: 542057 | C16: BCPL | D16: NNM SECURITIES PVT LTD | E16: SELL | F16: 96,000 | G16: 36 | H16: BSE
A17: 2018-11-02 | B17: 540361 | C17: DANUBE | D17: SUNIL HUKUMAT RAJDEV | E17: BUY | F17: 30,887 | G17: 4.48 | H17: BSE
A18: 2018-11-02 | B18: 539009 | C18: GBLIL | D18: RACHIT KAMDAR | E18: SELL | F18: 40,000 | G18: 49.6 | H18: BSE
A19: 2018-11-02 | B19: 539009 | C19: GBLIL | D19: HIGHGROWTH VINCOM PRIVATE LIMITED | E19: BUY | F19: 65,000 | G19: 49.6 | H19: BSE
A20: 2018-11-02 | B20: 539853 | C20: GOLDENCAP | D20: RAHUL KATHURIA | E20: BUY | F20: 18,000 | G20: 25.65 | H20: BSE
A21: 2018-11-02 | B21: 535667 | C21: IFINSEC | D21: RUDRAVEERYA DEVELOPERS LIMITED | E21: BUY | F21: 135,000 | G21: 55.27 | H21: BSE
A22: 2018-11-02 | B22: 532937 | C22: KUANTUM | D22: KAPEDOME ENTERPRISES LIMITED | E22: BUY | F22: 200,000 | G22: 600 | H22: BSE
A23: 2018-11-02 | B23: 532937 | C23: KUANTUM | D23: COMBINE OVERSEAS LTD | E23: SELL | F23: 200,000 | G23: 600 | H23: BSE
A24: 2018-11-02 | B24: 531206 | C24: KWALITYCL | D24: RAJIV MAHESHBHAI MANGLANI | E24: BUY | F24: 50,000 | G24: 8.6 | H24: BSE
A25: 2018-11-02 | B25: 531206 | C25: KWALITYCL | D25: FASTNER MACHINERY DEALERS PVT LIMITED | E25: SELL | F25: 50,000 | G25: 8.6 | H25: BSE
A26: 2018-11-02 | B26: 539311 | C26: NFIL | D26: PIYUSH BATUKBHAI DAVE | E26: SELL | F26: 52,037 | G26: 15.1 | H26: BSE
A27: 2018-11-02 | B27: 540405 | C27: OCEANIC | D27: KHYATITULAN PATEL | E27: BUY | F27: 20,000 | G27: 70.26 | H27: BSE
A28: 2018-11-02 | B28: 538860 | C28: PANAFIC | D28: SUVIDHA BUILDTECH PRIVATE LIMITED . | E28: BUY | F28: 525,000 | G28: 0.3 | H28: BSE
A29: 2018-11-02 | B29: 538860 | C29: PANAFIC | D29: EXPERT INVESTMENT ADVISORY PVT LTD | E29: SELL | F29: 600,000 | G29: 0.3 | H29: BSE
A30: 2018-11-02 | B30: 539760 | C30: RELICAB | D30: PARESHKUMAR SHAH PRATIK | E30: SELL | F30: 30,000 | G30: 32.2 | H30: BSE
A31: 2018-11-02 | B31: 539760 | C31: RELICAB | D31: OVERSKUD MULTI ASSET MANAGEMENT PRIVATE LIMITED | E31: BUY | F31: 30,000 | G31: 32.2 | H31: BSE
A32: 2018-11-02 | B32: 542019 | C32: SHUBHAM | D32: BIPINKUMAR KHODIDAS NADIYA | E32: BUY | F32: 60,000 | G32: 42.5 | H32: BSE
A33: 2018-11-02 | B33: 542019 | C33: SHUBHAM | D33: A SHAH VISMAY | E33: SELL | F33: 60,000 | G33: 42.5 | H33: BSE
A34: 2018-11-02 | B34: 519242 | C34: SRDAPRT | D34: MAMTADEVI ASHOKKUMAR BIYANI | E34: SELL | F34: 16,000 | G34: 4.75 | H34: BSE
A35: 2018-11-02 | B35: 519242 | C35: SRDAPRT | D35: VIGYAN VINOD LODHA | E35: BUY | F35: 10,000 | G35: 4.75 | H35: BSE
A36: 2018-11-02 | B36: 519242 | C36: SRDAPRT | D36: VIVEK VINOD LODHA | E36: BUY | F36: 10,000 | G36: 4.74 | H36: BSE
A37: 2018-11-02 | B37: 519242 | C37: SRDAPRT | D37: ANJANA KABRA | E37: SELL | F37: 13,000 | G37: 4.75 | H37: BSE
A38: 2018-11-02 | B38: 530037 | C38: SREEJAYA | D38: VICCO PRODUCTS BOMBAY PVT LTD | E38: SELL | F38: 60,300 | G38: 1.93 | H38: BSE
A39: 2018-11-02 | B39: 530037 | C39: SREEJAYA | D39: RAMA MURTHY | E39: BUY | F39: 41,501 | G39: 1.93 | H39: BSE
A40: 2018-11-02 | B40: 538733 | C40: STARLIT | D40: ADVANI PRIVATE LIMITED | E40: SELL | F40: 68,005 | G40: 8.3 | H40: BSE
A41: 2018-11-02 | B41: 538733 | C41: STARLIT | D41: RAMA GARG | E41: BUY | F41: 68,005 | G41: 8.3 | H41: BSE
A42: 2018-11-02 | B42: 539798 | C42: UMIYA | D42: ARUN DASHRATHBHAI PRAJAPATI | E42: BUY | F42: 103,216 | G42: 29.01 | H42: BSE
A43: 2018-11-02 | B43: 539798 | C43: UMIYA | D43: VIMAL RAMESHBHAI HIRAPARA | E43: SELL | F43: 55,764 | G43: 28.41 | H43: BSE
A44: 2018-11-02 | B44: 539798 | C44: UMIYA | D44: VIMAL RAMESHBHAI HIRAPARA | E44: BUY | F44: 30,912 | G44: 28.44 | H44: BSE
A45: 2018-11-02 | B45: 539798 | C45: UMIYA | D45: BEELINE BROKING LIMITED | E45: SELL | F45: 135,300 | G45: 28.19 | H45: BSE
A46: 2018-11-02 | B46: 542046 | C46: VIEL | D46: ARDI INVESTMENT AND TRADING COMPANY LIMITED | E46: BUY | F46: 54,000 | G46: 51.86 | H46: BSE
A47: 2018-11-02 | B47: BEML | C47: BEML Limited | D47: CROSSLAND TRADING CO | E47: BUY | F47: 224,321 | G47: 670.74 | H47: NSE
A48: 2018-11-02 | B48: BEML | C48: BEML Limited | D48: SHAASTRA SECURITIES TRADING PRIVATE LIMITED | E48: BUY | F48: 269,099 | G48: 663.1 | H48: NSE
A49: 2018-11-02 | B49: BHARATFIN | C49: Bharat Fin. Inc. Ltd. | D49: BNP PARIBAS ARBITRAGE | E49: BUY | F49: 769,317 | G49: 945.94 | H49: NSE
A50: 2018-11-02 | B50: DHFL | C50: Dewan Housing Fin Corp | D50: SHAASTRA SECURITIES TRADING PRIVATE LIMITED | E50: BUY | F50: 1,771,431 | G50: 233.38 | H50: NSE
A51: 2018-11-02 | B51: KARDA | C51: Karda Constructions Ltd | D51: BAKSHU TRADING PRIVATE LIMITED | E51: BUY | F51: 100,000 | G51: 150 | H51: NSE
A52: 2018-11-02 | B52: KARDA | C52: Karda Constructions Ltd | D52: SHETH BROTHERS | E52: BUY | F52: 8,812 | G52: 154.08 | H52: NSE
A53: 2018-11-02 | B53: KWALITY | C53: Kwality Limited | D53: JMP SECURITIES PVT LTD | E53: BUY | F53: 138,399 | G53: 6.31 | H53: NSE
A54: 2018-11-02 | B54: KWALITY | C54: Kwality Limited | D54: SWAPNIL MEHTA | E54: BUY | F54: 1,500,002 | G54: 6.13 | H54: NSE
A55: 2018-11-02 | B55: PCJEWELLER | C55: PC Jeweller Ltd | D55: CENTILLION RESEARCH INDIA LLP | E55: BUY | F55: 3,804,974 | G55: 84.56 | H55: NSE
A56: 2018-11-02 | B56: PCJEWELLER | C56: PC Jeweller Ltd | D56: CROSSLAND TRADING CO | E56: BUY | F56: 4,666,347 | G56: 84.32 | H56: NSE
A57: 2018-11-02 | B57: PCJEWELLER | C57: PC Jeweller Ltd | D57: PURITY TRADEMAX LLP | E57: BUY | F57: 2,158,595 | G57: 84.92 | H57: NSE
A58: 2018-11-02 | B58: RCOM | C58: Reliance Comm. Ltd. | D58: SHAASTRA SECURITIES TRADING PRIVATE LIMITED | E58: BUY | F58: 17,664,824 | G58: 14.7 | H58: NSE
A59: 2018-11-02 | B59: SAKETH | C59: Saketh Exim Limited | D59: SUNITA BANSAL | E59: BUY | F59: 66,000 | G59: 70 | H59: NSE
A60: 2018-11-02 | B60: 8KMILES | C60: 8K Miles Soft Serv Ltd | D60: IFCI LTD. | E60: SELL | F60: 423,000 | G60: 60.2 | H60: NSE
A61: 2018-11-02 | B61: BEML | C61: BEML Limited | D61: CROSSLAND TRADING CO | E61: SELL | F61: 224,321 | G61: 671.04 | H61: NSE
A62: 2018-11-02 | B62: BEML | C62: BEML Limited | D62: SHAASTRA SECURITIES TRADING PRIVATE LIMITED | E62: SELL | F62: 269,099 | G62: 663.44 | H62: NSE
A63: 2018-11-02 | B63: BHARATFIN | C63: Bharat Fin. Inc. Ltd. | D63: BNP PARIBAS ARBITRAGE | E63: SELL | F63: 279,000 | G63: 943.64 | H63: NSE
A64: 2018-11-02 | B64: CGPOWER | C64: CG Power & Ind. Sol. Ltd. | D64: WGI EMERGING MARKETS SMALLER COMPANIES FUND LLC | E64: SELL | F64: 4,500,000 | G64: 36.65 | H64: NSE
A65: 2018-11-02 | B65: DHFL | C65: Dewan Housing Fin Corp | D65: SHAASTRA SECURITIES TRADING PRIVATE LIMITED | E65: SELL | F65: 1,771,431 | G65: 233.57 | H65: NSE
A66: 2018-11-02 | B66: KARDA | C66: Karda Constructions Ltd | D66: SHETH BROTHERS | E66: SELL | F66: 83,812 | G66: 150.23 | H66: NSE
A67: 2018-11-02 | B67: KWALITY | C67: Kwality Limited | D67: JMP SECURITIES PVT LTD | E67: SELL | F67: 1,276,551 | G67: 6.14 | H67: NSE
A68: 2018-11-02 | B68: KWALITY | C68: Kwality Limited | D68: LETKO BROSSEAU EMERGING MARKETS EQUITY FUND | E68: SELL | F68: 2,803,620 | G68: 6 | H68: NSE
A69: 2018-11-02 | B69: KWALITY | C69: Kwality Limited | D69: SWAPNIL MEHTA | E69: SELL | F69: 2 | G69: 6.23 | H69: NSE
A70: 2018-11-02 | B70: PCJEWELLER | C70: PC Jeweller Ltd | D70: CENTILLION RESEARCH INDIA LLP | E70: SELL | F70: 3804974 | G70: 84.61 | H70: NSE
A71: 2018-11-02 | B71: PCJEWELLER | C71: PC Jeweller Ltd | D71: CROSSLAND TRADING CO | E71: SELL | F71: 4666347 | G71: 84.36 | H71: NSE
A72: 2018-11-02 | B72: PCJEWELLER | C72: PC Jeweller Ltd | D72: PURITY TRADEMAX LLP | E72: SELL | F72: 2158595 | G72: 84.95 | H72: NSE
A73: 2018-11-02 | B73: RCOM | C73: Reliance Comm. Ltd. | D73: SHAASTRA SECURITIES TRADING PRIVATE LIMITED | E73: SELL | F73: 17664824 | G73: 14.72 | H73: NSE
A74: 2018-11-02 | B74: SAKETH | C74: Saketh Exim Limited | D74: MUKESH BABULAL SHAH | E74: SELL | F74: 72000 | G74: 70 | H74: NSE
A75: 2018-11-02 | B75: UNITECH | C75: Unitech Ltd | D75: HOUSING DEVELOPMENT FINANCE CORPORATION LIMITED | E75: SELL | F75: 13960354 | G75: 2.26 | H75: NSE

Sheet Call Tracker (Equity & F&O)
M5: Back To Main Page
A6: Retail Research Technical Calls & Fundamental Performance Report for the month of November -2018
M7: =Main!B10 -> 2018-11-05
B8: Positional Call
A9: Sr.no | B9: Date | D9: Company | E9: Rec | F9: Rec Price | G9: Stop Loss*** | H9: Call Closed At | I9: Target | J9: Remark | K9: Profit / Loss per Share | L9: Gain / Loss % | M9: Status | N9: Closed Date | O9: NSE Closed Price
A10: 1 | B10: 2018-10-25 | D10: SUNPHARMA | E10: Buy | F10: 566-572 | G10: 528 | I10: 620-630 | J10: Open | O10: 571.85 | R10: H
A11: 2 | B11: 2018-10-03 | D11: MARUTI | E11: Buy{} | F11: 6860 | G11: 6580 | H11: 7100 | I11: 7300-7500 | J11: Part Profit of Rs.240/- | K11: =H11-F11 -> 240 | L11: =K11/F11 -> 3.50% | M11: Successful | N11: 2018-10-03 | R11: H
A24: CLBS = Closing Basis *** | F24: Reinitiated $
A25: Dividend adjusted <> | F25: Revised stoploss #
A26: Part book {}
A27: Master Trade High Risk
A28: Sr.no | B28: Date | D28: Company | E28: Rec | F28: Rec Price | G28: Stop Loss | H28: Call Closed At | I28: Target | J28: Remark | K28: Profit / Loss per share | L28: Gain / Loss per Lot | M28: Lot | N28: Status | O28: Closed Date
A29: 1 | B29: 2018-11-01 | D29: NIFTY NOV FUT | E29: Sell | F29: 10435 | G29: 10620 | H29: 10355 | I29: 10250 | J29: Profit of Rs 53/- | K29: =F29-H29 -> 80 | L29: =M29*53 -> 3975 | M29: 75 | N29: Successful | O29: 2018-11-01 | R29: H
D30: NIFTY NOV 10300 PE | E30: Sell | F30: 165 | H30: 192 | K30: -27
A31: 2 | B31: 2018-11-01 | D31: WIPRO NOV FUT | E31: Sell | F31: 330 | G31: 338 | H31: 324.75 | I31: 315 | J31: Profit of Rs 4.25/- | K31: 5.25 | L31: =M31*4.25 -> 10200 | M31: 2400 | N31: Successful | O31: 2018-11-03 | R31: H
D32: WIPRO Nov 320 PE | E32: Sell | F32: 6.25 | H32: 7.25 | K32: -1
A33: 3 | B33: 2018-11-01 | D33: NIFTY NOV FUT | E33: Sell | F33: 10445 | G33: 10620 | H33: 10575 | I33: 10250 | J33: Loss of Rs.67.5/- | K33: -130 | L33: =M33*67.5 -> 5062.5 | M33: 75 | N33: Unsuccessful | O33: 2018-11-03 | R33: H
D34: NIFTY NOV 10300 PE | E34: Sell | F34: 155 | H34: 92.5 | K34: 62.5
A38: Master Trade Medium Risk
A39: Sr.no | B39: Date | D39: Company | E39: Rec | F39: Rec Price | G39: Stop Loss | H39: Call Closed At | I39: Target | J39: Remark | K39: Profit/ Loss per lot | L39: Gain / Loss per Lot | M39: Lot | N39: Status | O39: Closed Date
B47: Smart Delivery Trade
A48: Sr.no | B48: Date | D48: Company | E48: Rec | F48: Rec Price | G48: Stop Loss*** | H48: Call Closed At | I48: Target | J48: Remark | K48: Profit / Loss per Share | L48: Gain / Loss % | M48: Status | N48: Closed Date | O48: NSE Closed Price
A49: 1 | B49: 2018-10-03 | D49: JSWSTEEL | E49: Buy | F49: 346 | G49: 331 | H49: 354 | I49: 375 | J49: Profit of Rs.8/- | K49: =H49-F49 -> 8 | L49: =K49/F49 -> 2.31% | M49: Successful | N49: 2018-10-03 | R49: H
A50: 2 | B50: 2018-10-03 | D50: DABUR | E50: Buy | F50: 371-374 | G50: 358 | I50: 390-400 | J50: Open | R50: H
A51: 3 | B51: 2018-10-03 | D51: BHARATFORG | E51: Buy | F51: 608-612 | G51: 589 | I51: 640-650 | J51: Open | R51: H
A64: CLBS = Closing Basis *** | F64: Reinitiated $
A65: Dividend adjusted <> | F65: Revised stoploss #
B68: Momentum Call
A69: Sr.no | B69: Date | D69: Company | E69: Rec | F69: Rec Price | G69: Stop Loss | H69: Call Closed At | I69: Target | J69: Remark | K69: Profit / Loss per Share/Lot | L69: Gain / Loss % | M69: Gain / Loss per Lot | N69: Lot | O69: Status | P69: Closed Date
A70: 1 | B70: 2018-10-30 | D70: AMBUJACEM | E70: Buy | F70: 194.5 | G70: 189.5 | H70: 199.5 | I70: 202-205 | J70: Profit of Rs.5/- | K70: =H70-F70 -> 5 | L70: =K70/F70 -> 2.57% | O70: Successful | P70: 2018-11-01 | R70: H
A71: 2 | B71: 2018-10-31 | D71: EXIDEIND NOV FUT | E71: Sell | F71: 261.5 | G71: 266.6 | H71: 258.25 | I71: 250-247 | J71: Profit of Rs.3.25/- | K71: =F71-H71 -> 3.25 | M71: =N71*K71 -> 6500 | N71: 2000 | O71: Successful | P71: 2018-11-01 | R71: R
A72: 3 | B72: 2018-10-31 | D72: BAJFINANCE NOV FUT | E72: Sell | F72: 2365 | G72: 2411 | H72: 2411 | I72: 2250-2200 | J72: Loss of Rs.46/- | K72: =H72-F72 -> 46 | M72: =N72*K72 -> 11500 | N72: 250 | O72: Unsuccessful | P72: 2018-11-01 | R72: R
A73: 4 | B73: 2018-11-01 | D73: EXIDEIND NOV FUT | E73: Buy | F73: 255.5 | G73: 249.8 | H73: 259.5 | I73: 262-264 | J73: Profit of Rs.3.25/- | K73: 4 | M73: 8000 | N73: 2000 | O73: Successful | P73: 2018-11-02 | R73: N
A74: 5 | B74: 2018-11-03 | D74: HDFCBANK | E74: Buy | F74: 1925 | G74: 1890 | H74: 1956.5 | I74: 1980-2000 | J74: Profit of Rs.31.5/- | K74: 31.5 | L74: =K74/F74 -> 1.64% | O74: Successful | P74: 2018-11-03 | R74: H
A75: 6 | B75: 2018-11-03 | D75: ICICIBANK NOV FUT | E75: Sell | F75: 355.50-356.50 | G75: 361.8 | I75: 345 | J75: Open | R75: R
A90: CLBS = Closing Basis ***
A91: Dividend adjusted <> | F91: Reinitiated $
F92: Revised stoploss #
B93: Quick Pick Intraday
A94: Sr.no | B94: Date | D94: Company | E94: Rec | F94: Rec Price | G94: Stop Loss*** | H94: Call Closed At | I94: Target | J94: Remark | K94: Profit / Loss per Share | L94: Status | M94: Closed Date
A108: Techno -Funda (positional)
A109: Sr.no | B109: Date | D109: Company | E109: Rec | F109: Rec Price | G109: Stop Loss*** | H109: Call Closed At | I109: Target | J109: Remark | K109: Profit / Loss per Share | L109: Gain / Loss % | M109: Status | N109: Closed Date | O109: NSE Closed Price
A112: CLBS = Closing Basis *** | F112: Reinitiated $
A113: Dividend adjusted <> | F113: Revised stoploss #
B118: Investment Idea
A119: Sr.no | B119: Date | D119: Company | E119: Rec | F119: Rec Price | G119: Point of Review | H119: Close Rate | I119: Target | J119: Remark | K119: Profit / Loss per Share | L119: Gain / Loss % | M119: Status | N119: Closed Date
A120: 1 | B120: 2013-11-01 | D120: L&T Finance Holding | E120: Accu | F120: 82.00 | G120: - | H120: 100 | I120: 100.00 | J120: Target Achieved | K120: =H120-F120 -> 18.00 | L120: =K120/F120 -> 21.95% | M120: Successful | N120: 2016-10-14
A121: 2 | B121: 2014-06-04 | D121: Finolex Inds | E121: Buy | F121: 257.00 | G121: - | H121: 300 | I121: 300.00 | J121: Target Achieved | K121: =H121-F121 -> 43.00 | L121: 16.73% | M121: Successful | N121: 2014-07-02
A122: =1+A121 -> 3 | B122: 2014-07-08 | D122: JK Cement | E122: Buy | F122: 393.00 | G122: - | H122: 468 | I122: 468.00 | J122: Target Achieved | K122: =H122-F122 -> 75.00 | L122: 19.08% | M122: Successful | N122: 2014-08-12
A123: 4 | B123: 2014-08-06 | D123: Finolex Cables | E123: Buy | F123: 205.00 | G123: - | H123: 275 | I123: 250.00 | J123: Target Achieved | K123: 70.00 | L123: 34.15% | M123: Successful | N123: 2014-11-19
A124: 5 | B124: 2014-09-04 | D124: Exide Inds | E124: Buy | F124: 162.00 | G124: - | H124: 190 | I124: 190.00 | J124: Target Achieved | K124: 28.00 | L124: 17.28% | M124: Successful | N124: 2015-01-02
A125: 6 | B125: 2014-09-04 | D125: Deepak Nitrite | E125: Buy | F125: 75.00 | G125: - | H125: 91.5 | I125: 95-100 | J125: Profit of Rs.16.50/- | K125: 16.50 | L125: 22.00% | M125: Successful | N125: 2014-11-11
A126: 7 | B126: 2014-10-01 | D126: Mercks | E126: Buy | F126: 850.00 | G126: - | H126: 982.5 | I126: 1050.00 | J126: Profit of Rs.132.50/- | K126: 132.50 | L126: 15.59% | M126: Successful | N126: 2015-02-04
A127: 8 | B127: 2014-10-01 | D127: Grindwell Norton | E127: Buy | F127: 475.00 | G127: - | H127: 515 | I127: 600.00 | J127: Profit of Rs.40/- | K127: 40.00 | L127: 8.42% | M127: Successful | N127: 2014-10-27
A128: 9 | B128: 2014-10-01 | D128: Snowman Logistics | E128: Buy | F128: 86.00 | G128: - | H128: 99 | I128: 140.00 | J128: Profit of Rs.13.00/- | K128: 13.00 | L128: 15.12% | M128: Successful | N128: 2014-10-27
A129: 10 | B129: 2014-10-14 | D129: Birla Corp | E129: Buy | F129: 496.60 | G129: - | H129: 621 | I129: 580.00 | J129: Target Achieved | K129: 124.40 | L129: 25.05% | M129: Successful | N129: 2016-08-23
A130: 11 | B130: 2014-10-14 | D130: Ultratech Cem | E130: Buy | F130: 2481.90 | G130: - | H130: 2840 | I130: 2870.00 | J130: Profit of Rs.358.10/- | K130: 358.10 | L130: 14.43% | M130: Successful | N130: 2015-01-13
A131: =1+A128 -> 10 | B131: 2014-10-16 | D131: Sintex Inds | E131: Buy | F131: 84.50 | G131: - | H131: 93 | I131: 110.00 | J131: Profit of Rs.8.50/- | K131: 8.50 | L131: 10.06% | M131: Successful | N131: 2014-10-27
A132: =1+A131 -> 11 | B132: 2014-10-16 | D132: HSIL | E132: Buy | F132: 401.00 | G132: - | H132: 428 | I132: 450.00 | J132: Profit of Rs.27.00/- | K132: 27.00 | L132: 6.73% | M132: Successful | N132: 2015-01-16
A133: 12 | B133: 2014-10-16 | D133: Eveready Inds | E133: Buy | F133: 101.00 | G133: - | H133: 112 | I133: 120.00 | J133: Profit of Rs.11.00/- | K133: 11.00 | L133: 10.89% | M133: Successful | N133: 2014-10-27
A134: 13 | B134: 2014-11-11 | D134: Pennar Inds | E134: Buy | F134: 59.00 | G134: - | H134: 76 | I134: 76.00 | J134: Target Achieved | K134: 17.00 | L134: 28.81% | M134: Successful | N134: 2017-10-24
A135: 14 | B135: 2014-11-11 | D135: Snowman Logistics | E135: Buy | F135: 99.00 | G135: - | H135: 120 | I135: 120.00 | J135: Profit of Rs.21/- | K135: 21.00 | L135: 21.21% | M135: Successful | N135: 2014-11-17
A136: 15 | B136: 2014-11-13 | D136: Dharamsi Morarji Chem | E136: Buy | F136: 22.00 | G136: - | H136: 33.55 | I136: 32.00 | J136: Profit of Rs 11.55/- | K136: 11.55 | L136: 52.50% | M136: Successful | N136: 2015-07-03
A137: 16 | B137: 2014-12-03 | D137: Tatachem | E137: Buy | F137: 440.00 | G137: - | H137: 520 | I137: 520.00 | J137: Profit of Rs 80.00/- | K137: 80.00 | L137: 18.18% | M137: Successful | N137: 2015-07-23
A138: 17 | B138: 2014-12-03 | D138: Advanta | E138: Buy | F138: 360.00 | G138: - | H138: 427 | I138: 425.00 | J138: Profit of Rs.67.00/- | K138: 67.00 | L138: 18.61% | M138: Successful | N138: 2015-02-23
A139: 18 | B139: 2015-01-08 | D139: GDL | E139: Buy | F139: 360.00 | G139: - | H139: 455 | I139: 420.00 | J139: Profit of Rs.95.00/- | K139: 95.00 | L139: 26.39% | M139: Successful | N139: 2015-01-20
A140: 19 | B140: 2015-01-08 | D140: NRB Bearing | E140: Buy | F140: 130.00 | H140: 175.5 | I140: 165.00 | J140: Profit of Rs 45.50/- | K140: 45.50 | L140: 35.00% | M140: Successful | N140: 2017-12-19
A141: 20 | B141: 2015-02-05 | D141: GSFC | E141: Accu | F141: 98.00 | H141: 120 | I141: 120.00 | J141: Target Achieved | K141: 22.00 | L141: 22.45% | M141: Successful | N141: 2017-01-18
A142: 21 | B142: 2015-02-05 | D142: Sundrmfast | E142: Accu | F142: 196.00 | H142: 262 | I142: 255.00 | J142: Target Achieved | K142: 66.00 | L142: 33.67% | M142: Successful | N142: 2016-08-17
A143: 22 | B143: 2015-03-04 | D143: GPPL | E143: Accu | F143: 230-240 | I143: 280-285 | J143: Open
A144: 23 | B144: 2015-03-04 | D144: ORIENTCEM | E144: Accu | F144: 185.00 | H144: 224 | I144: 220-225 | J144: Target Achieved | K144: 39.00 | L144: =K144/F144 -> 21.08% | M144: Successful | N144: 2016-10-04
A145: 24 | B145: 2015-03-27 | D145: PFS | E145: Accu | F145: 49-50 | I145: 67.00 | J145: Open
A146: 25 | B146: 2015-03-30 | D146: Walchandnagar Ind Ltd | E146: Accu | F146: 183.50 | H146: 219 | I146: 218.00 | J146: Profit of Rs.35.50/- | K146: 35.50 | L146: =K146/F146 -> 19.35% | M146: Successful | N146: 2015-04-09
A147: 26 | B147: 2015-04-20 | D147: Kalpataru Power Transmission Ltd | E147: Accu | F147: =(227+237)/2 -> 232.00 | H147: 298 | I147: 298.00 | J147: Target Achieved | K147: 66.00 | L147: 28.45% | M147: Successful | N147: 2017-03-29
A148: 27 | B148: 2015-05-04 | D148: Mastek Ltd | E148: Buy | F148: 385.00 | H148: =212.5+331 -> 543.5 | I148: 510.00 | J148: Profit of Rs 158.50/- | K148: 158.50 | L148: 41.17% | M148: Successful | N148: 2015-08-19
A149: 28 | B149: 2015-05-04 | D149: Suprajit Eng | E149: Buy | F149: 115.50 | H149: 146 | I149: 142.00 | J149: Profit of Rs 30.50/- | K149: 30.50 | L149: 26.41% | M149: Successful | N149: 2015-07-17
A150: 29 | B150: 2015-05-27 | D150: TCI | E150: Buy | F150: 237.50 | H150: 279.5 | I150: 278.00 | J150: Target Achieved | K150: 42.00 | L150: 17.68% | M150: Successful | N150: 2015-08-06
A151: 30 | B151: 2015-06-19 | D151: HSIL | E151: Accu | F151: 340.00 | H151: 448 | I151: 448.00 | J151: Target Achieved | K151: 108.00 | L151: 31.76% | M151: Successful | N151: 2017-10-10
A152: 31 | B152: 2015-07-06 | D152: Capital First | E152: Accu | F152: 390.00 | H152: 460 | I152: 460.00 | J152: Target Achieved | K152: 70.00 | L152: 17.95% | M152: Successful | N152: 2016-04-18
A153: 32 | B153: 2015-07-10 | D153: Dolphin OffShore | E153: Accu | F153: 122.5 | H153: 61.00 | I153: 172.00 | J153: Loss of Rs.61.50/- | K153: -61.50 | L153: -50.20% | M153: Unsuccessful | N153: 2018-08-21
A154: 33 | B154: 2015-08-03 | D154: Allcargo logistics | E154: Accu | F154: 297.50 | H154: 350 | I154: 360.00 | J154: Profit of Rs 52.50/- | K154: 52.50 | L154: =K154/F154 -> 17.65% | M154: Successful | N154: 2015-08-16
A155: 34 | B155: 2015-08-03 | D155: Camline Fine | E155: Accu | F155: 115.50 | H155: 149 | I155: 140.00 | J155: Profit of Rs 33.50/- | K155: 33.50 | L155: 29.00% | M155: Successful | N155: 2017-01-05
A156: 35 | B156: 2015-09-04 | D156: TCI | E156: Accu | F156: 226.00 | H156: 292 | I156: 292.00 | J156: Target Achieved | K156: 66.00 | L156: 29.20% | M156: Successful | N156: 2015-10-09
A157: 36 | B157: 2015-09-07 | D157: Kalpataru Power Transmission Ltd | E157: Accu | F157: 232.50 | H157: 312.5 | I157: 310.00 | J157: Target Achieved | K157: 80.00 | L157: 34.41% | M157: Successful | N157: 2017-03-29
A158: 37 | B158: 2015-09-21 | D158: LLOYD ELECTRIC & ENG LTD | E158: Accu | F158: 196.50 | H158: 238 | I158: 238.00 | J158: Target Achieved | K158: 41.50 | L158: 21.12% | M158: Successful | N158: 2015-10-14
A159: 38 | B159: 2015-09-24 | D159: L&T Finance Holding | E159: Accu | F159: 65.00 | H159: 82 | I159: 82.00 | J159: Target Achieved | K159: 17.00 | L159: 26.15% | M159: Successful | N159: 2016-07-27
A160: 39 | B160: 2015-10-14 | D160: KEC International ltd | E160: Accu | F160: 144.00 | H160: 182.5 | I160: 181.00 | J160: Target Achieved | K160: 38.50 | L160: 26.74% | M160: Successful | N160: 2017-03-23
A161: 40 | B161: 2015-10-14 | D161: Gruh Finance | E161: Accu | F161: 264.00 | H161: 311 | I161: 311.00 | J161: Target Achieved | K161: 47.00 | L161: 17.80% | M161: Successful | N161: 2016-08-22
A162: 41 | B162: 2015-11-10 | D162: Pidilitind | E162: Buy | F162: 549.50 | H162: 630 | I162: 630.00 | J162: Target Achieved | K162: 80.50 | L162: 14.65% | M162: Successful | N162: 2016-02-19
A163: 42 | B163: 2015-12-04 | D163: Zensar Technology | E163: Accu | F163: 1027.50 | H163: 1315 | I163: 1250.00 | J163: Target Achieved | K163: =H163-F163 -> 287.50 | L163: 27.98% | M163: Successful | N163: 2018-05-24
A164: 43 | B164: 2015-12-29 | D164: Vinati Organics Ltd | E164: Accu | F164: 465.00 | H164: 540 | I164: 540.00 | J164: Target Achieved | K164: 75.00 | L164: =K164/F164 -> 16.13% | M164: Successful | N164: 2016-06-09
A165: 44 | B165: 2016-01-11 | D165: GSFC | E165: Buy | F165: 81.00 | H165: 110 | I165: 110.00 | J165: Target Achieved | K165: 29.00 | L165: 35.80% | M165: Successful | N165: 2017-01-10
A166: 45 | B166: 2016-01-13 | D166: SSWL | E166: Buy | F166: 417.50 | H166: 547 | I166: 535.00 | J166: Target Achieved | K166: 129.50 | L166: 31.02% | M166: Successful | N166: 2016-07-27
A167: 46 | B167: 2016-02-08 | D167: Persistent System Ltd | E167: Accu | F167: 650.00 | H167: 800 | I167: 800.00 | J167: Target Achieved | K167: 150.00 | L167: 23.08% | M167: Successful | N167: 2018-02-23
A168: 47 | B168: 2016-03-04 | D168: UPL | E168: Accu | F168: 437.50 | H168: 504.5 | I168: 522.00 | J168: Profit of Rs.67/- | K168: 67.00 | L168: 15.31% | M168: Successful | N168: 2016-04-20
A169: 48 | B169: 2016-03-09 | D169: Ashoka Buildcon Ltd | E169: Accu | F169: 189.50 | H169: 218 | I169: 218.00 | J169: Target Achieved | K169: 28.50 | L169: 15.04% | M169: Successful | N169: 2017-10-26
A170: 49 | B170: 2016-04-11 | D170: PTC INDIA FIN SERV LTD | E170: Accu | F170: 36-37 | I170: 60.00 | J170: Open
A171: 50 | B171: 2016-04-12 | D171: CAMLINFINE $ | E171: Accu | F171: 93.00 | H171: 149 | I171: 140.00 | J171: Profit of Rs 56/- | K171: 56.00 | L171: =K171/F171 -> 60.22% | M171: Successful | N171: 2017-01-05
A172: 51 | B172: 2016-04-12 | D172: Greaves Cotton Ltd. | E172: Accu | F172: 130.00 | H172: 150 | I172: 150-155 | J172: Target Achieved | K172: 20.00 | L172: 15.38% | M172: Successful | N172: 2016-07-13
A173: 52 | B173: 2016-04-13 | D173: DHFL | E173: Accu | F173: 196.00 | H173: 299 | I173: 299.00 | J173: Target Achieved | K173: 103.00 | L173: 52.55% | M173: Successful | N173: 2016-09-07
A174: 53 | B174: 2016-04-13 | D174: Magma | E174: Accu | F174: 88.00 | H174: 103 | I174: 103.00 | J174: Target Achieved | K174: 15.00 | L174: 17.05% | M174: Successful | N174: 2016-06-09
A175: 54 | B175: 2016-05-02 | D175: KEC International ltd $ | E175: Accu | F175: 127.50 | H175: 148 | I175: 148-150 | J175: Target Achieved | K175: 20.50 | L175: 16.08% | M175: Successful | N175: 2016-07-13
A176: 55 | B176: 2016-05-03 | D176: Mindtree | E176: Accu | F176: 675.00 | H176: 815 | I176: 790-800 | J176: Target Achieved | K176: 140.00 | L176: 20.74% | M176: Successful | N176: 2018-02-23
A177: 56 | B177: 2016-06-01 | D177: Atulauto | E177: Accu | F177: 495-505 | I177: 565-570 | J177: Open
A178: 57 | B178: 2016-06-06 | D178: TRITURBINE | E178: Accu | F178: 110.00 | H178: 126.5 | I178: 125.00 | J178: Profit of Rs.16.50/- | K178: 16.50 | L178: =K178/F178 -> 15.00% | M178: Successful | N178: 2016-07-01
A179: 58 | B179: 2016-06-17 | D179: Pennar Industries Ltd | E179: Accu | F179: 44.00 | H179: 69.5 | I179: 69.50 | J179: Profit of Rs.25.50/- | K179: 25.50 | L179: =K179/F179 -> 57.95% | M179: Successful | N179: 2017-08-30
A180: 59 | B180: 2016-06-28 | D180: EVEREADY INDS. IND. LTD. | E180: Accu | F180: 262.50 | H180: 340 | I180: 333.00 | J180: Profit of Rs.77.50/- | K180: 77.50 | L180: =K180/F180 -> 29.52% | M180: Successful | N180: 2017-10-09
A181: 60 | B181: 2016-06-28 | D181: FIEM INDUSTRIES LIMITED | E181: Accu | F181: 840.00 | H181: 1230 | I181: 1230.00 | J181: Target Achieved | K181: 390.00 | L181: =K181/F181 -> 46.43% | M181: Successful | N181: 2016-10-06
A182: 61 | B182: 2016-07-05 | D182: Bajaj Corp Ltd | E182: Accu | F182: 395 | H182: 468.50 | I182: 510.00 | J182: Part profit of Rs.73.50/- | K182: 73.50 | L182: =K182/F182 -> 19% | M182: Successful | N182: 2017-08-30
A183: 62 | B183: 2016-08-02 | D183: GPPL $ | E183: Buy | F183: 167-172 | I183: 198-200 | J183: Open
A184: 63 | B184: 2016-08-04 | D184: WONDERLA HOLIDAYS LTD | E184: Accu | F184: 395-405 | I184: 475.00 | J184: Open
A185: 64 | B185: 2016-08-11 | D185: CAMLINFINE | E185: Accu | F185: 86.50 | H185: 130 | I185: 130.00 | J185: Profit of Rs.43.50/- | K185: =H185-F185 -> 43.50 | L185: =K185/F185 -> 50.29% | M185: Successful | N185: 2017-12-22
A186: 65 | B186: 2016-08-18 | D186: GRANULES | E186: Accu | F186: 133.5 | H186: 126.50 | I186: 178.00 | J186: Exit | K186: -7.00 | L186: -5.24% | M186: Unsuccessful | N186: 2016-09-02
A187: 66 | B187: 2016-08-31 | D187: VA TECH WABAG | E187: Accu | F187: 560.00 | H187: 725 | I187: 725.00 | J187: Target Achieved | K187: 165.00 | L187: 29.46% | M187: Successful | N187: 2016-03-27
A188: 67 | B188: 2016-09-01 | D188: SKIPPER LIMITED | E188: Accu | F188: 160.50 | H188: 210 | I188: 210.00 | J188: Target Achieved | K188: 49.50 | L188: 30.84% | M188: Successful | N188: 2017-05-16
A189: 68 | B189: 2016-10-03 | D189: IFB Industries | E189: Accu | F189: 430.00 | H189: 596 | I189: 575.00 | J189: Profit of Rs.166/- | K189: 166.00 | L189: 38.60% | M189: Successful | N189: 2017-02-03
A190: 69 | B190: 2016-10-14 | D190: ASIANTILES | E190: Accu | F190: 280.00 | H190: 345 | I190: 345.00 | J190: Target Achieved | K190: 65.00 | L190: 23.21% | M190: Successful | N190: 2017-03-20
A191: 70 | B191: 2016-10-14 | D191: DEEPIND | E191: Accu | F191: 245.00 | H191: 325.5 | I191: 330.00 | J191: Profit of Rs.80.5/- | K191: 80.50 | L191: 32.86% | M191: Successful | N191: 2017-02-03
A192: 71 | B192: 2016-10-17 | D192: DCBBANK | E192: Accu | F192: 125.00 | H192: 160 | I192: 160.00 | J192: Target Achieved | K192: 35.00 | L192: 28.00% | M192: Successful | N192: 2017-03-09
A193: 72 | B193: 2016-10-17 | D193: ORIENTREF | E193: Accu | F193: 114.00 | H193: 145 | I193: 145.00 | J193: Target Achieved | K193: 31.00 | L193: =K193/F193 -> 27.19% | M193: Successful | N193: 2017-05-04
A194: 73 | B194: 2016-10-17 | D194: GANECOS | E194: Accu | F194: 212.00 | H194: 280 | I194: 276.00 | J194: Profit of Rs.68/- | K194: 68.00 | L194: =K194/F194 -> 32.08% | M194: Successful | N194: 2017-05-03
A195: 74 | B195: 2016-11-04 | D195: NBCC | E195: Accu | F195: 155.00 | H195: 210 | I195: 210.00 | J195: Profit of Rs.55/- | K195: 55.00 | L195: =K195/F195 -> 35.48% | M195: Successful | N195: 2017-07-28
A196: 75 | B196: 2016-12-06 | D196: PRECAM | E196: Accu | F196: 150.5 | H196: 72.50 | I196: 174.00 | J196: Loss of Rs.78/- | K196: -78.00 | L196: =K196/F196 -> -51.83% | M196: Unsuccessful | N196: 2018-08-21
A197: 76 | B197: 2016-12-08 | D197: INFRATEL | E197: Accu | F197: 380.00 | H197: 478 | I197: 468.00 | J197: Target Achieved | K197: 98.00 | L197: =K197/F197 -> 25.79% | M197: Successful | N197: 2017-10-17
A198: 77 | B198: 2016-12-30 | D198: GODREJPROP | E198: Accu | F198: 305.00 | H198: 375 | I198: 375.00 | J198: Target Achieved | K198: 70.00 | L198: 22.95% | M198: Successful | N198: 2017-02-02
A199: 78 | B199: 2017-01-04 | D199: DEEPAKNTR | E199: Accu | F199: 99.50 | H199: 158 | I199: 158.00 | J199: Target Achieved | K199: 58.50 | L199: 58.79% | M199: Successful | N199: 2017-06-12
A200: 79 | B200: 2017-02-20 | D200: SUBROS | E200: Accu | F200: 202.50 | H200: 234 | I200: 234.00 | J200: Target Achieved | K200: 31.50 | L200: 15.56% | M200: Successful | N200: 2017-04-11
A201: 80 | B201: 2017-02-20 | D201: RECLTD | E201: Accu | F201: 140.50 | H201: 220 | I201: 220.00 | J201: Target Achieved | K201: 79.50 | L201: 56.58% | M201: Successful | N201: 2017-05-09
A202: 81 | B202: 2017-03-24 | D202: VRLLOG | E202: Accu | F202: 300.50 | H202: 417.5 | I202: 420.00 | J202: Profit of Rs.117/- | K202: 117.00 | L202: 38.94% | M202: Successful | N202: 2017-12-01
A203: 82 | B203: 2017-03-24 | D203: FIEMIND | E203: Accu | F203: 850.00 | H203: 1042.5 | I203: 1023.00 | J203: Profit of Rs 192.50/- | K203: 192.50 | L203: 22.65% | M203: Successful | N203: 2017-04-05
A204: 83 | B204: 2017-04-05 | D204: RATNAMANI | E204: Accu | F204: 785.00 | H204: 930 | I204: 920.00 | J204: Profit of Rs.145/- | K204: 145.00 | L204: 18.47% | M204: Successful | N204: 2017-08-29
A205: 84 | B205: 2017-04-06 | D205: ZEEMEDIA | E205: Accu | F205: 39-41 | I205: 60.00 | J205: Open
A206: 85 | B206: 2017-04-12 | D206: DABUR | E206: Accu | F206: 289.50 | H206: 354 | I206: 360.00 | J206: Profit of Rs.64.5/- | K206: 64.50 | L206: =K206/F206 -> 22.28% | M206: Successful | N206: 2017-11-01
A207: 86 | B207: 2017-04-20 | D207: KPRMILL | E207: Accu | F207: 700.00 | H207: 840 | I207: 840.00 | J207: Profit of Rs.140/- | K207: 140.00 | L207: =K207/F207 -> 20.00% | M207: Successful | N207: 2017-06-07
A208: 87 | B208: 2017-05-22 | D208: GREAVESCOT | E208: Accu | F208: 153-158 | I208: 190.00 | J208: Open
A209: 88 | B209: 2017-06-01 | D209: ESSELPACK | E209: Accu | F209: 260 | H209: 311.00 | I209: 340.00 | J209: Part profit of Rs.51/- | K209: =H209-F209 -> 51.00 | L209: =K209/F209 -> 20% | M209: Successful | N209: 2017-11-17
A210: 89 | B210: 2017-06-15 | D210: KEI | E210: Accu | F210: 214.50 | H210: 262 | I210: 262.00 | J210: Profit of Rs.47.5/- | K210: =H210-F210 -> 47.50 | L210: 22.14% | M210: Successful | N210: 2017-08-30
A211: 90 | B211: 2017-07-17 | D211: MAYURUNIQ | E211: Accu | F211: 370.00 | H211: 447.5 | I211: 450.00 | J211: Target Achieved | K211: 77.50 | L211: 20.95% | M211: Successful | N211: 2017-10-27
A212: 91 | B212: 2017-07-27 | D212: RAMCOCEM | E212: Accu | F212: 657.50 | H212: 825 | I212: 820.00 | J212: Target Achieved | K212: 167.50 | L212: 25.48% | M212: Successful | N212: 2017-12-21
A213: 92 | B213: 2017-08-17 | D213: FINPIPE | E213: Accu | F213: 605.00 | H213: 750 | I213: 750.00 | J213: Profit of Rs.145/- | K213: 145.00 | L213: 23.97% | M213: Successful | N213: 2017-10-19
A214: 93 | B214: 2017-09-01 | D214: SHK | E214: Accu | F214: 255 | H214: 307.50 | I214: 320.00 | J214: Part profit of Rs.52.5/- | K214: 52.50 | L214: 21% | M214: Successful | N214: 2017-12-29
A215: 94 | B215: 2017-09-19 | D215: SKIPPER | E215: Accu | F215: 215.00 | H215: 258 | I215: 258.00 | J215: Target Achieved | K215: 43.00 | L215: 20.00% | M215: Successful | N215: 2017-11-01
A216: 95 | B216: 2017-09-20 | D216: CAMLINFINE | E216: Accu | F216: 75.00 | H216: 90 | I216: 90.00 | J216: Profit of Rs.15.00/- | K216: 15.00 | L216: 20.00% | M216: Successful | N216: 2017-10-11
A217: 96 | B217: 2017-10-03 | D217: GNA | E217: Accu | F217: 315.00 | H217: 392 | I217: 384.00 | J217: Profit of Rs.77/- | K217: 77.00 | L217: 24.44% | M217: Successful | N217: 2017-10-09
A218: 97 | B218: 2017-10-05 | D218: NOCIL | E218: Accu | F218: 145.00 | H218: 179 | I218: 180.00 | J218: Profit of Rs.34/- | K218: 34.00 | L218: 23.45% | M218: Successful | N218: 2017-10-17
A219: 98 | B219: 2017-10-06 | D219: CENTURYPLY | E219: Accu | F219: 256.00 | H219: 323 | I219: 320.00 | J219: Target Achieved | K219: 67.00 | L219: 26.17% | M219: Successful | N219: 2017-11-28
A220: 99 | B220: 2017-10-09 | D220: RECLTD | E220: Accu | F220: 152.5 | H220: 183.50 | I220: 210.00 | J220: Part Profit of Rs.31/- | K220: 31.00 | L220: 20% | M220: Successful | N220: 2017-11-03
A221: 100 | B221: 2017-10-09 | D221: EIHOTEL | E221: Accu | F221: 137.50 | H221: 184 | I221: 183.00 | J221: Profit of Rs.46.5/- | K221: 46.50 | L221: 33.82% | M221: Successful | N221: 2018-01-08
A222: 101 | B222: 2017-10-10 | D222: BOROSIL | E222: Accu | F222: 895.00 | H222: 1122.5 | I222: 1078.00 | J222: Profit of Rs.227.5/- | K222: 227.50 | L222: 25.42% | M222: Successful | N222: 2018-01-17
A223: 102 | B223: 2017-10-10 | D223: NRBBEARING | E223: Accu | F223: 125.50 | H223: 158 | I223: 155.00 | J223: Profit of Rs.32.5/- | K223: 32.50 | L223: 25.90% | M223: Successful | N223: 2017-11-28
A224: 103 | B224: 2017-10-12 | D224: CYIENT | E224: Accu | F224: 525.00 | H224: 629 | I224: 629.00 | J224: Target Achieved | K224: 104.00 | L224: 19.81% | M224: Successful | N224: 2018-01-19
A225: 104 | B225: 2017-11-07 | D225: HATSUN | E225: Accu | F225: 740.00 | H225: 892.5 | I225: 900.00 | J225: Profit of Rs.152.5/- | K225: 152.50 | L225: 20.61% | M225: Successful | N225: 2017-11-13
A226: 105 | B226: 2017-12-04 | D226: SANGHIIND | E226: Accu | F226: 118.50 | H226: 143.5 | I226: 145.00 | J226: Profit of Rs.25/- | K226: 25.00 | L226: 21.10% | M226: Successful | N226: 2017-12-28
A227: 106 | B227: 2017-12-05 | D227: ALLCARGO | E227: Accu | F227: 177.5 | H227: 215.00 | I227: 230.00 | J227: Part Profit of Rs.37.5/- | K227: 37.50 | L227: 21% | M227: Successful | N227: 2017-12-27
A228: 107 | B228: 2017-12-21 | D228: KAJARIACER | E228: Accu | F228: 710-720 | I228: 872.00 | J228: Open
A229: 108 | B229: 2017-12-29 | D229: GNA | E229: Accu | F229: 435.00 | H229: 542.5 | I229: 539.00 | J229: Target Achieved | K229: =H229-F229 -> 107.50 | L229: =K229/F229 -> 24.71% | M229: Successful | N229: 2018-04-16
A230: 109 | B230: 2017-12-29 | D230: ZENSARTECH | E230: Accu | F230: 885.00 | H230: 1090 | I230: 1084.00 | J230: Target Achieved | K230: 205.00 | L230: =K230/F230 -> 23.16% | M230: Successful | N230: 2018-04-23
A231: 110 | B231: 2018-02-07 | D231: GREAVESCOT | E231: Accu | F231: 130-132 | I231: 190.00 | J231: Open
A232: 111 | B232: 2018-02-27 | D232: MOLDTKPAC | E232: Accu | F232: 320-330 | I232: 398.00 | J232: Open
A233: 112 | B233: 2018-03-05 | D233: LICHSGFIN | E233: Accu | F233: 505-515 | I233: 672.00 | J233: Open
A234: 113 | B234: 2018-04-02 | D234: EVERESTIND | E234: Accu | F234: 492.5 | H234: 589.00 | I234: 613.00 | J234: Part Profit of Rs.37.5/- | K234: =H234-F234 -> 96.50 | L234: =K234/F234 -> 20% | M234: Successful | N234: 2018-08-21
A235: 114 | B235: 2018-04-04 | D235: GPPL | E235: Accu | F235: 140-143 | I235: 180.00 | J235: Open
A236: 115 | B236: 2018-04-19 | D236: MANPASAND | E236: Accu | F236: 430 | H236: 220.00 | I236: 537.00 | J236: Loss of Rs.210/- | K236: =H236-F236 -> -210.00 | L236: =K236/F236 -> -48.84% | M236: Unsuccessful | N236: 2018-06-01
A237: 116 | B237: 2018-04-30 | D237: HEIDELBERG | E237: Accu | F237: 154-158 | I237: 196.00 | J237: Open
A238: 117 | B238: 2018-05-17 | D238: PHILIPCARB | E238: Accu | F238: 230-240 | I238: 348.00 | J238: Open
A239: 118 | B239: 2018-06-07 | D239: KEC | E239: Accu | F239: 340-345 | I239: 439.00 | J239: Open
A240: 119 | B240: 2018-07-04 | D240: ASHOKLEY | E240: Accu | F240: 125-130 | I240: 170.00 | J240: Open
A241: 120 | B241: 2018-07-13 | D241: FCONSUMER | E241: Accu | F241: 46-47 | I241: 59.00 | J241: Open
A242: 121 | B242: 2018-07-25 | D242: ZEEMEDIA | E242: Accu | F242: 27-28 | I242: 44.00 | J242: Open
A243: 122 | B243: 2018-08-06 | D243: GABRIEL | E243: Accu | F243: 148-152 | I243: 182.00 | J243: Open
A244: 123 | B244: 2018-08-23 | D244: INDIANHUME | E244: Accu | F244: 280-290 | I244: 364.00 | J244: Open
A245: 124 | B245: 2018-08-29 | D245: GRINDWELL | E245: Accu | F245: 520-530 | I245: 635.00 | J245: Open
A246: 125 | B246: 2018-10-22 | D246: FINPIPE | E246: Accu | F246: 475.00 | H246: 574 | I246: 570.00 | J246: Target Achieved | K246: =H246-F246 -> 99.00 | L246: =K246/F246 -> 20.84% | M246: Successful | N246: 2018-10-30
A247: 126 | B247: 2018-10-23 | D247: JKPAPER | E247: Accu | F247: 158-162 | I247: 191.00 | J247: Open
A248: 127 | B248: 2018-10-24 | D248: GULFOILLUB | E248: Accu | F248: 700-715 | I248: 872.00 | J248: Open
A249: 128 | B249: 2018-10-25 | D249: GODREJCP | E249: Accu | F249: 700-715 | I249: 890.00 | J249: Open
A250: 129 | B250: 2018-10-25 | D250: DBCORP | E250: Accu | F250: 161-167 | I250: 209.00 | J250: Open
A251: 130 | B251: 2018-10-26 | D251: RITES | E251: Accu | F251: 237-243 | I251: 297.00 | J251: Open
F254: Reinitiated $
A256: Disclaimer:
A257: This document has been prepared by the Retail Research Desk of Asit C Mehta
A258: Investment Intermediates Ltd. and is meant for use of the recipient only
A259: and is not for circulation. This document is not to be reported or
A260: copied or made available to others. It should not be considered to be
A261: taken as an offer to sell or a solicitation to buy any security. The
A262: information contained herein is from sources believed reliable. We do
A263: not represent that it is accurate or complete and it should not be
A264: relied upon as such. We may from time to time have positions in and buy
A265: and sell securities referred to herein

Sheet Sheet2 (hidden)
A1: SYMBOL | B1: SERIES | C1: OPEN | D1: HIGH | E1: LOW | F1: CLOSE | G1: LAST | H1: PREVCLOSE | I1: TOTTRDQTY | J1: TOTTRDVAL | K1: TIMESTAMP | L1: TOTALTRADES | M1: ISIN | N1: ISIN
A2: 20MICRONS | B2: EQ | C2: 44.65 | D2: 44.65 | E2: 43 | F2: 43.4 | G2: 43.65 | H2: 43.1 | I2: 32856 | J2: 1424142.35 | K2: 2018-11-02 | L2: 295 | M2: INE144J01027
A3: 21STCENMGM | B3: EQ | C3: 23.5 | D3: 23.5 | E3: 23.5 | F3: 23.5 | G3: 23.5 | H3: 23.05 | I3: 3504 | J3: 82344 | K3: 2018-11-02 | L3: 43 | M3: INE253B01015
A4: 3IINFOTECH | B4: EQ | C4: 3.45 | D4: 3.45 | E4: 3.3 | F4: 3.3 | G4: 3.35 | H4: 3.35 | I4: 1412536 | J4: 4721142.5 | K4: 2018-11-02 | L4: 700 | M4: INE748C01020
A5: 3MINDIA | B5: EQ | C5: 20043.05 | D5: 20502 | E5: 19682.1 | F5: 20282.85 | G5: 20400 | H5: 19897 | I5: 1558 | J5: 31346690.7 | K5: 2018-11-02 | L5: 795 | M5: INE470A01017
A6: 3PLAND | B6: BE | C6: 11.5 | D6: 11.5 | E6: 11.5 | F6: 11.5 | G6: 11.5 | H6: 11.8 | I6: 4000 | J6: 46000 | K6: 2018-11-02 | L6: 1 | M6: INE105C01023
A7: 5PAISA | B7: EQ | C7: 186.25 | D7: 190.3 | E7: 180.2 | F7: 186.15 | G7: 186.05 | H7: 181.35 | I7: 11016 | J7: 2042792.3 | K7: 2018-11-02 | L7: 337 | M7: INE618L01018
A8: 63MOONS | B8: EQ | C8: 75.85 | D8: 79.55 | E8: 75 | F8: 75.75 | G8: 75.2 | H8: 75.65 | I8: 222282 | J8: 17102661.6 | K8: 2018-11-02 | L8: 2361 | M8: INE111B01023
A9: 8KMILES | B9: EQ | C9: 59 | D9: 67.7 | E9: 55.4 | F9: 66.7 | G9: 67.7 | H9: 61.55 | I9: 2342008 | J9: 143759795.2 | K9: 2018-11-02 | L9: 18178 | M9: INE650K01021
A10: A2ZINFRA | B10: EQ | C10: 12 | D10: 12.45 | E10: 11.3 | F10: 12.05 | G10: 12.1 | H10: 12 | I10: 341433 | J10: 4149887.9 | K10: 2018-11-02 | L10: 832 | M10: INE619I01012
A11: AARTIDRUGS | B11: EQ | C11: 604.35 | D11: 619 | E11: 557 | F11: 569.8 | G11: 570.1 | H11: 605.2 | I11: 63701 | J11: 36948606.8 | K11: 2018-11-02 | L11: 3471 | M11: INE767A01016
A12: AARTIIND | B12: EQ | C12: 1365 | D12: 1421 | E12: 1362 | F12: 1383.05 | G12: 1389.25 | H12: 1325.1 | I12: 114729 | J12: 158868201.4 | K12: 2018-11-02 | L12: 8667 | M12: INE769A01020
A13: AARVEEDEN | B13: EQ | C13: 24.65 | D13: 25.4 | E13: 24.45 | F13: 24.5 | G13: 24.45 | H13: 25 | I13: 13953 | J13: 345759.15 | K13: 2018-11-02 | L13: 59 | M13: INE273D01019
A14: AAVAS | B14: EQ | C14: 667 | D14: 679.95 | E14: 662 | F14: 670.3 | G14: 670 | H14: 660.15 | I14: 16821 | J14: 11283331.1 | K14: 2018-11-02 | L14: 1046 | M14: INE216P01012
A15: ABAN | B15: EQ | C15: 79.25 | D15: 81.8 | E15: 79 | F15: 79.65 | G15: 79.2 | H15: 78.55 | I15: 723841 | J15: 57857373.65 | K15: 2018-11-02 | L15: 6732 | M15: INE421A01028
A16: ABB | B16: EQ | C16: 1355 | D16: 1376 | E16: 1308.25 | F16: 1318.15 | G16: 1323.75 | H16: 1317.55 | I16: 184826 | J16: 247805742.9 | K16: 2018-11-02 | L16: 10746 | M16: INE117A01022
A17: ABBOTINDIA | B17: EQ | C17: 7592.65 | D17: 7988 | E17: 7496 | F17: 7609.3 | G17: 7500 | H17: 7592.65 | I17: 4862 | J17: 37338210.25 | K17: 2018-11-02 | L17: 1258 | M17: INE358A01014
A18: ABCAPITAL | B18: EQ | C18: 107.4 | D18: 108.9 | E18: 105.55 | F18: 106.35 | G18: 106.5 | H18: 106.1 | I18: 1718596 | J18: 184270144.8 | K18: 2018-11-02 | L18: 20542 | M18: INE674K01013
A19: ABFRL | B19: EQ | C19: 188.8 | D19: 199.95 | E19: 187.55 | F19: 193.15 | G19: 193.8 | H19: 187.25 | I19: 4058147 | J19: 787213339.2 | K19: 2018-11-02 | L19: 36373 | M19: INE647O01011
A20: ACC | B20: EQ | C20: 1412.1 | D20: 1474 | E20: 1411 | F20: 1451.5 | G20: 1449.9 | H20: 1405.7 | I20: 654747 | J20: 948607448.6 | K20: 2018-11-02 | L20: 23112 | M20: INE012A01025
A21: ACCELYA | B21: EQ | C21: 978 | D21: 999.95 | E21: 954.95 | F21: 972.45 | G21: 999.9 | H21: 958.4 | I21: 9010 | J21: 8717604.85 | K21: 2018-11-02 | L21: 934 | M21: INE793A01012
A22: ACE | B22: EQ | C22: 103.7 | D22: 106.35 | E22: 102.45 | F22: 103.35 | G22: 103.1 | H22: 101.95 | I22: 279187 | J22: 29140606.6 | K22: 2018-11-02 | L22: 2831 | M22: INE731H01025
A23: ADANIENT | B23: EQ | C23: 176.6 | D23: 179.5 | E23: 173.8 | F23: 175.6 | G23: 174.95 | H23: 175 | I23: 6839045 | J23: 1207018770 | K23: 2018-11-02 | L23: 36675 | M23: INE423A01024
A24: ADANIGREEN | B24: EQ | C24: 41.95 | D24: 42.8 | E24: 41.1 | F24: 41.3 | G24: 41.3 | H24: 41.05 | I24: 948252 | J24: 39846878.15 | K24: 2018-11-02 | L24: 4166 | M24: INE364U01010
A25: ADANIPORTS | B25: EQ | C25: 321.7 | D25: 340.15 | E25: 319.4 | F25: 333.6 | G25: 334.8 | H25: 318.3 | I25: 7387791 | J25: 2445043737 | K25: 2018-11-02 | L25: 95466 | M25: INE742F01042
A26: ADANIPOWER | B26: EQ | C26: 50.25 | D26: 52.75 | E26: 48.65 | F26: 49.85 | G26: 49.3 | H26: 50.2 | I26: 60809218 | J26: 3091718853 | K26: 2018-11-02 | L26: 105050 | M26: INE814H01011
A27: ADANITRANS | B27: EQ | C27: 178.4 | D27: 184.1 | E27: 178 | F27: 178.95 | G27: 178.85 | H27: 176.6 | I27: 305108 | J27: 55085086.6 | K27: 2018-11-02 | L27: 2928 | M27: INE931S01010
A28: ADFFOODS | B28: EQ | C28: 212 | D28: 216 | E28: 210.25 | F28: 211.15 | G28: 211 | H28: 208.1 | I28: 36678 | J28: 7803484.15 | K28: 2018-11-02 | L28: 884 | M28: INE982B01019
A29: ADHUNIK | B29: EQ | C29: 3 | D29: 3 | E29: 2.85 | F29: 2.95 | G29: 2.95 | H29: 2.95 | I29: 43253 | J29: 125943.75 | K29: 2018-11-02 | L29: 62 | M29: INE400H01019
A30: ADHUNIKIND | B30: EQ | C30: 41 | D30: 43.65 | E30: 40 | F30: 40.55 | G30: 41.95 | H30: 41.75 | I30: 59984 | J30: 2479422.5 | K30: 2018-11-02 | L30: 108 | M30: INE452L01012
A31: ADLABS | B31: EQ | C31: 13.6 | D31: 14 | E31: 13.6 | F31: 14 | G31: 14 | H31: 13.35 | I31: 57088 | J31: 798095.25 | K31: 2018-11-02 | L31: 156 | M31: INE172N01012
A32: ADORWELD | B32: EQ | C32: 388.1 | D32: 391 | E32: 373.25 | F32: 375.6 | G32: 374 | H32: 381 | I32: 36081 | J32: 13753589.8 | K32: 2018-11-02 | L32: 1216 | M32: INE045A01017
A33: ADROITINFO | B33: EQ | C33: 20.9 | D33: 20.9 | E33: 19 | F33: 19 | G33: 19.4 | H33: 19.95 | I33: 4131 | J33: 79254.85 | K33: 2018-11-02 | L33: 25 | M33: INE737B01033
A34: ADSL | B34: EQ | C34: 13.25 | D34: 14 | E34: 13.15 | F34: 13.85 | G34: 14 | H34: 13.35 | I34: 12101 | J34: 165710.55 | K34: 2018-11-02 | L34: 54 | M34: INE102I01027
A35: ADVANIHOTR | B35: EQ | C35: 59.45 | D35: 60 | E35: 55.1 | F35: 57.15 | G35: 57 | H35: 59.1 | I35: 17540 | J35: 1013021.55 | K35: 2018-11-02 | L35: 243 | M35: INE199C01026
A36: ADVENZYMES | B36: EQ | C36: 199.9 | D36: 199.9 | E36: 190.9 | F36: 191.5 | G36: 191.15 | H36: 200.6 | I36: 159698 | J36: 30819347.1 | K36: 2018-11-02 | L36: 3157 | M36: INE837H01020
A37: AEGISCHEM | B37: EQ | C37: 216 | D37: 225.25 | E37: 216 | F37: 219.85 | G37: 220 | H37: 214.3 | I37: 73162 | J37: 16203818.05 | K37: 2018-11-02 | L37: 4040 | M37: INE208C01025
A38: AGARIND | B38: EQ | C38: 195.35 | D38: 210 | E38: 186.05 | F38: 197.45 | G38: 199 | H38: 185 | I38: 2032 | J38: 400547.25 | K38: 2018-11-02 | L38: 81 | M38: INE204E01012
A39: AGCNET | B39: EQ | C39: 64.9 | D39: 65 | E39: 60 | F39: 61.7 | G39: 60.05 | H39: 62.5 | I39: 11162 | J39: 693400.35 | K39: 2018-11-02 | L39: 154 | M39: INE676A01019
A40: AGLSL | B40: EQ | C40: 77.15 | D40: 78.9 | E40: 75.95 | F40: 76 | G40: 76 | H40: 78.15 | I40: 1505 | J40: 115382.95 | K40: 2018-11-02 | L40: 47 | M40: INE517U01013
A41: AGRITECH | B41: EQ | C41: 52.5 | D41: 55.4 | E41: 51.6 | F41: 54.45 | G41: 54.6 | H41: 52.6 | I41: 14247 | J41: 774242.85 | K41: 2018-11-02 | L41: 275 | M41: INE449G01018
A42: AHLEAST | B42: EQ | C42: 242 | D42: 249 | E42: 237.55 | F42: 240.1 | G42: 239.25 | H42: 248.9 | I42: 1049 | J42: 254675.7 | K42: 2018-11-02 | L42: 99 | M42: INE926K01017
A43: AHLUCONT | B43: EQ | C43: 309 | D43: 319.5 | E43: 307.25 | F43: 311.8 | G43: 313.65 | H43: 302.9 | I43: 94219 | J43: 29232289.5 | K43: 2018-11-02 | L43: 1197 | M43: INE758C01029
A44: AHLWEST | B44: EQ | C44: 281.2 | D44: 298 | E44: 281.2 | F44: 285.65 | G44: 288.9 | H44: 281.05 | I44: 2157 | J44: 625093.65 | K44: 2018-11-02 | L44: 92 | M44: INE915K01010
A45: AIAENG | B45: EQ | C45: 1733 | D45: 1733 | E45: 1644.5 | F45: 1708.65 | G45: 1730 | H45: 1685.5 | I45: 229921 | J45: 382619509.1 | K45: 2018-11-02 | L45: 2901 | M45: INE212H01026
A46: AIFL | B46: EQ | C46: 75.55 | D46: 75.55 | E46: 75.55 | F46: 75.55 | G46: 75.55 | H46: 79.5 | I46: 1740 | J46: 131457 | K46: 2018-11-02 | L46: 46 | M46: INE428O01016
A47: AIONJSW | B47: EQ | C47: 30.95 | D47: 31.45 | E47: 30.15 | F47: 31.1 | G47: 31.45 | H47: 30.35 | I47: 75782 | J47: 2343177.85 | K47: 2018-11-02 | L47: 204 | M47: INE743C01021
A48: AJANTPHARM | B48: EQ | C48: 1092 | D48: 1104.9 | E48: 1075.5 | F48: 1085.3 | G48: 1080 | H48: 1088.5 | I48: 443283 | J48: 483100762.4 | K48: 2018-11-02 | L48: 17695 | M48: INE031B01049
A49: AJMERA | B49: EQ | C49: 161.25 | D49: 164.2 | E49: 159.1 | F49: 160.5 | G49: 160.5 | H49: 158.85 | I49: 22711 | J49: 3673412.4 | K49: 2018-11-02 | L49: 737 | M49: INE298G01027
A50: AKSHARCHEM | B50: EQ | C50: 471.05 | D50: 476.95 | E50: 457.4 | F50: 458.2 | G50: 463.45 | H50: 469.95 | I50: 3710 | J50: 1717431.7 | K50: 2018-11-02 | L50: 272 | M50: INE542B01011
A51: AKSHOPTFBR | B51: EQ | C51: 29.2 | D51: 29.5 | E51: 27.4 | F51: 27.6 | G51: 27.7 | H51: 28.85 | I51: 1696787 | J51: 48218428.8 | K51: 2018-11-02 | L51: 4491 | M51: INE523B01011
A52: AKZOINDIA | B52: EQ | C52: 1538 | D52: 1579.9 | E52: 1518.05 | F52: 1555.05 | G52: 1547.25 | H52: 1537.2 | I52: 22626 | J52: 35480265.1 | K52: 2018-11-02 | L52: 926 | M52: INE133A01011
A53: ALANKIT | B53: EQ | C53: 20.35 | D53: 21.35 | E53: 19.95 | F53: 20.8 | G53: 20.6 | H53: 20.25 | I53: 300699 | J53: 6159626.2 | K53: 2018-11-02 | L53: 725 | M53: INE914E01040
A54: ALBERTDAVD | B54: EQ | C54: 534.5 | D54: 558.05 | E54: 527 | F54: 535.7 | G54: 528.15 | H54: 531.5 | I54: 16035 | J54: 8736890.45 | K54: 2018-11-02 | L54: 857 | M54: INE155C01010
A55: ALBK | B55: EQ | C55: 43.55 | D55: 44.65 | E55: 42.45 | F55: 42.9 | G55: 42.55 | H55: 43.3 | I55: 4798202 | J55: 209232074.8 | K55: 2018-11-02 | L55: 12178 | M55: INE428A01015
A56: ALCHEM | B56: BE | C56: 3.5 | D56: 3.6 | E56: 3.45 | F56: 3.5 | G56: 3.55 | H56: 3.6 | I56: 34306 | J56: 118777.4 | K56: 2018-11-02 | L56: 45 | M56: INE964B01033
A57: ALEMBICLTD | B57: EQ | C57: 44.6 | D57: 48.2 | E57: 43.45 | F57: 46.05 | G57: 46.1 | H57: 44.2 | I57: 501383 | J57: 22975001.6 | K57: 2018-11-02 | L57: 3480 | M57: INE426A01027
A58: ALICON | B58: EQ | C58: 620 | D58: 639 | E58: 616.2 | F58: 632.4 | G58: 635 | H58: 618.75 | I58: 3992 | J58: 2508128.65 | K58: 2018-11-02 | L58: 233 | M58: INE062D01024
A59: ALKALI | B59: EQ | C59: 59.05 | D59: 64.8 | E59: 57.2 | F59: 58.25 | G59: 57.55 | H59: 59.4 | I59: 50466 | J59: 3126592.95 | K59: 2018-11-02 | L59: 672 | M59: INE773I01017
A60: ALKEM | B60: EQ | C60: 1914 | D60: 1938.95 | E60: 1860 | F60: 1908.9 | G60: 1896 | H60: 1899.05 | I60: 63742 | J60: 121216318.2 | K60: 2018-11-02 | L60: 5759 | M60: INE540L01014
A61: ALKYLAMINE | B61: EQ | C61: 669 | D61: 708.9 | E61: 662.2 | F61: 682.2 | G61: 686 | H61: 657.15 | I61: 39194 | J61: 27239858.6 | K61: 2018-11-02 | L61: 1401 | M61: INE150B01021
A62: ALLCARGO | B62: EQ | C62: 103.8 | D62: 105.6 | E62: 100.05 | F62: 101.45 | G62: 101.2 | H62: 102.85 | I62: 162648 | J62: 16847416 | K62: 2018-11-02 | L62: 2580 | M62: INE418H01029
A63: ALLSEC | B63: EQ | C63: 245.1 | D63: 247.9 | E63: 240 | F63: 242.15 | G63: 243.05 | H63: 241.25 | I63: 3286 | J63: 798506.9 | K63: 2018-11-02 | L63: 292 | M63: INE835G01018
A64: ALMONDZ | B64: EQ | C64: 24.2 | D64: 24.2 | E64: 22.55 | F64: 23.6 | G64: 24 | H64: 23.65 | I64: 5653 | J64: 130884.7 | K64: 2018-11-02 | L64: 31 | M64: INE326B01027
A65: ALOKTEXT | B65: EQ | C65: 3.4 | D65: 3.45 | E65: 3.2 | F65: 3.2 | G65: 3.25 | H65: 3.3 | I65: 3076736 | J65: 10200315.75 | K65: 2018-11-02 | L65: 1479 | M65: INE270A01011
A66: ALPA | B66: EQ | C66: 26.6 | D66: 29.3 | E66: 26.6 | F66: 28.8 | G66: 28.65 | H66: 26.8 | I66: 32692 | J66: 924130.8 | K66: 2018-11-02 | L66: 176 | M66: INE385I01010
A67: ALPHAGEO | B67: EQ | C67: 507.35 | D67: 515.85 | E67: 502 | F67: 507.25 | G67: 504.1 | H67: 505.7 | I67: 4522 | J67: 2300218.15 | K67: 2018-11-02 | L67: 417 | M67: INE137C01018
A68: ALPSINDUS | B68: BE | C68: 2.6 | D68: 2.7 | E68: 2.5 | F68: 2.5 | G68: 2.5 | H68: 2.6 | I68: 13665 | J68: 36362.5 | K68: 2018-11-02 | L68: 13 | M68: INE093B01015
A69: AMARAJABAT | B69: EQ | C69: 751.95 | D69: 796 | E69: 751.2 | F69: 790.8 | G69: 796 | H69: 746.45 | I69: 862815 | J69: 674656409.8 | K69: 2018-11-02 | L69: 22437 | M69: INE885A01032
A70: AMBER | B70: EQ | C70: 845 | D70: 866 | E70: 831.55 | F70: 861.85 | G70: 860.15 | H70: 854.2 | I70: 16907 | J70: 14339295.7 | K70: 2018-11-02 | L70: 1499 | M70: INE371P01015
A71: AMBIKCO | B71: EQ | C71: 1164.15 | D71: 1180.15 | E71: 1160 | F71: 1166.1 | G71: 1165 | H71: 1173.65 | I71: 1877 | J71: 2203482.85 | K71: 2018-11-02 | L71: 180 | M71: INE540G01014
A72: AMBUJACEM | B72: EQ | C72: 202 | D72: 208 | E72: 201.4 | F72: 204.05 | G72: 204 | H72: 199.95 | I72: 4174804 | J72: 856500312.8 | K72: 2018-11-02 | L72: 40782 | M72: INE079A01024
A73: AMDIND | B73: EQ | C73: 21.35 | D73: 21.85 | E73: 20.7 | F73: 21.5 | G73: 21.85 | H73: 21.15 | I73: 6666 | J73: 142835.55 | K73: 2018-11-02 | L73: 30 | M73: INE005I01014
A74: AMJLAND | B74: EQ | C74: 22 | D74: 23 | E74: 21.75 | F74: 22 | G74: 21.8 | H74: 21.7 | I74: 27420 | J74: 618116.05 | K74: 2018-11-02 | L74: 143 | M74: INE606A01024
A75: AMRUTANJAN | B75: EQ | C75: 258 | D75: 259.15 | E75: 252.6 | F75: 253.55 | G75: 252.6 | H75: 255.4 | I75: 25969 | J75: 6635580.25 | K75: 2018-11-02 | L75: 828 | M75: INE098F01031
A76: ANANTRAJ | B76: EQ | C76: 36.85 | D76: 38.8 | E76: 36.7 | F76: 37.4 | G76: 37.5 | H76: 36.35 | I76: 710703 | J76: 26851188.05 | K76: 2018-11-02 | L76: 2963 | M76: INE242C01024
A77: ANDHRABANK | B77: EQ | C77: 29.7 | D77: 29.75 | E77: 28.4 | F77: 28.65 | G77: 28.75 | H77: 29.3 | I77: 2001826 | J77: 58517419.15 | K77: 2018-11-02 | L77: 5481 | M77: INE434A01013
A78: ANDHRACEMT | B78: EQ | C78: 6.45 | D78: 6.5 | E78: 6.25 | F78: 6.3 | G78: 6.35 | H78: 6.3 | I78: 69342 | J78: 441945.4 | K78: 2018-11-02 | L78: 182 | M78: INE666E01012
A79: ANDHRSUGAR | B79: EQ | C79: 359.95 | D79: 380 | E79: 357.05 | F79: 371.1 | G79: 370.5 | H79: 359.4 | I79: 101010 | J79: 37639388.8 | K79: 2018-11-02 | L79: 2404 | M79: INE715B01013
A80: ANGIND | B80: BE | C80: 1.55 | D80: 1.55 | E80: 1.45 | F80: 1.45 | G80: 1.45 | H80: 1.5 | I80: 2689 | J80: 3991.9 | K80: 2018-11-02 | L80: 15 | M80: INE017D01010
A81: ANIKINDS | B81: EQ | C81: 26.55 | D81: 27.5 | E81: 26.4 | F81: 26.45 | G81: 26.45 | H81: 26.75 | I81: 875 | J81: 23385.6 | K81: 2018-11-02 | L81: 17 | M81: INE087B01017
A82: ANKITMETAL | B82: BE | C82: 0.45 | D82: 0.5 | E82: 0.4 | F82: 0.5 | G82: 0.5 | H82: 0.45 | I82: 62566 | J82: 30733.55 | K82: 2018-11-02 | L82: 33 | M82: INE106I01010
A83: ANSALAPI | B83: EQ | C83: 11.2 | D83: 12 | E83: 11.15 | F83: 11.5 | G83: 11.7 | H83: 11.15 | I83: 45177 | J83: 524893.9 | K83: 2018-11-02 | L83: 229 | M83: INE436A01026
A84: ANSALHSG | B84: EQ | C84: 10.6 | D84: 11.25 | E84: 10.6 | F84: 10.95 | G84: 10.85 | H84: 10.5 | I84: 28420 | J84: 312526.65 | K84: 2018-11-02 | L84: 188 | M84: INE880B01015
A85: ANTGRAPHIC | B85: BE | C85: 0.55 | D85: 0.55 | E85: 0.45 | F85: 0.55 | G85: 0.55 | H85: 0.5 | I85: 84140 | J85: 43062.45 | K85: 2018-11-02 | L85: 19 | M85: INE414B01021
A86: APARINDS | B86: EQ | C86: 540.05 | D86: 563 | E86: 540.05 | F86: 556.9 | G86: 559.5 | H86: 541.4 | I86: 63455 | J86: 35114920.55 | K86: 2018-11-02 | L86: 3864 | M86: INE372A01015
A87: APCL | B87: EQ | C87: 122 | D87: 139 | E87: 119 | F87: 127.95 | G87: 131.3 | H87: 120.1 | I87: 5899 | J87: 762827.95 | K87: 2018-11-02 | L87: 242 | M87: INE071F01012
A88: APCOTEXIND | B88: EQ | C88: 539.65 | D88: 570 | E88: 539.65 | F88: 555.25 | G88: 555.85 | H88: 536.5 | I88: 5180 | J88: 2891659.45 | K88: 2018-11-02 | L88: 450 | M88: INE116A01024
A89: APEX | B89: EQ | C89: 414.7 | D89: 422.65 | E89: 405.25 | F89: 415.9 | G89: 414.55 | H89: 415.2 | I89: 172838 | J89: 71707195 | K89: 2018-11-02 | L89: 5467 | M89: INE346W01013
A90: APLAPOLLO | B90: EQ | C90: 1215 | D90: 1325 | E90: 1164 | F90: 1226.9 | G90: 1235 | H90: 1210 | I90: 92119 | J90: 114972575.3 | K90: 2018-11-02 | L90: 6605 | M90: INE702C01019
A91: APLLTD | B91: EQ | C91: 605 | D91: 607.8 | E91: 586.1 | F91: 589.4 | G91: 590.1 | H91: 603.05 | I91: 28997 | J91: 17208569.05 | K91: 2018-11-02 | L91: 1806 | M91: INE901L01018
A92: APOLLO | B92: EQ | C92: 128.9 | D92: 134 | E92: 122.2 | F92: 123.8 | G92: 123.05 | H92: 123.45 | I92: 52818 | J92: 6720498.35 | K92: 2018-11-02 | L92: 1606 | M92: INE713T01010
A93: APOLLOHOSP | B93: EQ | C93: 1178.3 | D93: 1203.75 | E93: 1138.5 | F93: 1153.8 | G93: 1149.95 | H93: 1172.4 | I93: 713553 | J93: 844266090.5 | K93: 2018-11-02 | L93: 65802 | M93: INE437A01024
A94: APOLLOTYRE | B94: EQ | C94: 222 | D94: 229.5 | E94: 219.1 | F94: 220.7 | G94: 220 | H94: 218.4 | I94: 4362130 | J94: 981032817 | K94: 2018-11-02 | L94: 36200 | M94: INE438A01022
A95: APOLSINHOT | B95: EQ | C95: 749.9 | D95: 749.9 | E95: 703 | F95: 714.85 | G95: 720 | H95: 710.25 | I95: 638 | J95: 460955.9 | K95: 2018-11-02 | L95: 145 | M95: INE451F01024
A96: APTECHT | B96: EQ | C96: 155.95 | D96: 171.3 | E96: 155.95 | F96: 161.6 | G96: 161.45 | H96: 155.75 | I96: 751323 | J96: 123742660.5 | K96: 2018-11-02 | L96: 11002 | M96: INE266F01018
A97: ARCHIDPLY | B97: EQ | C97: 44.7 | D97: 47.85 | E97: 43.5 | F97: 45.55 | G97: 45.25 | H97: 43.75 | I97: 27586 | J97: 1259893 | K97: 2018-11-02 | L97: 294 | M97: INE877I01016
A98: ARCHIES | B98: EQ | C98: 27.05 | D98: 27.9 | E98: 26.8 | F98: 27.5 | G98: 27.5 | H98: 27.05 | I98: 73610 | J98: 2011092.5 | K98: 2018-11-02 | L98: 349 | M98: INE731A01020
A99: ARCOTECH | B99: EQ | C99: 7.55 | D99: 7.55 | E99: 7.55 | F99: 7.55 | G99: 7.55 | H99: 6.9 | I99: 119450 | J99: 901847.5 | K99: 2018-11-02 | L99: 84 | M99: INE574I01035
A100: ARIES | B100: EQ | C100: 110.3 | D100: 112 | E100: 105.3 | F100: 106.3 | G100: 106 | H100: 109.2 | I100: 45017 | J100: 4849286.9 | K100: 2018-11-02 | L100: 915 | M100: INE298I01015
A101: ARIHANT | B101: EQ | C101: 25.95 | D101: 27.5 | E101: 23.75 | F101: 26.65 | G101: 26.7 | H101: 23.65 | I101: 9376 | J101: 246594.3 | K101: 2018-11-02 | L101: 70 | M101: INE413D01011
A102: ARIHANTSUP | B102: EQ | C102: 53.7 | D102: 55 | E102: 52.6 | F102: 54.05 | G102: 54.25 | H102: 54.4 | I102: 66783 | J102: 3545144.85 | K102: 2018-11-02 | L102: 632 | M102: INE643K01018
A103: ARMANFIN | B103: EQ | C103: 344.95 | D103: 360 | E103: 315.05 | F103: 346.65 | G103: 350 | H103: 322.45 | I103: 4840 | J103: 1664279.3 | K103: 2018-11-02 | L103: 176 | M103: INE109C01017
A104: AROGRANITE | B104: EQ | C104: 53.5 | D104: 53.55 | E104: 51.5 | F104: 51.75 | G104: 52 | H104: 52 | I104: 8295 | J104: 435768.3 | K104: 2018-11-02 | L104: 113 | M104: INE210C01013
A105: ARROWGREEN | B105: EQ | C105: 112.75 | D105: 112.75 | E105: 107.1 | F105: 109.2 | G105: 110.7 | H105: 108.15 | I105: 7393 | J105: 814092.5 | K105: 2018-11-02 | L105: 111 | M105: INE570D01018
A106: ARROWTEX | B106: EQ | C106: 25.8 | D106: 26.3 | E106: 25.3 | F106: 25.8 | G106: 25.8 | H106: 25.3 | I106: 4644 | J106: 119114.7 | K106: 2018-11-02 | L106: 54 | M106: INE933J01015
A107: ARSHIYA | B107: EQ | C107: 34 | D107: 37 | E107: 34 | F107: 34.6 | G107: 34.4 | H107: 33.9 | I107: 281592 | J107: 9912115.7 | K107: 2018-11-02 | L107: 1309 | M107: INE968D01022
A108: ARSSINFRA | B108: EQ | C108: 23.45 | D108: 23.55 | E108: 22.55 | F108: 22.7 | G108: 22.55 | H108: 22.75 | I108: 9784 | J108: 224605.65 | K108: 2018-11-02 | L108: 106 | M108: INE267I01010
A109: ARVIND | B109: EQ | C109: 347 | D109: 347.95 | E109: 325.05 | F109: 326.85 | G109: 326.7 | H109: 345.4 | I109: 4236818 | J109: 1415142697 | K109: 2018-11-02 | L109: 47655 | M109: INE034A01011
A110: ARVSMART | B110: EQ | C110: 116 | D110: 119 | E110: 115.7 | F110: 116.4 | G110: 117.2 | H110: 113.75 | I110: 20819 | J110: 2438577.55 | K110: 2018-11-02 | L110: 406 | M110: INE034S01021
A111: ASAHIINDIA | B111: EQ | C111: 278.05 | D111: 293.8 | E111: 278.05 | F111: 290.7 | G111: 291 | H111: 277.75 | I111: 18517 | J111: 5311418.15 | K111: 2018-11-02 | L111: 592 | M111: INE439A01020
A112: ASAHISONG | B112: EQ | C112: 245 | D112: 259.8 | E112: 239.1 | F112: 248.7 | G112: 247.05 | H112: 247.7 | I112: 1118 | J112: 281437.35 | K112: 2018-11-02 | L112: 84 | M112: INE228I01012
A113: ASAL | B113: EQ | C113: 53.7 | D113: 53.7 | E113: 51.45 | F113: 51.75 | G113: 52.2 | H113: 51.6 | I113: 21959 | J113: 1146687.4 | K113: 2018-11-02 | L113: 250 | M113: INE900C01027
A114: ASHAPURMIN | B114: EQ | C114: 31.5 | D114: 31.5 | E114: 28.1 | F114: 29.6 | G114: 29.55 | H114: 30.1 | I114: 130171 | J114: 3903694.35 | K114: 2018-11-02 | L114: 942 | M114: INE348A01023
A115: ASHIANA | B115: EQ | C115: 128 | D115: 128 | E115: 124.7 | F115: 125.95 | G115: 126.4 | H115: 125.65 | I115: 53029 | J115: 6675454.35 | K115: 2018-11-02 | L115: 776 | M115: INE365D01021
A116: ASHIMASYN | B116: EQ | C116: 15.25 | D116: 15.75 | E116: 15.2 | F116: 15.3 | G116: 15.45 | H116: 15.1 | I116: 85507 | J116: 1324263.5 | K116: 2018-11-02 | L116: 398 | M116: INE440A01010
A117: ASHOKA | B117: EQ | C117: 117.5 | D117: 122.7 | E117: 117.4 | F117: 118.65 | G117: 118 | H117: 116.55 | I117: 159203 | J117: 19005232.15 | K117: 2018-11-02 | L117: 3049 | M117: INE442H01029
A118: ASHOKLEY | B118: EQ | C118: 114.4 | D118: 118.45 | E118: 113.8 | F118: 117.7 | G118: 117.7 | H118: 113.35 | I118: 24471836 | J118: 2848919344 | K118: 2018-11-02 | L118: 91486 | M118: INE208A01029
A119: ASIANHOTNR | B119: EQ | C119: 146.8 | D119: 155.95 | E119: 146 | F119: 151.2 | G119: 149 | H119: 151.35 | I119: 1515 | J119: 228089.1 | K119: 2018-11-02 | L119: 73 | M119: INE363A01022
A120: ASIANPAINT | B120: EQ | C120: 1242 | D120: 1291.55 | E120: 1241.25 | F120: 1247 | G120: 1252.6 | H120: 1217.8 | I120: 2235848 | J120: 2822254965 | K120: 2018-11-02 | L120: 94737 | M120: INE021A01026
A121: ASIANTILES | B121: EQ | C121: 193 | D121: 193 | E121: 185 | F121: 185.9 | G121: 185.95 | H121: 184.4 | I121: 66750 | J121: 12564100.35 | K121: 2018-11-02 | L121: 1359 | M121: INE022I01019
A122: ASPINWALL | B122: EQ | C122: 201 | D122: 201 | E122: 189 | F122: 189 | G122: 189 | H122: 197.1 | I122: 3082 | J122: 597400.1 | K122: 2018-11-02 | L122: 62 | M122: INE991I01015
A123: ASSAMCO | B123: BE | C123: 2.05 | D123: 2.05 | E123: 2.05 | F123: 2.05 | G123: 2.05 | H123: 2.15 | I123: 55284 | J123: 113332.2 | K123: 2018-11-02 | L123: 73 | M123: INE442A01024
A124: ASTEC | B124: EQ | C124: 522 | D124: 530.9 | E124: 522 | F124: 525.95 | G124: 527 | H124: 521.2 | I124: 7591 | J124: 4001758.3 | K124: 2018-11-02 | L124: 289 | M124: INE563J01010
A125: ASTERDM | B125: EQ | C125: 158.45 | D125: 159.9 | E125: 155.5 | F125: 155.9 | G125: 155.5 | H125: 157.35 | I125: 27075 | J125: 4276215.4 | K125: 2018-11-02 | L125: 1069 | M125: INE914M01019
A126: ASTRAL | B126: EQ | C126: 1018.95 | D126: 1069 | E126: 991.4 | F126: 1016.15 | G126: 1002 | H126: 1003.75 | I126: 124572 | J126: 126645770.5 | K126: 2018-11-02 | L126: 10511 | M126: INE006I01046
A127: ASTRAMICRO | B127: EQ | C127: 79.6 | D127: 83.05 | E127: 79 | F127: 80.35 | G127: 80.2 | H127: 79.15 | I127: 372095 | J127: 30239412.55 | K127: 2018-11-02 | L127: 2747 | M127: INE386C01029
A128: ASTRAZEN | B128: EQ | C128: 1715.65 | D128: 1721.95 | E128: 1655.05 | F128: 1678 | G128: 1685.1 | H128: 1698.75 | I128: 10814 | J128: 18313028.05 | K128: 2018-11-02 | L128: 1527 | M128: INE203A01020
A129: ASTRON | B129: EQ | C129: 114.65 | D129: 120.5 | E129: 114.6 | F129: 119.4 | G129: 119.6 | H129: 113.95 | I129: 269416 | J129: 31839147.9 | K129: 2018-11-02 | L129: 4429 | M129: INE646X01014
A130: ATFL | B130: EQ | C130: 522.55 | D130: 538.05 | E130: 515 | F130: 518.45 | G130: 524 | H130: 520.8 | I130: 15191 | J130: 8051190.3 | K130: 2018-11-02 | L130: 1284 | M130: INE209A01019
A131: ATLANTA | B131: EQ | C131: 28.55 | D131: 29.95 | E131: 28.55 | F131: 29 | G131: 28.8 | H131: 28.55 | I131: 82544 | J131: 2427056.6 | K131: 2018-11-02 | L131: 613 | M131: INE285H01022
A132: ATUL | B132: EQ | C132: 3355.4 | D132: 3478.2 | E132: 3321.35 | F132: 3341.65 | G132: 3335 | H132: 3369.7 | I132: 22492 | J132: 76518425.35 | K132: 2018-11-02 | L132: 2883 | M132: INE100A01010
A133: ATULAUTO | B133: EQ | C133: 362 | D133: 375 | E133: 357.55 | F133: 359.3 | G133: 358.25 | H133: 362.35 | I133: 19428 | J133: 7122738.3 | K133: 2018-11-02 | L133: 1146 | M133: INE951D01028
A134: AUBANK | B134: EQ | C134: 564.65 | D134: 568.75 | E134: 553 | F134: 559.65 | G134: 554.05 | H134: 563.7 | I134: 124955 | J134: 70105314.15 | K134: 2018-11-02 | L134: 11002 | M134: INE949L01017
A135: AURIONPRO | B135: EQ | C135: 166.75 | D135: 166.75 | E135: 157.1 | F135: 158.3 | G135: 157.7 | H135: 162.7 | I135: 16602 | J135: 2664690.75 | K135: 2018-11-02 | L135: 412 | M135: INE132H01018
A136: AUROPHARMA | B136: EQ | C136: 795 | D136: 795 | E136: 777.9 | F136: 781.4 | G136: 779 | H136: 792.55 | I136: 2018433 | J136: 1588533157 | K136: 2018-11-02 | L136: 45959 | M136: INE406A01037
A137: AUSOMENT | B137: EQ | C137: 50.5 | D137: 53.35 | E137: 49.9 | F137: 52.55 | G137: 52.2 | H137: 49.4 | I137: 5809 | J137: 302120.6 | K137: 2018-11-02 | L137: 118 | M137: INE218C01016
A138: AUTOAXLES | B138: EQ | C138: 1150 | D138: 1190 | E138: 1130.05 | F138: 1166.05 | G138: 1182 | H138: 1137.45 | I138: 25323 | J138: 29354437.15 | K138: 2018-11-02 | L138: 2163 | M138: INE449A01011
A139: AUTOIND | B139: EQ | C139: 61.55 | D139: 62.3 | E139: 58.45 | F139: 60.45 | G139: 60.3 | H139: 60.35 | I139: 23601 | J139: 1434727.45 | K139: 2018-11-02 | L139: 550 | M139: INE718H01014
A140: AUTOLITIND | B140: EQ | C140: 44 | D140: 44.2 | E140: 42.3 | F140: 43 | G140: 42.9 | H140: 42.85 | I140: 3361 | J140: 145426.6 | K140: 2018-11-02 | L140: 92 | M140: INE448A01013
A141: AVADHSUGAR | B141: EQ | C141: 455 | D141: 462 | E141: 436.2 | F141: 436.2 | G141: 436.2 | H141: 459.15 | I141: 134285 | J141: 60497334.55 | K141: 2018-11-02 | L141: 4152 | M141: INE349W01017
A142: AVANTIFEED | B142: EQ | C142: 408 | D142: 415 | E142: 401.4 | F142: 410.45 | G142: 408.5 | H142: 404.8 | I142: 323962 | J142: 132548861.9 | K142: 2018-11-02 | L142: 10237 | M142: INE871C01038
A143: AVTNPL | B143: EQ | C143: 27.4 | D143: 27.5 | E143: 26.95 | F143: 27 | G143: 27 | H143: 27.2 | I143: 49252 | J143: 1337905.4 | K143: 2018-11-02 | L143: 241 | M143: INE488D01021
A144: AXISBANK | B144: EQ | C144: 612.45 | D144: 617.9 | E144: 605.1 | F144: 610.65 | G144: 617.3 | H144: 602.15 | I144: 12488669 | J144: 7641641686 | K144: 2018-11-02 | L144: 170812 | M144: INE238A01034
A145: AXISCADES | B145: EQ | C145: 76.8 | D145: 78.2 | E145: 75.3 | F145: 75.55 | G145: 75.5 | H145: 75.05 | I145: 48862 | J145: 3742392.25 | K145: 2018-11-02 | L145: 760 | M145: INE555B01013
A146: AXISGOLD | B146: EQ | C146: 2864 | D146: 2888 | E146: 2822.05 | F146: 2857.9 | G146: 2858 | H146: 2849.8 | I146: 195 | J146: 557359.65 | K146: 2018-11-02 | L146: 39 | M146: INF846K01347
A147: AXISNIFTY | B147: EQ | C147: 1076.38 | D147: 1078.99 | E147: 1068.94 | F147: 1069.32 | G147: 1069.32 | H147: 1051.95 | I147: 22 | J147: 23634.52 | K147: 2018-11-02 | L147: 6 | M147: INF846K01ZL0
A148: AYMSYNTEX | B148: EQ | C148: 42.25 | D148: 43.95 | E148: 42.1 | F148: 43.05 | G148: 42.95 | H148: 42.35 | I148: 9590 | J148: 410940.35 | K148: 2018-11-02 | L148: 81 | M148: INE193B01039
A149: BAFNAPHARM | B149: EQ | C149: 14.6 | D149: 14.9 | E149: 13.4 | F149: 13.6 | G149: 13.5 | H149: 14.15 | I149: 23234 | J149: 323396.55 | K149: 2018-11-02 | L149: 225 | M149: INE878I01014
A150: BAGFILMS | B150: EQ | C150: 4.65 | D150: 4.75 | E150: 4.6 | F150: 4.65 | G150: 4.7 | H150: 4.6 | I150: 73900 | J150: 346000.25 | K150: 2018-11-02 | L150: 170 | M150: INE116D01028
A151: BAJAJ-AUTO | B151: EQ | C151: 2620 | D151: 2700 | E151: 2620 | F151: 2657.75 | G151: 2668 | H151: 2598.85 | I151: 769311 | J151: 2059658163 | K151: 2018-11-02 | L151: 49793 | M151: INE917I01010
A152: BAJAJCORP | B152: EQ | C152: 362.95 | D152: 374 | E152: 351.05 | F152: 352.85 | G152: 353 | H152: 355.05 | I152: 158408 | J152: 56350932.5 | K152: 2018-11-02 | L152: 2438 | M152: INE933K01021
A153: BAJAJELEC | B153: EQ | C153: 510 | D153: 520 | E153: 494 | F153: 498.55 | G153: 499 | H153: 505.5 | I153: 736975 | J153: 376295766.9 | K153: 2018-11-02 | L153: 11899 | M153: INE193E01025
A154: BAJAJFINSV | B154: EQ | C154: 5395 | D154: 5623.8 | E154: 5395 | F154: 5525.3 | G154: 5570 | H154: 5386.5 | I154: 414185 | J154: 2298027474 | K154: 2018-11-02 | L154: 35964 | M154: INE918I01018
A155: BAJAJHIND | B155: EQ | C155: 10.1 | D155: 11.7 | E155: 10 | F155: 10.95 | G155: 10.95 | H155: 10 | I155: 19267422 | J155: 213193783.9 | K155: 2018-11-02 | L155: 15678 | M155: INE306A01021
A156: BAJAJHLDNG | B156: EQ | C156: 2825 | D156: 2854.95 | E156: 2810 | F156: 2815.05 | G156: 2810 | H156: 2813.1 | I156: 3935 | J156: 11152809.2 | K156: 2018-11-02 | L156: 768 | M156: INE118A01012
A157: BAJFINANCE | B157: EQ | C157: 2443 | D157: 2474.9 | E157: 2365 | F157: 2383.3 | G157: 2390 | H157: 2418.1 | I157: 2367117 | J157: 5745922271 | K157: 2018-11-02 | L157: 107167 | M157: INE296A01024
A158: BALAJITELE | B158: EQ | C158: 97.1 | D158: 99.05 | E158: 97 | F158: 97.25 | G158: 97.15 | H158: 97.65 | I158: 34948 | J158: 3432607.95 | K158: 2018-11-02 | L158: 398 | M158: INE794B01026
A159: BALAMINES | B159: EQ | C159: 433 | D159: 458 | E159: 433 | F159: 440.3 | G159: 436 | H159: 431.6 | I159: 70994 | J159: 31563851.75 | K159: 2018-11-02 | L159: 2390 | M159: INE050E01027
A160: BALKRISHNA | B160: EQ | C160: 58.9 | D160: 62.4 | E160: 57.2 | F160: 58.6 | G160: 58.5 | H160: 55.6 | I160: 174100 | J160: 10387503.75 | K160: 2018-11-02 | L160: 2110 | M160: INE875R01011
A161: BALKRISIND | B161: EQ | C161: 1144.95 | D161: 1189.65 | E161: 1105.15 | F161: 1112.8 | G161: 1108.7 | H161: 1135.2 | I161: 1099918 | J161: 1280863019 | K161: 2018-11-02 | L161: 40631 | M161: INE787D01026
A162: BALLARPUR | B162: EQ | C162: 6.5 | D162: 6.5 | E162: 6.2 | F162: 6.25 | G162: 6.2 | H162: 6.45 | I162: 570737 | J162: 3642896.7 | K162: 2018-11-02 | L162: 573 | M162: INE294A01037
A163: BALMLAWRIE | B163: EQ | C163: 195.85 | D163: 197.35 | E163: 194.2 | F163: 195.35 | G163: 194.5 | H163: 194.75 | I163: 30480 | J163: 5972545.6 | K163: 2018-11-02 | L163: 742 | M163: INE164A01016
A164: BALPHARMA | B164: EQ | C164: 83.4 | D164: 85 | E164: 83.1 | F164: 84.35 | G164: 84.2 | H164: 82.75 | I164: 15001 | J164: 1267274.75 | K164: 2018-11-02 | L164: 322 | M164: INE083D01012
A165: BALRAMCHIN | B165: EQ | C165: 109 | D165: 111.45 | E165: 107.5 | F165: 109.45 | G165: 109.15 | H165: 108.65 | I165: 4762464 | J165: 521757553.3 | K165: 2018-11-02 | L165: 23094 | M165: INE119A01028
A166: BANARBEADS | B166: EQ | C166: 49.55 | D166: 50.25 | E166: 49.1 | F166: 49.15 | G166: 49.1 | H166: 49.55 | I166: 699 | J166: 34620.55 | K166: 2018-11-02 | L166: 6 | M166: INE655B01011
A167: BANARISUG | B167: EQ | C167: 1767.4 | D167: 1773 | E167: 1750 | F167: 1751.15 | G167: 1750 | H167: 1746.6 | I167: 407 | J167: 717011.7 | K167: 2018-11-02 | L167: 50 | M167: INE459A01010
A168: BANCOINDIA | B168: EQ | C168: 178.9 | D168: 187.1 | E168: 178.3 | F168: 184.85 | G168: 185.5 | H168: 178.9 | I168: 72877 | J168: 13372338.2 | K168: 2018-11-02 | L168: 1410 | M168: INE213C01025
A169: BANDHANBNK | B169: EQ | C169: 416 | D169: 449 | E169: 415.5 | F169: 426.85 | G169: 428.9 | H169: 411.3 | I169: 1873856 | J169: 808549985.6 | K169: 2018-11-02 | L169: 45817 | M169: INE545U01014
A170: BANG | B170: EQ | C170: 51.9 | D170: 51.9 | E170: 49.5 | F170: 50.1 | G170: 49.5 | H170: 50.9 | I170: 5254 | J170: 263134.15 | K170: 2018-11-02 | L170: 37 | M170: INE863I01016
A171: BANKBARODA | B171: EQ | C171: 108.9 | D171: 113.45 | E171: 108.4 | F171: 109.9 | G171: 110 | H171: 107.7 | I171: 38112597 | J171: 4244194183 | K171: 2018-11-02 | L171: 117153 | M171: INE028A01039
A172: BANKBEES | B172: EQ | C172: 2595 | D172: 2631.5 | E172: 2595 | F172: 2621.77 | G172: 2626.37 | H172: 2587.89 | I172: 6736 | J172: 17654323.75 | K172: 2018-11-02 | L172: 417 | M172: INF732E01078
A173: BANKINDIA | B173: EQ | C173: 87 | D173: 90.45 | E173: 83.8 | F173: 84.25 | G173: 84.15 | H173: 86.05 | I173: 10494652 | J173: 916123684.1 | K173: 2018-11-02 | L173: 34425 | M173: INE084A01016
A174: BANSWRAS | B174: EQ | C174: 69.3 | D174: 76.25 | E174: 68 | F174: 69.15 | G174: 68 | H174: 70.05 | I174: 3712 | J174: 267186.35 | K174: 2018-11-02 | L174: 120 | M174: INE629D01012
A175: BARTRONICS | B175: EQ | C175: 7 | D175: 7.35 | E175: 7 | F175: 7.1 | G175: 7.1 | H175: 7.2 | I175: 19087 | J175: 136842.9 | K175: 2018-11-02 | L175: 69 | M175: INE855F01034
A176: BASF | B176: EQ | C176: 1660.05 | D176: 1690 | E176: 1582.2 | F176: 1601 | G176: 1604.95 | H176: 1650.6 | I176: 16738 | J176: 27185525.2 | K176: 2018-11-02 | L176: 2006 | M176: INE373A01013
A177: BASML | B177: EQ | C177: 207.15 | D177: 215 | E177: 202.1 | F177: 204.1 | G177: 204.05 | H177: 200 | I177: 1564 | J177: 323811.95 | K177: 2018-11-02 | L177: 49 | M177: INE186H01014
A178: BATAINDIA | B178: EQ | C178: 1019 | D178: 1027.65 | E178: 987.35 | F178: 1006.65 | G178: 991 | H178: 1015.4 | I178: 2118491 | J178: 2135476238 | K178: 2018-11-02 | L178: 48426 | M178: INE176A01028
A179: BAYERCROP | B179: EQ | C179: 3861.2 | D179: 3993 | E179: 3815.35 | F179: 3883.45 | G179: 3879.25 | H179: 3898.05 | I179: 9527 | J179: 37186875.3 | K179: 2018-11-02 | L179: 2539 | M179: INE462A01022
A180: BBL | B180: EQ | C180: 1200.05 | D180: 1249 | E180: 1196 | F180: 1236.25 | G180: 1234 | H180: 1196.65 | I180: 11350 | J180: 13954471.35 | K180: 2018-11-02 | L180: 1101 | M180: INE464A01028
A181: BBTC | B181: EQ | C181: 1409 | D181: 1440 | E181: 1352.1 | F181: 1364.85 | G181: 1366 | H181: 1392 | I181: 223844 | J181: 313406129.1 | K181: 2018-11-02 | L181: 12140 | M181: INE050A01025
A182: BCG | B182: EQ | C182: 3.8 | D182: 3.85 | E182: 3.65 | F182: 3.75 | G182: 3.75 | H182: 3.65 | I182: 119505 | J182: 446039.05 | K182: 2018-11-02 | L182: 118 | M182: INE425B01027
A183: BDL | B183: EQ | C183: 294 | D183: 294 | E183: 287.3 | F183: 289.4 | G183: 289 | H183: 290 | I183: 18048 | J183: 5237936.6 | K183: 2018-11-02 | L183: 1065 | M183: INE171Z01018
A184: BEARDSELL | B184: EQ | C184: 26.35 | D184: 26.35 | E184: 24.85 | F184: 25.8 | G184: 26.3 | H184: 24.8 | I184: 1079 | J184: 27410.65 | K184: 2018-11-02 | L184: 19 | M184: INE520H01022
A185: BEDMUTHA | B185: BE | C185: 19.75 | D185: 20.2 | E185: 19.5 | F185: 19.7 | G185: 19.7 | H185: 19.25 | I185: 15767 | J185: 314866.1 | K185: 2018-11-02 | L185: 33 | M185: INE844K01012
A186: BEL | B186: EQ | C186: 98.3 | D186: 98.9 | E186: 94.55 | F186: 95 | G186: 95.1 | H186: 97.5 | I186: 6839887 | J186: 661472561 | K186: 2018-11-02 | L186: 29162 | M186: INE263A01024
A187: BEML | B187: EQ | C187: 641 | D187: 697.5 | E187: 635.8 | F187: 688.9 | G187: 691 | H187: 632.4 | I187: 2893428 | J187: 1927197486 | K187: 2018-11-02 | L187: 64618 | M187: INE258A01016
A188: BEPL | B188: EQ | C188: 85.5 | D188: 87 | E188: 82.95 | F188: 84.45 | G188: 85.5 | H188: 83.4 | I188: 734320 | J188: 62404093.35 | K188: 2018-11-02 | L188: 5579 | M188: INE922A01025
A189: BERGEPAINT | B189: EQ | C189: 300 | D189: 317.4 | E189: 300 | F189: 304.4 | G189: 302.7 | H189: 292 | I189: 3364564 | J189: 1043821894 | K189: 2018-11-02 | L189: 55530 | M189: INE463A01038
A190: BFINVEST | B190: EQ | C190: 244.8 | D190: 254 | E190: 244 | F190: 246.35 | G190: 247.6 | H190: 242.15 | I190: 117299 | J190: 29121963 | K190: 2018-11-02 | L190: 4309 | M190: INE878K01010
A191: BFUTILITIE | B191: EQ | C191: 217.9 | D191: 223.9 | E191: 215.1 | F191: 217.15 | G191: 216.95 | H191: 216.2 | I191: 510680 | J191: 112432253.5 | K191: 2018-11-02 | L191: 9250 | M191: INE243D01012
A192: BGLOBAL | B192: BE | C192: 2.6 | D192: 2.6 | E192: 2.45 | F192: 2.45 | G192: 2.45 | H192: 2.5 | I192: 7713 | J192: 19435.75 | K192: 2018-11-02 | L192: 13 | M192: INE224M01013
A193: BGRENERGY | B193: EQ | C193: 57.5 | D193: 59.9 | E193: 57.5 | F193: 58.2 | G193: 58 | H193: 57.35 | I193: 117801 | J193: 6923470 | K193: 2018-11-02 | L193: 1438 | M193: INE661I01014
A194: BHAGERIA | B194: EQ | C194: 304.9 | D194: 306.95 | E194: 298 | F194: 299.1 | G194: 298 | H194: 302.15 | I194: 14759 | J194: 4462888.95 | K194: 2018-11-02 | L194: 386 | M194: INE354C01027
A195: BHAGYANGR | B195: EQ | C195: 31.7 | D195: 32.2 | E195: 31.05 | F195: 32.1 | G195: 32.2 | H195: 30.7 | I195: 19019 | J195: 604785.95 | K195: 2018-11-02 | L195: 126 | M195: INE458B01036
A196: BHAGYAPROP | B196: EQ | C196: 23.8 | D196: 26.85 | E196: 21.75 | F196: 26 | G196: 26.75 | H196: 24.25 | I196: 42287 | J196: 1071717.1 | K196: 2018-11-02 | L196: 63 | M196: INE363W01018
A197: BHANDARI | B197: EQ | C197: 2.1 | D197: 2.1 | E197: 2 | F197: 2.05 | G197: 2.05 | H197: 2.05 | I197: 175036 | J197: 359374.35 | K197: 2018-11-02 | L197: 112 | M197: INE474E01029
A198: BHARATFIN | B198: EQ | C198: 915 | D198: 958 | E198: 915 | F198: 952.9 | G198: 945.5 | H198: 910.65 | I198: 2042625 | J198: 1931436270 | K198: 2018-11-02 | L198: 54727 | M198: INE180K01011
A199: BHARATFORG | B199: EQ | C199: 589 | D199: 637.3 | E199: 582.45 | F199: 607.25 | G199: 605.1 | H199: 581.05 | I199: 4309509 | J199: 2618696708 | K199: 2018-11-02 | L199: 78613 | M199: INE465A01025
A200: BHARATGEAR | B200: EQ | C200: 171.05 | D200: 176 | E200: 169.35 | F200: 170.8 | G200: 171.5 | H200: 172.35 | I200: 20077 | J200: 3471497.3 | K200: 2018-11-02 | L200: 696 | M200: INE561C01019
... 1438 more rows
